Workbook

Sheet Dashboard (hidden)

Sheet Introduction
B5: Introduction to the Cool Calculator
I22: Limitations of the Cool Calculator
B51: Data Sources
B61: Key Sources
B62: Green Cooling Initiative
B63: F Gas Preparatory Review - Annexes to the final report (Shwartz et al., 2011)
B64: The Future of Cooling (IEA, 2018)
B65: Benefits of Energy Efficiency and Low-Global Warming Potential Refrigerant Cooling Equipment (Shah et al., 2019)
B66: The Cooling Imperative (EIU, 2019)
B67: Cooling on the Move (IEA, 2019)
B68: Cold Chain Technology Brief on Transport Refrigeration (IIR-UN, 2018)
B69: The Future of Trucks (IEA, 2017)
B70: Demand Analysis for Cooling by Sector in India in 2027 (Kumar et al., 2018)
B71: Refrigeration, Air Conditioning and Heat Pumps - Technical Options Committee (RTOC, 2018)
B72: The Role of Refrigeration in the Global Economy (IIR, 2015)
B73: Heat Roadmap Europe: Quantifying the Impact of Low-carbon Heating and Cooling Roadmaps (Aalborg University, 2018)
B74: Solving the Global Cooling Challenge (Campbell, Kalanki & Sachar, 2018)

Sheet How to Use
C6: Using the Cool Calculator
C7: (1) Choose A Pathway
C18: (2) View Your Results
C25: (3) Feedback
C31: Cool Calculator User Guide

Sheet Pathways
CJ11: 2050 Baseline Stock (millions)
BN12: Baseline | CC12: Region | CD12: Sector | CE12: 2050 Baseline Stock | CF12: 2050 Baseline Stock (millions) | CJ12: Commercial AC | CK12: Commercial Refrigeration | CL12: Domestic AC | CM12: Domestic Refrigeration | CN12: Industrial AC | CO12: Industrial Refrigeration | CP12: Transport AC | CQ12: Transport Refrigeration
BN13: Module | BO13: Component | BP13: Efficiency Improvement | BQ13: Operational Leakage | BR13: EoL Leakage | BS13: GWP | BW13: GWP Pathways | CC13: Africa | CD13: Commercial AC | CE13: 168333990 | CF13: =CE13/10^6 -> 168.33399 | CI13: Africa | CJ13: =CF13 -> 168.33399 | CK13: =CF14 -> 24.49129169 | CL13: =CF15 -> 235 | CM13: =CF16 -> 304.8 | CN13: =CF17 -> 0.3451 | CO13: =CF18 -> 0.03657 | CP13: =CF19 -> 286.776387 | CQ13: =CF20 -> 3.988302
BN14: Commerical AC | BO14: Mini-split AC | BW14: Low Effort | BX14: Medium Effort | BY14: High Effort | CD14: Commercial Refrigeration | CE14: 24491291.69 | CF14: =CE14/10^6 -> 24.49129169 | CI14: Asia | CJ14: =CF21 -> 843.917488 | CK14: =CF22 -> 56.42979211 | CL14: =CF23 -> 2800 | CM14: =CF24 -> 1863.67 | CN14: =CF25 -> 3.42799 | CO14: =CF26 -> 0.293651 | CP14: =CF27 -> 1837.54757 | CQ14: =CF28 -> 21.811098
BO15: VRF & Ducted AC | BV15: Commercial AC | BW15: 700 | BX15: 190 | BY15: 2 | CD15: Domestic AC | CE15: 235000000 | CF15: 235 | CI15: Europe | CJ15: =CF29 -> 53.643101 | CK15: =CF30 -> 20.64200881 | CL15: =CF31 -> 95 | CM15: =CF32 -> 392.4 | CN15: =CF33 -> 1.2864 | CO15: =CF34 -> 0.11128 | CP15: =CF35 -> 443.6510736 | CQ15: =CF36 -> 2.846337
BO16: Packaged AC | BV16: Commercial Refrigeration | BW16: 2500 | BX16: 500 | BY16: 4 | CD16: Domestic Refrigeration | CE16: 304800000 | CF16: 304.8 | CI16: North America | CJ16: =CF37 -> 246.721792 | CK16: =CF38 -> 8.871818026 | CL16: =CF39 -> 470 | CM16: =CF40 -> 300.68 | CN16: =CF41 -> 1.0854 | CO16: =CF42 -> 0.11426 | CP16: =CF43 -> 301.7409809 | CQ16: =CF44 -> 1.900495
J17: 2050 Baseline 'Do Nothing' Pathway | AB17: 2050 Low Effort Pathway | BO17: Chillers | BV17: Domestic AC | BW17: 1664 | BX17: 416 | BY17: 2 | CD17: Industrial AC | CE17: 345100 | CF17: 0.3451 | CI17: South and Central America | CJ17: =CF45 -> 54.055332 | CK17: =CF46 -> 11.56508936 | CL17: =CF47 -> 170 | CM17: =CF48 -> 213.73 | CN17: =CF49 -> 0.15447 | CO17: =CF50 -> 0.016364 | CP17: =CF51 -> 204.9582978 | CQ17: =CF52 -> 0.623258
BN18: Commercial Refrigeration | BO18: Centralised systems | BV18: Domestic Refrigeration | BW18: 750 | BX18: 180 | BY18: 1 | CD18: Industrial Refrigeration | CE18: 36570 | CF18: 0.03657
BO19: Condensing units | BV19: Industrial AC | BW19: 1100 | BX19: 280 | BY19: 2 | CD19: Transport AC | CE19: 286776387 | CF19: 286.776387
Q20: Sector | R20: Basline GWP | BO20: Stand-alone units | BV20: Industrial Refrigeration | BW20: 2000 | BX20: 400 | BY20: 3 | CD20: Transport Refrigeration | CE20: 3988302 | CF20: 3.988302
Q21: Commercial AC | R21: 852 | BN21: Domestic AC | BV21: Transport AC | BW21: 1100 | BX21: 290 | BY21: 2 | CC21: Asia | CD21: Commercial AC | CE21: 843917488 | CF21: 843.917488
Q22: Commercial Refrigeration | R22: 2280 | BN22: Domestic Refrigeration | BV22: Transport Refrigeration | BW22: 2100 | BX22: 540 | BY22: 3 | CD22: Commercial Refrigeration | CE22: 56429792.11 | CF22: 56.42979211
Q23: Domestic AC | R23: 2080 | BN23: Industrial AC | CD23: Domestic AC | CE23: 2800000000 | CF23: 2800
Q24: Domestic Refrigeration | R24: 850 | BN24: Industrial Refrigeration | CD24: Domestic Refrigeration | CE24: 1863670000 | CF24: 1863.67
Q25: Industrial AC | R25: 1410 | BN25: Transport AC | BO25: Cars | CD25: Industrial AC | CE25: 3427990 | CF25: 3.42799
Q26: Industrial Refrigeration | R26: 2500 | BO26: Vans | CD26: Industrial Refrigeration | CE26: 293651 | CF26: 0.293651
Q27: Transport AC | R27: 1430 | BO27: Buses | BX27: Annual Operating Leakage Pathway | CD27: Transport AC | CE27: 1837547570 | CF27: 1837.54757
Q28: Transport Refrigeration | R28: 2670 | BO28: Trucks | BW28: Baseline | BX28: Low Effort | BY28: Medium Effort | BZ28: High Effort | CD28: Transport Refrigeration | CE28: 21811098 | CF28: 21.811098
BN29: Transport Refrigeration | BO29: Vans | BV29: Commerical AC | BW29: 0.1 | BX29: 0.085 | BY29: 0.04 | BZ29: 0.01 | CC29: Europe | CD29: Commercial AC | CE29: 53643101 | CF29: 53.643101
BO30: Trucks | BV30: Commercial Refrigeration | BW30: 0.067 | BX30: 0.057 | BY30: 0.027 | BZ30: 0.007 | CD30: Commercial Refrigeration | CE30: 20642008.81 | CF30: 20.64200881
BO31: Trailers | BV31: Domestic AC | BW31: 0.032 | BX31: 0.027 | BY31: 0.013 | BZ31: 0.003 | CD31: Domestic AC | CE31: 95000000 | CF31: 95
BO32: Containers | BV32: Domestic Refrigeration | BW32: 0.005 | BX32: 0.004 | BY32: 0.002 | BZ32: 0.0005 | CD32: Domestic Refrigeration | CE32: 392400000 | CF32: 392.4
BV33: Industrial AC | BW33: 0.075 | BX33: 0.085 | BY33: 0.04 | BZ33: 0.01 | CD33: Industrial AC | CE33: 1286400 | CF33: 1.2864
BV34: Industrial Refrigeration | BW34: 0.08 | BX34: 0.064 | BY34: 0.032 | BZ34: 0.008 | CD34: Industrial Refrigeration | CE34: 111280 | CF34: 0.11128
K35: Region | L35: 2050 Baseline 'Do Nothing' Grid Intensity | BV35: Transport AC | BW35: 0.06 | BX35: 0.007 | BY35: 0.003 | BZ35: 0.001 | CD35: Transport AC | CE35: 443651073.6 | CF35: 443.6510736
K36: Africa | L36: 0.5543074188 | BV36: Transport Refrigeration | BW36: 0.2 | BX36: 0.16 | BY36: 0.08 | BZ36: 0.02 | CD36: Transport Refrigeration | CE36: 2846337 | CF36: 2.846337
K37: Asia | L37: 0.66821232 | BN37: Low Effort | CC37: North America | CD37: Commercial AC | CE37: 246721792 | CF37: 246.721792
K38: Europe | L38: 0.3819155265 | BN38: Module | BO38: Component | BP38: Efficiency Improvement | BQ38: Operational Leakage | BR38: EoL Leakage | BS38: GWP | CD38: Commercial Refrigeration | CE38: 8871818.026 | CF38: 8.871818026
K39: North America | L39: 0.3332308505 | BN39: Commerical AC | BO39: Mini-split AC | BP39: 0.105 | BQ39: 0.085 | BR39: 0.85 | BS39: 700 | CD39: Domestic AC | CE39: 470000000 | CF39: 470
K40: South and Central America | L40: 0.1996168699 | BO40: VRF & Ducted AC | BP40: 0.055 | BQ40: 0.085 | BR40: 0.85 | BS40: 700 | BX40: End of Life Leakage Pathway | CD40: Domestic Refrigeration | CE40: 300680000 | CF40: 300.68
BO41: Packaged AC | BP41: 0.075 | BQ41: 0.085 | BR41: 0.85 | BS41: 700 | BW41: Baseline | BX41: Low Effort | BY41: Medium Effort | BZ41: High Effort | CD41: Industrial AC | CE41: 1085400 | CF41: 1.0854
E42: Choose Your Pathway | BO42: Chillers | BP42: 0.055 | BQ42: 0.085 | BR42: 0.85 | BS42: 700 | BV42: Commerical AC | BW42: 1 | BX42: 0.85 | BY42: 0.4 | BZ42: 0.1 | CD42: Industrial Refrigeration | CE42: 114260 | CF42: 0.11426
E43: Please Select a Pathway | BN43: Commercial Refrigeration | BO43: Centralised systems | BP43: 0.1 | BQ43: 0.13 | BR43: 0.17 | BS43: 2900 | BV43: Commercial Refrigeration | BW43: 0.65 | BX43: 0.49 | BY43: 0.24 | BZ43: 0.06 | CD43: Transport AC | CE43: 301740980.9 | CF43: 301.7409809
BO44: Condensing units | BP44: 0.075 | BQ44: 0.13 | BR44: 0.29 | BS44: 2900 | BV44: Domestic AC | BW44: 0.48 | BX44: 0.38 | BY44: 0.19 | BZ44: 0.05 | CD44: Transport Refrigeration | CE44: 1900495 | CF44: 1.900495
BO45: Stand-alone units | BP45: 0.075 | BQ45: 0.017 | BR45: 0.6 | BS45: 1000 | BV45: Domestic Refrigeration | BW45: 0.4 | BX45: 0.34 | BY45: 0.16 | BZ45: 0.04 | CC45: South and Central America | CD45: Commercial AC | CE45: 54055332 | CF45: 54.055332
BN46: Domestic AC | BP46: 0.105 | BQ46: 0.027 | BR46: 0.38 | BS46: 1664 | BV46: Industrial AC | BW46: 0.4 | BX46: 0.34 | BY46: 0.16 | BZ46: 0.04 | CD46: Commercial Refrigeration | CE46: 11565089.36 | CF46: 11.56508936
BN47: Domestic Refrigeration | BP47: 0.08 | BQ47: 0.0043 | BR47: 0.34 | BS47: 750 | BV47: Industrial Refrigeration | BW47: 0.4 | BX47: 0.34 | BY47: 0.16 | BZ47: 0.04 | CD47: Domestic AC | CE47: 170000000 | CF47: 170
BN48: Industrial AC | BP48: 0.06 | BQ48: 0.085 | BR48: 0.34 | BS48: 1100 | BV48: Transport AC | BW48: 0.15 | BX48: 0.11 | BY48: 0.06 | BZ48: 0.015 | CD48: Domestic Refrigeration | CE48: 213730000 | CF48: 213.73
BN49: Industrial Refrigeration | BP49: 0.06 | BQ49: 0.064 | BR49: 0.34 | BS49: 2000 | BV49: Transport Refrigeration | BW49: 0.25 | BX49: 0.24 | BY49: 0.115 | BZ49: 0.03 | CD49: Industrial AC | CE49: 154470 | CF49: 0.15447
BN50: Transport AC | BO50: Cars | BP50: 0.1 | BQ50: 0.007 | BR50: 0.11 | BS50: 1100 | CD50: Industrial Refrigeration | CE50: 16364 | CF50: 0.016364
U51: STOCK | BO51: Vans | BP51: 0.1 | BQ51: 0.007 | BR51: 0.11 | BS51: 1100 | CD51: Transport AC | CE51: 204958297.8 | CF51: 204.9582978
BO52: Buses | BP52: 0.075 | BQ52: 0.007 | BR52: 0.11 | BS52: 1100 | CD52: Transport Refrigeration | CE52: 623258 | CF52: 0.623258
BO53: Trucks | BP53: 0.075 | BQ53: 0.007 | BR53: 0.11 | BS53: 1100
BN54: Transport Refrigeration | BO54: Vans | BP54: 0.06 | BQ54: 0.17 | BR54: 0.25 | BS54: 2100 | BX54: Grey Hydrogen | BY54: Blue Hydrogen | BZ54: Green Hydrogen
BO55: Trucks | BP55: 0.06 | BQ55: 0.17 | BR55: 0.25 | BS55: 2100 | BW55: Low Effort | BX55: 0.6 | BY55: 0.2 | BZ55: 0.2
BO56: Trailers | BP56: 0.06 | BQ56: 0.17 | BR56: 0.25 | BS56: 2100 | BW56: Medium Effort | BX56: 0.25 | BY56: 0.35 | BZ56: 0.4
BO57: Containers | BP57: 0.06 | BQ57: 0.04 | BR57: 0.04 | BS57: 2100 | BW57: High Effort | BX57: 0.145 | BY57: 0.42 | BZ57: 0.435
CE59: Baseline Refrigerant Operating Leakage | CF59: Baseline Refrigerant End of Life Leakage
BW60: Grid Emissions Intensity Pathway (MtCO2e / TWh) | CD60: Commerical AC | CE60: 0.1 | CF60: 1
BN61: Medium Effort | BV61: Region | BW61: Do Nothing Baseline | BX61: Low Effort | BY61: Medium Effort | BZ61: High Effort | CD61: Commercial Refrigeration | CE61: 0.067 | CF61: 0.65
BN62: Module | BO62: Component | BP62: Efficiency Improvement | BQ62: Operational Leakage | BR62: EoL Leakage | BS62: GWP | BV62: Africa | BW62: 0.5543074188 | BX62: 0.387494702 | BY62: 0.2791319058 | BZ62: 0.1013058663 | CD62: Domestic AC | CE62: 0.032 | CF62: 0.48
BN63: Commerical AC | BO63: Mini-split AC | BP63: 0.42 | BQ63: 0.04 | BR63: 0.4 | BS63: 190 | BV63: Asia | BW63: 0.66821232 | BX63: 0.4669193325 | BY63: 0.409607055 | BZ63: 0.1282153335 | CD63: Domestic Refrigeration | CE63: 0.004 | CF63: 0.4
BO64: VRF & Ducted AC | BP64: 0.22 | BQ64: 0.04 | BR64: 0.4 | BS64: 190 | BV64: Europe | BW64: 0.3332308505 | BX64: 0.2191229813 | BY64: 0.1428131625 | BZ64: 0.05022522909 | CD64: Industrial AC | CE64: 0.075 | CF64: 0.4
BO65: Packaged AC | BP65: 0.3 | BQ65: 0.04 | BR65: 0.4 | BS65: 190 | BV65: N America | BW65: 0.3819155265 | BX65: 0.2572291498 | BY65: 0.2365939495 | BZ65: 0.04903456927 | CD65: Industrial Refrigeration | CE65: 0.08 | CF65: 0.4
BO66: Chillers | BP66: 0.22 | BQ66: 0.04 | BR66: 0.4 | BS66: 190 | BV66: C S America | BW66: 0.1996168699 | BX66: 0.1380740325 | BY66: 0.1127633829 | BZ66: 0.02998572109 | CD66: Transport AC | CE66: 0.06 | CF66: 0.15
BN67: Commercial Refrigeration | BO67: Centralised systems | BP67: 0.36 | BQ67: 0.06 | BR67: 0.08 | BS67: 720 | CD67: Transport Refrigeration | CE67: 0.2 | CF67: 0.25
BO68: Condensing units | BP68: 0.3 | BQ68: 0.06 | BR68: 0.14 | BS68: 720
BO69: Stand-alone units | BP69: 0.3 | BQ69: 0.008 | BR69: 0.3 | BS69: 250 | CE69: Low Effort
J70: 2050 Medium Effort Pathway | AB70: 2050 High Effort Pathway | BN70: Domestic AC | BP70: 0.42 | BQ70: 0.013 | BR70: 0.19 | BS70: 416 | BW70: Proportion of Best Available Technology Efficiency Achieved | CE70: Refrigerant Annual Operating Leakage | CF70: Refrigerant End of Life Leakage
BN71: Domestic Refrigeration | BP71: 0.33 | BQ71: 0.002 | BR71: 0.16 | BS71: 180 | BV71: Low Effort | BW71: 0.15 | CD71: Commerical AC | CE71: 0.085 | CF71: 0.85
E72: OR | BN72: Industrial AC | BP72: 0.16 | BQ72: 0.04 | BR72: 0.16 | BS72: 280 | BV72: Medium Effort | BW72: 0.6 | CD72: Commercial Refrigeration | CE72: 0.057 | CF72: 0.49
BN73: Industrial Refrigeration | BP73: 0.16 | BQ73: 0.032 | BR73: 0.16 | BS73: 400 | BV73: High Effort | BW73: 1 | CD73: Domestic AC | CE73: 0.027 | CF73: 0.38
BN74: Transport AC | BO74: Cars | BP74: 0.4 | BQ74: 0.003 | BR74: 0.06 | BS74: 290 | CD74: Domestic Refrigeration | CE74: 0.004 | CF74: 0.34
BO75: Vans | BP75: 0.4 | BQ75: 0.003 | BR75: 0.06 | BS75: 290 | CD75: Industrial AC | CE75: 0.085 | CF75: 0.34
BO76: Buses | BP76: 0.3 | BQ76: 0.003 | BR76: 0.06 | BS76: 290 | CD76: Industrial Refrigeration | CE76: 0.064 | CF76: 0.34
BO77: Trucks | BP77: 0.3 | BQ77: 0.003 | BR77: 0.06 | BS77: 290 | CD77: Transport AC | CE77: 0.007 | CF77: 0.11
BN78: Transport Refrigeration | BO78: Vans | BP78: 0.16 | BQ78: 0.08 | BR78: 0.12 | BS78: 540 | CD78: Transport Refrigeration | CE78: 0.16 | CF78: 0.24
BO79: Trucks | BP79: 0.16 | BQ79: 0.08 | BR79: 0.12 | BS79: 540
BO80: Trailers | BP80: 0.16 | BQ80: 0.08 | BR80: 0.12 | BS80: 540
BO81: Containers | BP81: 0.16 | BQ81: 0.02 | BR81: 0.02 | BS81: 540 | CE81: Medium Effort
CE82: Refrigerant Annual Operating Leakage | CF82: Refrigerant End of Life Leakage
BN83: High Effort | CD83: Commerical AC | CE83: 0.04 | CF83: 0.4
BN84: Module | BO84: Component | BP84: Efficiency Improvement | BQ84: Operational Leakage | BR84: EoL Leakage | BS84: GWP | CD84: Commercial Refrigeration | CE84: 0.027 | CF84: 0.24
BN85: Commerical AC | BO85: Mini-split AC | BP85: 0.7 | BQ85: 0.01 | BR85: 0.1 | BS85: 2 | CD85: Domestic AC | CE85: 0.013 | CF85: 0.19
BO86: VRF & Ducted AC | BP86: 0.37 | BQ86: 0.01 | BR86: 0.1 | BS86: 2 | CD86: Domestic Refrigeration | CE86: 0.002 | CF86: 0.16
BO87: Packaged AC | BP87: 0.5 | BQ87: 0.01 | BR87: 0.1 | BS87: 2 | CD87: Industrial AC | CE87: 0.04 | CF87: 0.16
BO88: Chillers | BP88: 0.37 | BQ88: 0.01 | BR88: 0.1 | BS88: 2 | CD88: Industrial Refrigeration | CE88: 0.032 | CF88: 0.16
BN89: Commercial Refrigeration | BO89: Centralised systems | BP89: 0.6 | BQ89: 0.015 | BR89: 0.015 | BS89: 4 | CD89: Transport AC | CE89: 0.003 | CF89: 0.06
BO90: Condensing units | BP90: 0.5 | BQ90: 0.015 | BR90: 0.034 | BS90: 4 | CD90: Transport Refrigeration | CE90: 0.08 | CF90: 0.115
BO91: Stand-alone units | BP91: 0.5 | BQ91: 0.002 | BR91: 0.07 | BS91: 1
BN92: Domestic AC | BP92: 0.7 | BQ92: 0.003 | BR92: 0.05 | BS92: 2 | CE92: High Effort
BN93: Domestic Refrigeration | BP93: 0.55 | BQ93: 0.0005 | BR93: 0.04 | BS93: 1 | CE93: Refrigerant Annual Operating Leakage | CF93: Refrigerant End of Life Leakage
BN94: Industrial AC | BP94: 0.4 | BQ94: 0.01 | BR94: 0.04 | BS94: 2 | CD94: Commerical AC | CE94: 0.01 | CF94: 0.1
BN95: Industrial Refrigeration | BP95: 0.4 | BQ95: 0.008 | BR95: 0.04 | BS95: 3 | CD95: Commercial Refrigeration | CE95: 0.007 | CF95: 0.06
BN96: Transport AC | BO96: Cars | BP96: 0.67 | BQ96: 0.001 | BR96: 0.015 | BS96: 2 | CD96: Domestic AC | CE96: 0.003 | CF96: 0.05
BO97: Vans | BP97: 0.67 | BQ97: 0.001 | BR97: 0.015 | BS97: 2 | CD97: Domestic Refrigeration | CE97: 0.0005 | CF97: 0.04
BO98: Buses | BP98: 0.5 | BQ98: 0.001 | BR98: 0.015 | BS98: 2 | CD98: Industrial AC | CE98: 0.01 | CF98: 0.04
BO99: Trucks | BP99: 0.5 | BQ99: 0.001 | BR99: 0.015 | BS99: 2 | CD99: Industrial Refrigeration | CE99: 0.008 | CF99: 0.04
BN100: Transport Refrigeration | BO100: Vans | BP100: 0.4 | BQ100: 0.02 | BR100: 0.03 | BS100: 3 | CD100: Transport AC | CE100: 0.001 | CF100: 0.015
BO101: Trucks | BP101: 0.4 | BQ101: 0.02 | BR101: 0.03 | BS101: 3 | CD101: Transport Refrigeration | CE101: 0.02 | CF101: 0.03
BO102: Trailers | BP102: 0.4 | BQ102: 0.02 | BR102: 0.03 | BS102: 3
BO103: Containers | BP103: 0.4 | BQ103: 0.005 | BR103: 0.005 | BS103: 3
J184: Advanced User Pathway

Sheet Advanced User Pathway
C9: Advanced User Pathway
R11: Driver | S11: Pathway
R12: GWP | S12: =C27 -> Please Select a Pathway
R13: Annual Operating Leakage | S13: =C53 -> Please Select a Pathway
R14: End of Life Leakage | S14: =C81 -> Please Select a Pathway
C15: =IF(Pathways!$E$43 = "Please Select a Pathway", "Note: You have not selected the Advanced User Pathway on the pathways tab", IF(Pathways!$E$43 = "Low Effort", "Note: You have not selected the Advanced User Pathway on the pathways tab", IF(Pathways!$E$43 = "Medium Effort", "Note: You have not selected the Advanced User Pathway on the pathways tab", IF(Pathways!$E$43 = "High Effort", "Note: You have not selected the Advanced User Pathway on the pathways tab", IF(Pathways!$E$43 = "Advanced User Pathway", " "))))) -> Note: You have not selected the Advanced User Pathway on the pathways tab | R15: Efficiency | S15: =C109 -> Please Select a Pathway
R16: Grid Decarbonisation | S16: =C137 -> Please Select a Pathway
R17: District Cooling | S17: =C164 -> Please Select a Pathway
R18: Hydrogen Pathway | S18: =C184 -> Please Select a Pathway
R19: Avoid Measures | S19: =C207 -> Please Select a Pathway
C22: Refrigerant GWP
H25: Refrigerant GWP
C26: Refrigerant GWP | F26: Sector | G26: Component | H26: Low Effort | I26: Medium Effort | J26: High Effort
C27: Please Select a Pathway | F27: Commerical AC | G27: Mini-split AC | H27: =Pathways!BS39 -> 700 | I27: =Pathways!BS63 -> 190 | J27: =Pathways!BS85 -> 2
G28: VRF & Ducted AC | H28: =Pathways!BS40 -> 700 | I28: =Pathways!BS64 -> 190 | J28: =Pathways!BS86 -> 2
G29: Packaged AC | H29: =Pathways!BS41 -> 700 | I29: =Pathways!BS65 -> 190 | J29: =Pathways!BS87 -> 2
G30: Chillers | H30: =Pathways!BS42 -> 700 | I30: =Pathways!BS66 -> 190 | J30: =Pathways!BS88 -> 2
F31: Commercial Refrigeration | G31: Centralised systems | H31: =Pathways!BS43 -> 2900 | I31: =Pathways!BS67 -> 720 | J31: =Pathways!BS89 -> 4
G32: Condensing units | H32: =Pathways!BS44 -> 2900 | I32: =Pathways!BS68 -> 720 | J32: =Pathways!BS90 -> 4
G33: Stand-alone units | H33: =Pathways!BS45 -> 1000 | I33: =Pathways!BS69 -> 250 | J33: =Pathways!BS91 -> 1
F34: Domestic AC | H34: 1664 | I34: 416 | J34: =Pathways!BS92 -> 2
F35: Domestic Refrigeration | H35: =Pathways!BS47 -> 750 | I35: =Pathways!BS71 -> 180 | J35: =Pathways!BS93 -> 1
F36: Industrial AC | H36: =Pathways!BS48 -> 1100 | I36: =Pathways!BS72 -> 280 | J36: =Pathways!BS94 -> 2
F37: Industrial Refrigeration | H37: =Pathways!BS49 -> 2000 | I37: =Pathways!BS73 -> 400 | J37: =Pathways!BS95 -> 3
F38: Transport AC | G38: Cars | H38: =Pathways!BS50 -> 1100 | I38: 290 | J38: =Pathways!BS96 -> 2
G39: Vans | H39: =Pathways!BS51 -> 1100 | I39: 290 | J39: =Pathways!BS97 -> 2
G40: Buses | H40: =Pathways!BS52 -> 1100 | I40: 290 | J40: =Pathways!BS98 -> 2
G41: Trucks | H41: =Pathways!BS53 -> 1100 | I41: 290 | J41: =Pathways!BS99 -> 2
F42: Transport Refrigeration | G42: Vans | H42: =Pathways!BS54 -> 2100 | I42: 540 | J42: =Pathways!BS100 -> 3
G43: Trucks | H43: =Pathways!BS55 -> 2100 | I43: 540 | J43: =Pathways!BS101 -> 3
G44: Trailers | H44: =Pathways!BS56 -> 2100 | I44: 540 | J44: =Pathways!BS102 -> 3
G45: Containers | H45: =Pathways!BS57 -> 2100 | I45: 540 | J45: =Pathways!BS103 -> 3
C49: Refrigerant Operating Leakage
C52: Refrigerant Operating Leakage | H52: Refrigerant Operating Leakage
C53: Please Select a Pathway | F53: Sector | G53: Component | H53: Low Effort | I53: Medium Effort | J53: High Effort
F54: Commerical AC | G54: Mini-split AC | H54: 0.085 | I54: 0.04 | J54: 0.01
G55: VRF & Ducted AC | H55: 0.085 | I55: 0.04 | J55: 0.01
G56: Packaged AC | H56: 0.085 | I56: 0.04 | J56: 0.01
G57: Chillers | H57: 0.085 | I57: 0.04 | J57: 0.01
F58: Commercial Refrigeration | G58: Centralised systems | H58: 0.13 | I58: 0.06 | J58: 0.015
G59: Condensing units | H59: 0.13 | I59: 0.06 | J59: 0.015
G60: Stand-alone units | H60: 0.02 | I60: 0.017 | J60: 0.002
F61: Domestic AC | H61: 0.027 | I61: 0.013 | J61: 0.003
F62: Domestic Refrigeration | H62: 0.0043 | I62: 0.002 | J62: 0.0005
F63: Industrial AC | H63: 0.085 | I63: 0.04 | J63: 0.01
F64: Industrial Refrigeration | H64: 0.064 | I64: 0.032 | J64: 0.008
F65: Transport AC | G65: Cars | H65: 0.0072 | I65: 0.0034 | J65: 0.001
G66: Vans | H66: 0.0072 | I66: 0.0034 | J66: 0.001
G67: Buses | H67: 0.0072 | I67: 0.0034 | J67: 0.001
G68: Trucks | H68: 0.0072 | I68: 0.0034 | J68: 0.001
F69: Transport Refrigeration | G69: Vans | H69: 0.17 | I69: 0.08 | J69: 0.02
G70: Trucks | H70: 0.17 | I70: 0.08 | J70: 0.02
G71: Trailers | H71: 0.17 | I71: 0.08 | J71: 0.02
G72: Containers | H72: 0.04 | I72: 0.02 | J72: 0.005
C76: Refrigerant End of Life Leakage
C80: Refrigerant End of Life Leakage | H80: Refrigerant End of Life Leakage
C81: Please Select a Pathway | F81: Sector | G81: Component | H81: Low Effort | I81: Medium Effort | J81: High Effort
F82: Commerical AC | G82: Mini-split AC | H82: 0.85 | I82: 0.4 | J82: 0.1
G83: VRF & Ducted AC | H83: 0.85 | I83: 0.4 | J83: 0.1
G84: Packaged AC | H84: 0.85 | I84: 0.4 | J84: 0.1
G85: Chillers | H85: 0.85 | I85: 0.4 | J85: 0.1
F86: Commercial Refrigeration | G86: Centralised systems | H86: 0.17 | I86: 0.08 | J86: 0.015
G87: Condensing units | H87: 0.29 | I87: 0.14 | J87: 0.034
G88: Stand-alone units | H88: 0.6 | I88: 0.3 | J88: 0.07
F89: Domestic AC | H89: 0.38 | I89: 0.19 | J89: 0.05
F90: Domestic Refrigeration | H90: 0.34 | I90: 0.16 | J90: 0.04
F91: Industrial AC | H91: 0.34 | I91: 0.16 | J91: 0.04
F92: Industrial Refrigeration | H92: 0.34 | I92: 0.16 | J92: 0.04
F93: Transport AC | G93: Cars | H93: 0.11 | I93: 0.06 | J93: 0.015
G94: Vans | H94: 0.11 | I94: 0.06 | J94: 0.015
G95: Buses | H95: 0.11 | I95: 0.06 | J95: 0.015
G96: Trucks | H96: 0.11 | I96: 0.06 | J96: 0.015
F97: Transport Refrigeration | G97: Vans | H97: 0.25 | I97: 0.12 | J97: 0.03
G98: Trucks | H98: 0.25 | I98: 0.12 | J98: 0.03
G99: Trailers | H99: 0.25 | I99: 0.12 | J99: 0.03
G100: Containers | H100: 0.04 | I100: 0.02 | J100: 0.005
C104: Equipment Efficiency
C108: Equipment Efficiency | G108: Equipment Efficiency Improvement (Improvement Relative to Baseline)
C109: Please Select a Pathway | F109: Sector | G109: Component | H109: Low Effort | I109: Medium Effort | J109: High Effort
F110: Commerical AC | G110: Mini-split AC | H110: 0.105 | I110: 0.42 | J110: 0.7
G111: VRF & Ducted AC | H111: 0.055 | I111: 0.22 | J111: 0.37
G112: Packaged AC | H112: 0.075 | I112: 0.3 | J112: 0.5
G113: Chillers | H113: 0.055 | I113: 0.22 | J113: 0.37
F114: Commercial Refrigeration | G114: Centralised systems | H114: 0.1 | I114: 0.36 | J114: 0.6
G115: Condensing units | H115: 0.075 | I115: 0.3 | J115: 0.5
G116: Stand-alone units | H116: 0.075 | I116: 0.3 | J116: 0.5
F117: Domestic AC | H117: 0.105 | I117: 0.42 | J117: 0.7
F118: Domestic Refrigeration | H118: 0.08 | I118: 0.33 | J118: 0.55
F119: Industrial AC | H119: 0.06 | I119: 0.16 | J119: 0.4
F120: Industrial Refrigeration | H120: 0.06 | I120: 0.16 | J120: 0.4
F121: Transport AC | G121: Cars | H121: 0.1 | I121: 0.4 | J121: 0.67
G122: Vans | H122: 0.1 | I122: 0.4 | J122: 0.67
G123: Buses | H123: 0.075 | I123: 0.3 | J123: 0.5
G124: Trucks | H124: 0.075 | I124: 0.3 | J124: 0.5
F125: Transport Refrigeration | G125: Vans | H125: 0.06 | I125: 0.16 | J125: 0.4
G126: Trucks | H126: 0.06 | I126: 0.16 | J126: 0.4
G127: Trailers | H127: 0.06 | I127: 0.16 | J127: 0.4
G128: Containers | H128: 0.06 | I128: 0.16 | J128: 0.4
C132: Grid Decarbonisation
C136: Grid Decarbonisation | G136: Grid Emissions Intensity (MtCO2e / TWh)
C137: Please Select a Pathway | F137: Region | G137: Do Nothing Baseline | H137: Low Effort | I137: Medium Effort | J137: High Effort
F138: Africa | G138: 0.5543074188 | H138: 0.387494702 | I138: 0.2791319058 | J138: 0.1013058663
F139: Asia | G139: 0.66821232 | H139: 0.4669193325 | I139: 0.409607055 | J139: 0.1282153335
F140: Europe | G140: 0.3332308505 | H140: 0.2191229813 | I140: 0.1428131625 | J140: 0.05022522909
F141: N America | G141: 0.3819155265 | H141: 0.2572291498 | I141: 0.2365939495 | J141: 0.04903456927
F142: C S America | G142: 0.1996168699 | H142: 0.1380740325 | I142: 0.1127633829 | J142: 0.02998572109
C159: District Cooling
C163: District Cooling (Domestic AC) | G163: Penetration of District Cooling (Capacity Displaced by District Cooling)
C164: Please Select a Pathway | F164: Region | G164: Do Nothing Baseline | H164: Low Effort | I164: Medium Effort | J164: High Effort
F165: Africa | G165: 0 | H165: 0.01 | I165: 0.03 | J165: 0.05
F166: Asia | G166: 0 | H166: 0.01 | I166: 0.03 | J166: 0.05
F167: Europe | G167: 0 | H167: 0.01 | I167: 0.03 | J167: 0.05
F168: N America | G168: 0 | H168: 0.01 | I168: 0.03 | J168: 0.05
F169: C S America | G169: 0 | H169: 0.01 | I169: 0.03 | J169: 0.05
C180: Hydrogen Production Pathway
C183: Hydrogen Pathway | G183: Proportion of Hydrogen Produced
C184: Please Select a Pathway | F184: Pathway | G184: Grey Hydrogen | H184: Blue Hydrogen | I184: Green Hydrogen
F185: Do Nothing Baseline | G185: 0.89 | H185: 0.11 | I185: 0
F186: Low Effort | G186: 0.6 | H186: 0.2 | I186: 0.2
F187: Medium Effort | G187: 0.25 | H187: 0.35 | I187: 0.4
F188: High Effort | G188: 0.145 | H188: 0.42 | I188: 0.435
C202: Avoid Measures
C206: Avoid Measures (Domestic AC) | G206: Avoid Measures
C207: Please Select a Pathway | F207: Region | G207: Do Nothing Baseline | H207: Low Effort | I207: Medium Effort | J207: High Effort
F208: Africa | G208: 0 | H208: 0.1 | I208: 0.2 | J208: 0.3
F209: Asia | G209: 0 | H209: 0.1 | I209: 0.2 | J209: 0.3
F210: Europe | G210: 0 | H210: 0.1 | I210: 0.2 | J210: 0.3
F211: N America | G211: 0 | H211: 0.1 | I211: 0.2 | J211: 0.3
F212: C S America | G212: 0 | H212: 0.1 | I212: 0.2 | J212: 0.3
C225: Maintenance
C229: Maintenance
C230: Please Select a Pathway
C240: Transport Pathways
C243: Transport Type
C244: Please Select a Pathway

Sheet Results Dashboard
C4: Results Dashboard | N4: Pathway: | O4: =Pathways!$E$43 -> Please Select a Pathway
C5: Your chosen pathway has reduced emissions in 2050 by | H5: ='Results Tables'!$AP$20 -> 0 | I5: and by | J5: ='Results Tables'!$AP$10 -> 0 | K5: million tonnes CO2e | M5: compared with the Baseline 'Do Nothing' Pathway.
C6: ='Emissions Savings Results'!$Q$23 -> 15869.59286 | D6: million tonnes CO2e | G6: remains to be negated in order to achieve Net Zero.
C13: =IF(Pathways!$E$43 = "Please Select a Pathway", "You have not selected the Advanced User Pathway", IF(Pathways!$E$43 = "Low Effort", "You have not selected the Advanced User Pathway", IF(Pathways!$E$43 = "Medium Effort", "You have not selected the Advanced User Pathway", IF(Pathways!$E$43 = "High Effort", "You have not selected the Advanced User Pathway", IF(Pathways!$E$43 = "Advanced User Pathway", " "))))) -> You have not selected the Advanced User Pathway
C14: 2050 Emissions | N14: Pathway: | O14: =Pathways!$E$43 -> Please Select a Pathway
M20: Emissions (Mt CO2e)
L21: Global | M21: 2020 | N21: 2050 Baseline | O21: 2050 User Pathway
L22: Direct Emisisons | M22: ='Results Tables'!K10 -> 874.6173677 | N22: ='Results Tables'!L10 -> 1521.949831 | O22: =IF(Pathways!$E$43 = "Please Select a Pathway", 'Results Tables'!$L$10, IF(Pathways!$E$43 = "Low Effort",'Results Tables'!$M$10, IF(Pathways!$E$43 = "Medium Effort",'Results Tables'!$N$10, IF(Pathways!$E$43 = "High Effort", 'Results Tables'!$O$10, IF(Pathways!$E$43 = "Advanced User Pathway", 'Results Tables'!$P$10))))) -> 1521.949831
L23: Indirect Emissions | M23: ='Results Tables'!$K$55 -> 5283.971101 | N23: ='Results Tables'!$L$55 -> 14347.64303 | O23: =IF(Pathways!$E$43 = "Please Select a Pathway",'Results Tables'!$L$55, IF(Pathways!$E$43 = "Low Effort",'Results Tables'!$M$55, IF(Pathways!$E$43 = "Medium Effort",'Results Tables'!$N$55, IF(Pathways!$E$43 = "High Effort", 'Results Tables'!$O$55, IF(Pathways!$E$43 = "Advanced User Pathway", 'Results Tables'!$P$55))))) -> 14347.64303
L24: Total | M24: ='Results Tables'!$K$114 -> 6158.588469 | N24: ='Results Tables'!$L$114 -> 15869.59286 | O24: =IF(Pathways!$E$43 = "Please Select a Pathway", 'Results Tables'!$L$11, IF(Pathways!$E$43 = "Low Effort",'Results Tables'!$M$114, IF(Pathways!$E$43 = "Medium Effort", 'Results Tables'!$N$114, IF(Pathways!$E$43 = "High Effort", 'Results Tables'!$O$114, IF(Pathways!$E$43 = "Advanced User Pathway", 'Results Tables'!$P$114))))) -> 0
C68: 2050 Emissions Savings | N68: Pathway: | O68: =Pathways!$E$43 -> Please Select a Pathway
H75: 2020 Emissions | I75: Dummy | J75: Direct Emissions | K75: Indirect Emissions | L75: Total Emissions
G76: 2020 Total Emissions | H76: ='Results Tables'!K100 -> 6158.588469 | I76: 0 | J76: 0 | K76: 0 | L76: 0
G77: 2050 Baseline 'Do Nothing' Emissions | H77: 0 | I77: 0 | J77: ='Results Tables'!L10 -> 1521.949831 | K77: ='Results Tables'!L55 -> 14347.64303 | L77: ='Results Tables'!L100 -> 15869.59286
G78: 2050 User Pathway Emissions Savings | H78: 0 | I78: =L77-L78 -> 15869.59286 | J78: ='Results Tables'!AN10 -> 0 | K78: ='Results Tables'!AO10 -> 0 | L78: =SUM(J78:K78) -> 0
G79: Gap to Zero Emissions | H79: 0 | I79: 0 | J79: =J77-J78 -> 1521.949831 | K79: =K77-K78 -> 14347.64303 | L79: =L77-L78 -> 15869.59286
C120: 2050 Energy Consumption | N120: Pathway: | O120: =Pathways!$E$43 -> Please Select a Pathway
M129: Energy Consumption (TWh / year)
M130: Region | N130: Baseline 'Do Nothing' Pathway | O130: User Pathway
M131: Africa | N131: ='Results Tables'!$T$48 -> 2727.219442 | O131: =IF(Pathways!$E$43 = "Please Select a Pathway", 'Results Tables'!$T$48, IF(Pathways!$E$43 = "Low Effort", 'Results Tables'!$U$48, IF(Pathways!$E$43 = "Medium Effort", 'Results Tables'!$V$48, IF(Pathways!$E$43 = "High Effort",'Results Tables'!$W$48, IF(Pathways!$E$43 = "Advanced User Pathway",'Results Tables'!$X$48))))) -> 2727.219442
M132: Asia | N132: ='Results Tables'!$T$49 -> 17081.15478 | O132: =IF(Pathways!$E$43 = "Please Select a Pathway", 'Results Tables'!$T$49, IF(Pathways!$E$43 = "Low Effort", 'Results Tables'!$U$49, IF(Pathways!$E$43 = "Medium Effort", 'Results Tables'!$V$49, IF(Pathways!$E$43 = "High Effort",'Results Tables'!$W$49, IF(Pathways!$E$43 = "Advanced User Pathway",'Results Tables'!$X$49))))) -> 17081.15478
M133: Europe | N133: ='Results Tables'!$T$50 -> 1920.494267 | O133: =IF(Pathways!$E$43 = "Please Select a Pathway", 'Results Tables'!$T$50, IF(Pathways!$E$43 = "Low Effort", 'Results Tables'!$U$50, IF(Pathways!$E$43 = "Medium Effort", 'Results Tables'!$V$50, IF(Pathways!$E$43 = "High Effort",'Results Tables'!$W$50, IF(Pathways!$E$43 = "Advanced User Pathway",'Results Tables'!$X$50))))) -> 1920.494267
M134: North America | N134: ='Results Tables'!$T$51 -> 4302.510239 | O134: =IF(Pathways!$E$43 = "Please Select a Pathway", 'Results Tables'!$T$51, IF(Pathways!$E$43 = "Low Effort", 'Results Tables'!$U$51, IF(Pathways!$E$43 = "Medium Effort", 'Results Tables'!$V$51, IF(Pathways!$E$43 = "High Effort",'Results Tables'!$W$51, IF(Pathways!$E$43 = "Advanced User Pathway",'Results Tables'!$X$51))))) -> 4302.510239
M135: South America | N135: ='Results Tables'!$T$52 -> 1766.618384 | O135: =IF(Pathways!$E$43 = "Please Select a Pathway", 'Results Tables'!$T$52, IF(Pathways!$E$43 = "Low Effort", 'Results Tables'!$U$52, IF(Pathways!$E$43 = "Medium Effort", 'Results Tables'!$V$52, IF(Pathways!$E$43 = "High Effort",'Results Tables'!$W$52, IF(Pathways!$E$43 = "Advanced User Pathway",'Results Tables'!$X$52))))) -> 1766.618384
M136: Global | N136: =SUM(N131:N135) -> 27797.99711 | O136: =SUM(O131:O135) -> 27797.99711
C180: Equipment Stock | N180: Pathway: | O180: =Pathways!$E$43 -> Please Select a Pathway
N189: Stock (millions of units)
N190: 2020 | O190: 2050
M191: Africa | N191: ='Results Tables'!$AA$47 / 10^6 -> 206.2590233 | O191: ='Results Tables'!$AB$47 / 10^6 -> 1023.771641
M192: Asia | N192: ='Results Tables'!$AA$48 / 10^6 -> 2424.703167 | O192: ='Results Tables'!$AB$48 / 10^6 -> 7427.097589
M193: Europe | N193: ='Results Tables'!$AA$49 / 10^6 -> 685.6613065 | O193: ='Results Tables'!$AB$49 / 10^6 -> 1009.5802
M194: North America | N194: ='Results Tables'!$AA$50 / 10^6 -> 902.6417107 | O194: ='Results Tables'!$AB$50 / 10^6 -> 1331.114746
M195: South America | N195: ='Results Tables'!$AA$51 / 10^6 -> 282.6809718 | O195: ='Results Tables'!$AB$51 / 10^6 -> 655.1028112
M196: Global | N196: =SUM(N191:N195) -> 4501.946179 | O196: =SUM(O191:O195) -> 11446.66699

Sheet Emissions Results
B6: Emissions by Region | V6: Pathway: | W6: =Pathways!E43 -> Please Select a Pathway
V10: 2050 Total Emissions (Mt CO2e)
U11: Region | V11: Baseline 'Do Nothing' Pathway | W11: User Pathway
U12: Africa | V12: ='Results Tables'!L95 -> 1559.770813 | W12: =IF(Pathways!$E$43 = "Please Select a Pathway", 'Results Tables'!L95, IF(Pathways!$E$43 = "Low Effort", 'Results Tables'!M95, IF(Pathways!$E$43 = "Medium Effort",'Results Tables'!N95, IF(Pathways!$E$43 = "High Effort",'Results Tables'!O95, IF(Pathways!$E$43 = "Advanced User Pathway",'Results Tables'!P95))))) -> 1559.770813
U13: Asia | V13: ='Results Tables'!L96 -> 11155.5173 | W13: =IF(Pathways!$E$43 = "Please Select a Pathway", 'Results Tables'!L96, IF(Pathways!$E$43 = "Low Effort", 'Results Tables'!M96, IF(Pathways!$E$43 = "Medium Effort",'Results Tables'!N96, IF(Pathways!$E$43 = "High Effort",'Results Tables'!O96, IF(Pathways!$E$43 = "Advanced User Pathway",'Results Tables'!P96))))) -> 11155.5173
U14: Europe | V14: ='Results Tables'!L97 -> 841.8656662 | W14: =IF(Pathways!$E$43 = "Please Select a Pathway", 'Results Tables'!L97, IF(Pathways!$E$43 = "Low Effort", 'Results Tables'!M97, IF(Pathways!$E$43 = "Medium Effort",'Results Tables'!N97, IF(Pathways!$E$43 = "High Effort",'Results Tables'!O97, IF(Pathways!$E$43 = "Advanced User Pathway",'Results Tables'!P97))))) -> 841.8656662
U15: North America | V15: ='Results Tables'!L98 -> 1718.410716 | W15: =IF(Pathways!$E$43 = "Please Select a Pathway", 'Results Tables'!L98, IF(Pathways!$E$43 = "Low Effort", 'Results Tables'!M98, IF(Pathways!$E$43 = "Medium Effort",'Results Tables'!N98, IF(Pathways!$E$43 = "High Effort",'Results Tables'!O98, IF(Pathways!$E$43 = "Advanced User Pathway",'Results Tables'!P98))))) -> 1718.410716
U16: South and Central America | V16: ='Results Tables'!L99 -> 594.0283673 | W16: =IF(Pathways!$E$43 = "Please Select a Pathway", 'Results Tables'!L99, IF(Pathways!$E$43 = "Low Effort", 'Results Tables'!M99, IF(Pathways!$E$43 = "Medium Effort",'Results Tables'!N99, IF(Pathways!$E$43 = "High Effort",'Results Tables'!O99, IF(Pathways!$E$43 = "Advanced User Pathway",'Results Tables'!P99))))) -> 594.0283673
U17: Global | V17: =SUM(V12:V16) -> 15869.59286 | W17: =SUM(W12:W16) -> 15869.59286
V21: 2050 Direct Emissions (Mt CO2e)
U22: Region | V22: Baseline 'Do Nothing' Pathway | W22: User Pathway
U23: Africa | V23: ='Results Tables'!L5 -> 156.9232756 | W23: =IF(Pathways!$E$43 = "Please Select a Pathway", 'Results Tables'!L5, IF(Pathways!$E$43 = "Low Effort", 'Results Tables'!M5, IF(Pathways!$E$43 = "Medium Effort",'Results Tables'!N5, IF(Pathways!$E$43 = "High Effort",'Results Tables'!O5, IF(Pathways!$E$43 = "Advanced User Pathway",'Results Tables'!P5))))) -> 156.9232756
U24: Asia | V24: ='Results Tables'!L6 -> 987.9543945 | W24: =IF(Pathways!$E$43 = "Please Select a Pathway", 'Results Tables'!L6, IF(Pathways!$E$43 = "Low Effort", 'Results Tables'!M6, IF(Pathways!$E$43 = "Medium Effort",'Results Tables'!N6, IF(Pathways!$E$43 = "High Effort",'Results Tables'!O6, IF(Pathways!$E$43 = "Advanced User Pathway",'Results Tables'!P6))))) -> 987.9543945
U25: Europe | V25: ='Results Tables'!L7 -> 135.9996014 | W25: =IF(Pathways!$E$43 = "Please Select a Pathway", 'Results Tables'!L7, IF(Pathways!$E$43 = "Low Effort", 'Results Tables'!M7, IF(Pathways!$E$43 = "Medium Effort",'Results Tables'!N7, IF(Pathways!$E$43 = "High Effort",'Results Tables'!O7, IF(Pathways!$E$43 = "Advanced User Pathway",'Results Tables'!P7))))) -> 135.9996014
U26: North America | V26: ='Results Tables'!L8 -> 160.1659171 | W26: =IF(Pathways!$E$43 = "Please Select a Pathway", 'Results Tables'!L8, IF(Pathways!$E$43 = "Low Effort", 'Results Tables'!M8, IF(Pathways!$E$43 = "Medium Effort",'Results Tables'!N8, IF(Pathways!$E$43 = "High Effort",'Results Tables'!O8, IF(Pathways!$E$43 = "Advanced User Pathway",'Results Tables'!P8))))) -> 160.1659171
U27: South and Central America | V27: ='Results Tables'!L9 -> 80.90664256 | W27: =IF(Pathways!$E$43 = "Please Select a Pathway", 'Results Tables'!L9, IF(Pathways!$E$43 = "Low Effort", 'Results Tables'!M9, IF(Pathways!$E$43 = "Medium Effort",'Results Tables'!N9, IF(Pathways!$E$43 = "High Effort",'Results Tables'!O9, IF(Pathways!$E$43 = "Advanced User Pathway",'Results Tables'!P9))))) -> 80.90664256
U28: Global | V28: =SUM(V23:V27) -> 1521.949831 | W28: =SUM(W23:W27) -> 1521.949831
V32: 2050 Indirect Emissions (Mt CO2e)
U33: Region | V33: Baseline 'Do Nothing' Pathway | W33: User Pathway
U34: Africa | V34: ='Results Tables'!L50 -> 1402.847537 | W34: =IF(Pathways!$E$43 = "Please Select a Pathway",'Results Tables'!L50, IF(Pathways!$E$43 = "Low Effort",'Results Tables'!M50, IF(Pathways!$E$43 = "Medium Effort",'Results Tables'!N50, IF(Pathways!$E$43 = "High Effort",'Results Tables'!O50, IF(Pathways!$E$43 = "Advanced User Pathway",'Results Tables'!P50))))) -> 1402.847537
U35: Asia | V35: ='Results Tables'!L51 -> 10167.5629 | W35: =IF(Pathways!$E$43 = "Please Select a Pathway",'Results Tables'!L51, IF(Pathways!$E$43 = "Low Effort",'Results Tables'!M51, IF(Pathways!$E$43 = "Medium Effort",'Results Tables'!N51, IF(Pathways!$E$43 = "High Effort",'Results Tables'!O51, IF(Pathways!$E$43 = "Advanced User Pathway",'Results Tables'!P51))))) -> 10167.5629
U36: Europe | V36: ='Results Tables'!L52 -> 705.8660648 | W36: =IF(Pathways!$E$43 = "Please Select a Pathway",'Results Tables'!L52, IF(Pathways!$E$43 = "Low Effort",'Results Tables'!M52, IF(Pathways!$E$43 = "Medium Effort",'Results Tables'!N52, IF(Pathways!$E$43 = "High Effort",'Results Tables'!O52, IF(Pathways!$E$43 = "Advanced User Pathway",'Results Tables'!P52))))) -> 705.8660648
U37: North America | V37: ='Results Tables'!L53 -> 1558.244799 | W37: =IF(Pathways!$E$43 = "Please Select a Pathway",'Results Tables'!L53, IF(Pathways!$E$43 = "Low Effort",'Results Tables'!M53, IF(Pathways!$E$43 = "Medium Effort",'Results Tables'!N53, IF(Pathways!$E$43 = "High Effort",'Results Tables'!O53, IF(Pathways!$E$43 = "Advanced User Pathway",'Results Tables'!P53))))) -> 1558.244799
U38: South and Central America | V38: ='Results Tables'!L54 -> 513.1217247 | W38: =IF(Pathways!$E$43 = "Please Select a Pathway",'Results Tables'!L54, IF(Pathways!$E$43 = "Low Effort",'Results Tables'!M54, IF(Pathways!$E$43 = "Medium Effort",'Results Tables'!N54, IF(Pathways!$E$43 = "High Effort",'Results Tables'!O54, IF(Pathways!$E$43 = "Advanced User Pathway",'Results Tables'!P54))))) -> 513.1217247
U39: Global | V39: =SUM(V34:V38) -> 14347.64303 | W39: =SUM(W34:W38) -> 14347.64303
B70: Emissions by Sector | V70: Pathway: | W70: =Pathways!E43 -> Please Select a Pathway
V75: 2050 Total Emissions (Mt CO2e)
U76: Sector | V76: Baseline 'Do Nothing' Pathway | W76: User Pathway
U77: Commercial AC | V77: ='Results Tables'!L106 -> 4523.850828 | W77: =IF(Pathways!$E$43 = "Please Select a Pathway", 'Results Tables'!L106, IF(Pathways!$E$43 = "Low Effort",'Results Tables'!M106, IF(Pathways!$E$43 = "Medium Effort",'Results Tables'!N106, IF(Pathways!$E$43 = "High Effort",'Results Tables'!O106, IF(Pathways!$E$43 = "Advanced User Pathway",'Results Tables'!P106))))) -> 4523.850828
U78: Commercial Refrigeration | V78: ='Results Tables'!L107 -> 1104.616748 | W78: =IF(Pathways!$E$43 = "Please Select a Pathway", 'Results Tables'!L107, IF(Pathways!$E$43 = "Low Effort",'Results Tables'!M107, IF(Pathways!$E$43 = "Medium Effort",'Results Tables'!N107, IF(Pathways!$E$43 = "High Effort",'Results Tables'!O107, IF(Pathways!$E$43 = "Advanced User Pathway",'Results Tables'!P107))))) -> 1104.616748
U79: Domestic AC | V79: ='Results Tables'!L108 -> 5256.412558 | W79: =IF(Pathways!$E$43 = "Please Select a Pathway", 'Results Tables'!L108, IF(Pathways!$E$43 = "Low Effort",'Results Tables'!M108, IF(Pathways!$E$43 = "Medium Effort",'Results Tables'!N108, IF(Pathways!$E$43 = "High Effort",'Results Tables'!O108, IF(Pathways!$E$43 = "Advanced User Pathway",'Results Tables'!P108))))) -> 5256.412558
U80: Domestic Refrigeration | V80: ='Results Tables'!L109 -> 724.7953466 | W80: =IF(Pathways!$E$43 = "Please Select a Pathway", 'Results Tables'!L109, IF(Pathways!$E$43 = "Low Effort",'Results Tables'!M109, IF(Pathways!$E$43 = "Medium Effort",'Results Tables'!N109, IF(Pathways!$E$43 = "High Effort",'Results Tables'!O109, IF(Pathways!$E$43 = "Advanced User Pathway",'Results Tables'!P109))))) -> 724.7953466
U81: Industrial AC | V81: ='Results Tables'!L110 -> 575.7430261 | W81: =IF(Pathways!$E$43 = "Please Select a Pathway", 'Results Tables'!L110, IF(Pathways!$E$43 = "Low Effort",'Results Tables'!M110, IF(Pathways!$E$43 = "Medium Effort",'Results Tables'!N110, IF(Pathways!$E$43 = "High Effort",'Results Tables'!O110, IF(Pathways!$E$43 = "Advanced User Pathway",'Results Tables'!P110))))) -> 575.7430261
U82: Industrial Refrigeration | V82: ='Results Tables'!L111 -> 447.6856859 | W82: =IF(Pathways!$E$43 = "Please Select a Pathway", 'Results Tables'!L111, IF(Pathways!$E$43 = "Low Effort",'Results Tables'!M111, IF(Pathways!$E$43 = "Medium Effort",'Results Tables'!N111, IF(Pathways!$E$43 = "High Effort",'Results Tables'!O111, IF(Pathways!$E$43 = "Advanced User Pathway",'Results Tables'!P111))))) -> 447.6856859
U83: Transport AC | V83: ='Results Tables'!L112 -> 2732.503672 | W83: =IF(Pathways!$E$43 = "Please Select a Pathway", 'Results Tables'!L112, IF(Pathways!$E$43 = "Low Effort",'Results Tables'!M112, IF(Pathways!$E$43 = "Medium Effort",'Results Tables'!N112, IF(Pathways!$E$43 = "High Effort",'Results Tables'!O112, IF(Pathways!$E$43 = "Advanced User Pathway",'Results Tables'!P112))))) -> 2732.503672
U84: Transport Refrigeration | V84: ='Results Tables'!L113 -> 503.9849928 | W84: =IF(Pathways!$E$43 = "Please Select a Pathway", 'Results Tables'!L113, IF(Pathways!$E$43 = "Low Effort",'Results Tables'!M113, IF(Pathways!$E$43 = "Medium Effort",'Results Tables'!N113, IF(Pathways!$E$43 = "High Effort",'Results Tables'!O113, IF(Pathways!$E$43 = "Advanced User Pathway",'Results Tables'!P113))))) -> 503.9849928
U85: Total | V85: =SUM(V77:V84) -> 15869.59286 | W85: =SUM(W77:W84) -> 15869.59286
V88: 2050 Direct Emissions (Mt CO2e)
U89: Sector | V89: Baseline 'Do Nothing' Pathway | W89: User Pathway
U90: Commercial AC | V90: ='Results Tables'!L16 -> 335.9728822 | W90: =IF(Pathways!$E$43 = "Please Select a Pathway", 'Results Tables'!L16, IF(Pathways!$E$43 = "Low Effort",'Results Tables'!M16, IF(Pathways!$E$43 = "Medium Effort",'Results Tables'!N16, IF(Pathways!$E$43 = "High Effort",'Results Tables'!O16, IF(Pathways!$E$43 = "Advanced User Pathway",'Results Tables'!P16))))) -> 335.9728822
U91: Commercial Refrigeration | V91: ='Results Tables'!L17 -> 306.3110517 | W91: =IF(Pathways!$E$43 = "Please Select a Pathway", 'Results Tables'!L17, IF(Pathways!$E$43 = "Low Effort",'Results Tables'!M17, IF(Pathways!$E$43 = "Medium Effort",'Results Tables'!N17, IF(Pathways!$E$43 = "High Effort",'Results Tables'!O17, IF(Pathways!$E$43 = "Advanced User Pathway",'Results Tables'!P17))))) -> 306.3110517
U92: Domestic AC | V92: ='Results Tables'!L18 -> 324.2835759 | W92: =IF(Pathways!$E$43 = "Please Select a Pathway", 'Results Tables'!L18, IF(Pathways!$E$43 = "Low Effort",'Results Tables'!M18, IF(Pathways!$E$43 = "Medium Effort",'Results Tables'!N18, IF(Pathways!$E$43 = "High Effort",'Results Tables'!O18, IF(Pathways!$E$43 = "Advanced User Pathway",'Results Tables'!P18))))) -> 324.2835759
U93: Domestic Refrigeration | V93: ='Results Tables'!L19 -> 11.77225814 | W93: =IF(Pathways!$E$43 = "Please Select a Pathway", 'Results Tables'!L19, IF(Pathways!$E$43 = "Low Effort",'Results Tables'!M19, IF(Pathways!$E$43 = "Medium Effort",'Results Tables'!N19, IF(Pathways!$E$43 = "High Effort",'Results Tables'!O19, IF(Pathways!$E$43 = "Advanced User Pathway",'Results Tables'!P19))))) -> 11.77225814
U94: Industrial AC | V94: ='Results Tables'!L20 -> 124.5130275 | W94: =IF(Pathways!$E$43 = "Please Select a Pathway", 'Results Tables'!L20, IF(Pathways!$E$43 = "Low Effort",'Results Tables'!M20, IF(Pathways!$E$43 = "Medium Effort",'Results Tables'!N20, IF(Pathways!$E$43 = "High Effort",'Results Tables'!O20, IF(Pathways!$E$43 = "Advanced User Pathway",'Results Tables'!P20))))) -> 124.5130275
U95: Industrial Refrigeration | V95: ='Results Tables'!L21 -> 114.315739 | W95: =IF(Pathways!$E$43 = "Please Select a Pathway", 'Results Tables'!L21, IF(Pathways!$E$43 = "Low Effort",'Results Tables'!M21, IF(Pathways!$E$43 = "Medium Effort",'Results Tables'!N21, IF(Pathways!$E$43 = "High Effort",'Results Tables'!O21, IF(Pathways!$E$43 = "Advanced User Pathway",'Results Tables'!P21))))) -> 114.315739
U96: Transport AC | V96: ='Results Tables'!L22 -> 222.7500144 | W96: =IF(Pathways!$E$43 = "Please Select a Pathway", 'Results Tables'!L22, IF(Pathways!$E$43 = "Low Effort",'Results Tables'!M22, IF(Pathways!$E$43 = "Medium Effort",'Results Tables'!N22, IF(Pathways!$E$43 = "High Effort",'Results Tables'!O22, IF(Pathways!$E$43 = "Advanced User Pathway",'Results Tables'!P22))))) -> 222.7500144
U97: Transport Refrigeration | V97: ='Results Tables'!L23 -> 82.0312823 | W97: =IF(Pathways!$E$43 = "Please Select a Pathway", 'Results Tables'!L23, IF(Pathways!$E$43 = "Low Effort",'Results Tables'!M23, IF(Pathways!$E$43 = "Medium Effort",'Results Tables'!N23, IF(Pathways!$E$43 = "High Effort",'Results Tables'!O23, IF(Pathways!$E$43 = "Advanced User Pathway",'Results Tables'!P23))))) -> 82.0312823
U98: Total | V98: =SUM(V90:V97) -> 1521.949831 | W98: =SUM(W90:W97) -> 1521.949831
V101: 2050 Indirect Emissions (Mt CO2e)
U102: Sector | V102: Baseline 'Do Nothing' Pathway | W102: User Pathway
U103: Commercial AC | V103: ='Results Tables'!L61 -> 4187.877946 | W103: =IF(Pathways!$E$43 = "Please Select a Pathway",'Results Tables'!L61, IF(Pathways!$E$43 = "Low Effort",'Results Tables'!M61, IF(Pathways!$E$43 = "Medium Effort",'Results Tables'!N61, IF(Pathways!$E$43 = "High Effort",'Results Tables'!O61, IF(Pathways!$E$43 = "Advanced User Pathway",'Results Tables'!P61))))) -> 4187.877946
U104: Commercial Refrigeration | V104: ='Results Tables'!L62 -> 798.3056967 | W104: =IF(Pathways!$E$43 = "Please Select a Pathway",'Results Tables'!L62, IF(Pathways!$E$43 = "Low Effort",'Results Tables'!M62, IF(Pathways!$E$43 = "Medium Effort",'Results Tables'!N62, IF(Pathways!$E$43 = "High Effort",'Results Tables'!O62, IF(Pathways!$E$43 = "Advanced User Pathway",'Results Tables'!P62))))) -> 798.3056967
U105: Domestic AC | V105: ='Results Tables'!L63 -> 4932.128983 | W105: =IF(Pathways!$E$43 = "Please Select a Pathway",'Results Tables'!L63, IF(Pathways!$E$43 = "Low Effort",'Results Tables'!M63, IF(Pathways!$E$43 = "Medium Effort",'Results Tables'!N63, IF(Pathways!$E$43 = "High Effort",'Results Tables'!O63, IF(Pathways!$E$43 = "Advanced User Pathway",'Results Tables'!P63))))) -> 4932.128983
U106: Domestic Refrigeration | V106: ='Results Tables'!L64 -> 713.0230884 | W106: =IF(Pathways!$E$43 = "Please Select a Pathway",'Results Tables'!L64, IF(Pathways!$E$43 = "Low Effort",'Results Tables'!M64, IF(Pathways!$E$43 = "Medium Effort",'Results Tables'!N64, IF(Pathways!$E$43 = "High Effort",'Results Tables'!O64, IF(Pathways!$E$43 = "Advanced User Pathway",'Results Tables'!P64))))) -> 713.0230884
U107: Industrial AC | V107: ='Results Tables'!L65 -> 451.2299987 | W107: =IF(Pathways!$E$43 = "Please Select a Pathway",'Results Tables'!L65, IF(Pathways!$E$43 = "Low Effort",'Results Tables'!M65, IF(Pathways!$E$43 = "Medium Effort",'Results Tables'!N65, IF(Pathways!$E$43 = "High Effort",'Results Tables'!O65, IF(Pathways!$E$43 = "Advanced User Pathway",'Results Tables'!P65))))) -> 451.2299987
U108: Industrial Refrigeration | V108: ='Results Tables'!L66 -> 333.3699469 | W108: =IF(Pathways!$E$43 = "Please Select a Pathway",'Results Tables'!L66, IF(Pathways!$E$43 = "Low Effort",'Results Tables'!M66, IF(Pathways!$E$43 = "Medium Effort",'Results Tables'!N66, IF(Pathways!$E$43 = "High Effort",'Results Tables'!O66, IF(Pathways!$E$43 = "Advanced User Pathway",'Results Tables'!P66))))) -> 333.3699469
U109: Transport AC | V109: ='Results Tables'!L67 -> 2509.753657 | W109: =IF(Pathways!$E$43 = "Please Select a Pathway",'Results Tables'!L67, IF(Pathways!$E$43 = "Low Effort",'Results Tables'!M67, IF(Pathways!$E$43 = "Medium Effort",'Results Tables'!N67, IF(Pathways!$E$43 = "High Effort",'Results Tables'!O67, IF(Pathways!$E$43 = "Advanced User Pathway",'Results Tables'!P67))))) -> 2509.753657
U110: Transport Refrigeration | V110: ='Results Tables'!L68 -> 421.9537105 | W110: =IF(Pathways!$E$43 = "Please Select a Pathway",'Results Tables'!L68, IF(Pathways!$E$43 = "Low Effort",'Results Tables'!M68, IF(Pathways!$E$43 = "Medium Effort",'Results Tables'!N68, IF(Pathways!$E$43 = "High Effort",'Results Tables'!O68, IF(Pathways!$E$43 = "Advanced User Pathway",'Results Tables'!P68))))) -> 421.9537105
U111: Total | V111: =SUM(V103:V110) -> 14347.64303 | W111: =SUM(W103:W110) -> 14347.64303
B134: Emissions by Region and Sector | V134: Pathway: | W134: =Pathways!E43 -> Please Select a Pathway
V142: 2050 Total Emissions (Mt CO2e)
T143: Region | U143: Sector | V143: Baseline 'Do Nothing' Pathway | W143: User Pathway
T144: Africa | U144: Commercial AC | V144: ='Results Tables'!D95 -> 546.09584 | W144: =IF(Pathways!$E$43="Please Select a Pathway",'Results Tables'!D95,IF(Pathways!$E$43="Low Effort",'Results Tables'!E95,IF(Pathways!$E$43="Medium Effort",'Results Tables'!F95,IF(Pathways!$E$43="High Effort",'Results Tables'!G95,IF(Pathways!$E$43="Advanced User Pathway",'Results Tables'!H95))))) -> 546.09584
U145: Commercial Refrigeration | V145: ='Results Tables'!D96 -> 120.2573328 | W145: =IF(Pathways!$E$43="Please Select a Pathway",'Results Tables'!D96,IF(Pathways!$E$43="Low Effort",'Results Tables'!E96,IF(Pathways!$E$43="Medium Effort",'Results Tables'!F96,IF(Pathways!$E$43="High Effort",'Results Tables'!G96,IF(Pathways!$E$43="Advanced User Pathway",'Results Tables'!H96))))) -> 120.2573328
U146: Domestic AC | V146: ='Results Tables'!D97 -> 442.8539964 | W146: =IF(Pathways!$E$43="Please Select a Pathway",'Results Tables'!D97,IF(Pathways!$E$43="Low Effort",'Results Tables'!E97,IF(Pathways!$E$43="Medium Effort",'Results Tables'!F97,IF(Pathways!$E$43="High Effort",'Results Tables'!G97,IF(Pathways!$E$43="Advanced User Pathway",'Results Tables'!H97))))) -> 442.8539964
U147: Domestic Refrigeration | V147: ='Results Tables'!D98 -> 71.99836347 | W147: =IF(Pathways!$E$43="Please Select a Pathway",'Results Tables'!D98,IF(Pathways!$E$43="Low Effort",'Results Tables'!E98,IF(Pathways!$E$43="Medium Effort",'Results Tables'!F98,IF(Pathways!$E$43="High Effort",'Results Tables'!G98,IF(Pathways!$E$43="Advanced User Pathway",'Results Tables'!H98))))) -> 71.99836347
U148: Industrial AC | V148: ='Results Tables'!D99 -> 43.148108 | W148: =IF(Pathways!$E$43="Please Select a Pathway",'Results Tables'!D99,IF(Pathways!$E$43="Low Effort",'Results Tables'!E99,IF(Pathways!$E$43="Medium Effort",'Results Tables'!F99,IF(Pathways!$E$43="High Effort",'Results Tables'!G99,IF(Pathways!$E$43="Advanced User Pathway",'Results Tables'!H99))))) -> 43.148108
U149: Industrial Refrigeration | V149: ='Results Tables'!D100 -> 31.20793559 | W149: =IF(Pathways!$E$43="Please Select a Pathway",'Results Tables'!D100,IF(Pathways!$E$43="Low Effort",'Results Tables'!E100,IF(Pathways!$E$43="Medium Effort",'Results Tables'!F100,IF(Pathways!$E$43="High Effort",'Results Tables'!G100,IF(Pathways!$E$43="Advanced User Pathway",'Results Tables'!H100))))) -> 31.20793559
U150: Transport AC | V150: ='Results Tables'!D101 -> 250.1156712 | W150: =IF(Pathways!$E$43="Please Select a Pathway",'Results Tables'!D101,IF(Pathways!$E$43="Low Effort",'Results Tables'!E101,IF(Pathways!$E$43="Medium Effort",'Results Tables'!F101,IF(Pathways!$E$43="High Effort",'Results Tables'!G101,IF(Pathways!$E$43="Advanced User Pathway",'Results Tables'!H101))))) -> 250.1156712
U151: Transport Refrigeration | V151: ='Results Tables'!D102 -> 54.09356517 | W151: =IF(Pathways!$E$43="Please Select a Pathway",'Results Tables'!D102,IF(Pathways!$E$43="Low Effort",'Results Tables'!E102,IF(Pathways!$E$43="Medium Effort",'Results Tables'!F102,IF(Pathways!$E$43="High Effort",'Results Tables'!G102,IF(Pathways!$E$43="Advanced User Pathway",'Results Tables'!H102))))) -> 54.09356517
T152: Asia | U152: Commercial AC | V152: ='Results Tables'!D103 -> 3253.802123 | W152: =IF(Pathways!$E$43="Please Select a Pathway",'Results Tables'!D103,IF(Pathways!$E$43="Low Effort",'Results Tables'!E103,IF(Pathways!$E$43="Medium Effort",'Results Tables'!F103,IF(Pathways!$E$43="High Effort",'Results Tables'!G103,IF(Pathways!$E$43="Advanced User Pathway",'Results Tables'!H103))))) -> 3253.802123
U153: Commercial Refrigeration | V153: ='Results Tables'!D104 -> 745.6185473 | W153: =IF(Pathways!$E$43="Please Select a Pathway",'Results Tables'!D104,IF(Pathways!$E$43="Low Effort",'Results Tables'!E104,IF(Pathways!$E$43="Medium Effort",'Results Tables'!F104,IF(Pathways!$E$43="High Effort",'Results Tables'!G104,IF(Pathways!$E$43="Advanced User Pathway",'Results Tables'!H104))))) -> 745.6185473
U154: Domestic AC | V154: ='Results Tables'!D105 -> 3963.726907 | W154: =IF(Pathways!$E$43="Please Select a Pathway",'Results Tables'!D105,IF(Pathways!$E$43="Low Effort",'Results Tables'!E105,IF(Pathways!$E$43="Medium Effort",'Results Tables'!F105,IF(Pathways!$E$43="High Effort",'Results Tables'!G105,IF(Pathways!$E$43="Advanced User Pathway",'Results Tables'!H105))))) -> 3963.726907
U155: Domestic Refrigeration | V155: ='Results Tables'!D106 -> 529.1303459 | W155: =IF(Pathways!$E$43="Please Select a Pathway",'Results Tables'!D106,IF(Pathways!$E$43="Low Effort",'Results Tables'!E106,IF(Pathways!$E$43="Medium Effort",'Results Tables'!F106,IF(Pathways!$E$43="High Effort",'Results Tables'!G106,IF(Pathways!$E$43="Advanced User Pathway",'Results Tables'!H106))))) -> 529.1303459
U156: Industrial AC | V156: ='Results Tables'!D107 -> 380.655182 | W156: =IF(Pathways!$E$43="Please Select a Pathway",'Results Tables'!D107,IF(Pathways!$E$43="Low Effort",'Results Tables'!E107,IF(Pathways!$E$43="Medium Effort",'Results Tables'!F107,IF(Pathways!$E$43="High Effort",'Results Tables'!G107,IF(Pathways!$E$43="Advanced User Pathway",'Results Tables'!H107))))) -> 380.655182
U157: Industrial Refrigeration | V157: ='Results Tables'!D108 -> 287.7221171 | W157: =IF(Pathways!$E$43="Please Select a Pathway",'Results Tables'!D108,IF(Pathways!$E$43="Low Effort",'Results Tables'!E108,IF(Pathways!$E$43="Medium Effort",'Results Tables'!F108,IF(Pathways!$E$43="High Effort",'Results Tables'!G108,IF(Pathways!$E$43="Advanced User Pathway",'Results Tables'!H108))))) -> 287.7221171
U158: Transport AC | V158: ='Results Tables'!D109 -> 1585.827184 | W158: =IF(Pathways!$E$43="Please Select a Pathway",'Results Tables'!D109,IF(Pathways!$E$43="Low Effort",'Results Tables'!E109,IF(Pathways!$E$43="Medium Effort",'Results Tables'!F109,IF(Pathways!$E$43="High Effort",'Results Tables'!G109,IF(Pathways!$E$43="Advanced User Pathway",'Results Tables'!H109))))) -> 1585.827184
U159: Transport Refrigeration | V159: ='Results Tables'!D110 -> 409.03489 | W159: =IF(Pathways!$E$43="Please Select a Pathway",'Results Tables'!D110,IF(Pathways!$E$43="Low Effort",'Results Tables'!E110,IF(Pathways!$E$43="Medium Effort",'Results Tables'!F110,IF(Pathways!$E$43="High Effort",'Results Tables'!G110,IF(Pathways!$E$43="Advanced User Pathway",'Results Tables'!H110))))) -> 409.03489
T160: Europe | U160: Commercial AC | V160: ='Results Tables'!D111 -> 104.8403755 | W160: =IF(Pathways!$E$43="Please Select a Pathway",'Results Tables'!D111,IF(Pathways!$E$43="Low Effort",'Results Tables'!E111,IF(Pathways!$E$43="Medium Effort",'Results Tables'!F111,IF(Pathways!$E$43="High Effort",'Results Tables'!G111,IF(Pathways!$E$43="Advanced User Pathway",'Results Tables'!H111))))) -> 104.8403755
U161: Commercial Refrigeration | V161: ='Results Tables'!D112 -> 126.9120983 | W161: =IF(Pathways!$E$43="Please Select a Pathway",'Results Tables'!D112,IF(Pathways!$E$43="Low Effort",'Results Tables'!E112,IF(Pathways!$E$43="Medium Effort",'Results Tables'!F112,IF(Pathways!$E$43="High Effort",'Results Tables'!G112,IF(Pathways!$E$43="Advanced User Pathway",'Results Tables'!H112))))) -> 126.9120983
U162: Domestic AC | V162: ='Results Tables'!D113 -> 51.08523567 | W162: =IF(Pathways!$E$43="Please Select a Pathway",'Results Tables'!D113,IF(Pathways!$E$43="Low Effort",'Results Tables'!E113,IF(Pathways!$E$43="Medium Effort",'Results Tables'!F113,IF(Pathways!$E$43="High Effort",'Results Tables'!G113,IF(Pathways!$E$43="Advanced User Pathway",'Results Tables'!H113))))) -> 51.08523567
U163: Domestic Refrigeration | V163: ='Results Tables'!D114 -> 55.93640308 | W163: =IF(Pathways!$E$43="Please Select a Pathway",'Results Tables'!D114,IF(Pathways!$E$43="Low Effort",'Results Tables'!E114,IF(Pathways!$E$43="Medium Effort",'Results Tables'!F114,IF(Pathways!$E$43="High Effort",'Results Tables'!G114,IF(Pathways!$E$43="Advanced User Pathway",'Results Tables'!H114))))) -> 55.93640308
U164: Industrial AC | V164: ='Results Tables'!D115 -> 43.57146501 | W164: =IF(Pathways!$E$43="Please Select a Pathway",'Results Tables'!D115,IF(Pathways!$E$43="Low Effort",'Results Tables'!E115,IF(Pathways!$E$43="Medium Effort",'Results Tables'!F115,IF(Pathways!$E$43="High Effort",'Results Tables'!G115,IF(Pathways!$E$43="Advanced User Pathway",'Results Tables'!H115))))) -> 43.57146501
U165: Industrial Refrigeration | V165: ='Results Tables'!D116 -> 62.86240557 | W165: =IF(Pathways!$E$43="Please Select a Pathway",'Results Tables'!D116,IF(Pathways!$E$43="Low Effort",'Results Tables'!E116,IF(Pathways!$E$43="Medium Effort",'Results Tables'!F116,IF(Pathways!$E$43="High Effort",'Results Tables'!G116,IF(Pathways!$E$43="Advanced User Pathway",'Results Tables'!H116))))) -> 62.86240557
U166: Transport AC | V166: ='Results Tables'!D117 -> 381.6692365 | W166: =IF(Pathways!$E$43="Please Select a Pathway",'Results Tables'!D117,IF(Pathways!$E$43="Low Effort",'Results Tables'!E117,IF(Pathways!$E$43="Medium Effort",'Results Tables'!F117,IF(Pathways!$E$43="High Effort",'Results Tables'!G117,IF(Pathways!$E$43="Advanced User Pathway",'Results Tables'!H117))))) -> 381.6692365
U167: Transport Refrigeration | V167: ='Results Tables'!D118 -> 14.98844648 | W167: =IF(Pathways!$E$43="Please Select a Pathway",'Results Tables'!D118,IF(Pathways!$E$43="Low Effort",'Results Tables'!E118,IF(Pathways!$E$43="Medium Effort",'Results Tables'!F118,IF(Pathways!$E$43="High Effort",'Results Tables'!G118,IF(Pathways!$E$43="Advanced User Pathway",'Results Tables'!H118))))) -> 14.98844648
T168: North America | U168: Commercial AC | V168: ='Results Tables'!D119 -> 546.6757362 | W168: =IF(Pathways!$E$43="Please Select a Pathway",'Results Tables'!D119,IF(Pathways!$E$43="Low Effort",'Results Tables'!E119,IF(Pathways!$E$43="Medium Effort",'Results Tables'!F119,IF(Pathways!$E$43="High Effort",'Results Tables'!G119,IF(Pathways!$E$43="Advanced User Pathway",'Results Tables'!H119))))) -> 546.6757362
U169: Commercial Refrigeration | V169: ='Results Tables'!D120 -> 59.53114372 | W169: =IF(Pathways!$E$43="Please Select a Pathway",'Results Tables'!D120,IF(Pathways!$E$43="Low Effort",'Results Tables'!E120,IF(Pathways!$E$43="Medium Effort",'Results Tables'!F120,IF(Pathways!$E$43="High Effort",'Results Tables'!G120,IF(Pathways!$E$43="Advanced User Pathway",'Results Tables'!H120))))) -> 59.53114372
U170: Domestic AC | V170: ='Results Tables'!D121 -> 629.0716459 | W170: =IF(Pathways!$E$43="Please Select a Pathway",'Results Tables'!D121,IF(Pathways!$E$43="Low Effort",'Results Tables'!E121,IF(Pathways!$E$43="Medium Effort",'Results Tables'!F121,IF(Pathways!$E$43="High Effort",'Results Tables'!G121,IF(Pathways!$E$43="Advanced User Pathway",'Results Tables'!H121))))) -> 629.0716459
U171: Domestic Refrigeration | V171: ='Results Tables'!D122 -> 48.99237509 | W171: =IF(Pathways!$E$43="Please Select a Pathway",'Results Tables'!D122,IF(Pathways!$E$43="Low Effort",'Results Tables'!E122,IF(Pathways!$E$43="Medium Effort",'Results Tables'!F122,IF(Pathways!$E$43="High Effort",'Results Tables'!G122,IF(Pathways!$E$43="Advanced User Pathway",'Results Tables'!H122))))) -> 48.99237509
U172: Industrial AC | V172: ='Results Tables'!D123 -> 98.04610976 | W172: =IF(Pathways!$E$43="Please Select a Pathway",'Results Tables'!D123,IF(Pathways!$E$43="Low Effort",'Results Tables'!E123,IF(Pathways!$E$43="Medium Effort",'Results Tables'!F123,IF(Pathways!$E$43="High Effort",'Results Tables'!G123,IF(Pathways!$E$43="Advanced User Pathway",'Results Tables'!H123))))) -> 98.04610976
U173: Industrial Refrigeration | V173: ='Results Tables'!D124 -> 58.37120721 | W173: =IF(Pathways!$E$43="Please Select a Pathway",'Results Tables'!D124,IF(Pathways!$E$43="Low Effort",'Results Tables'!E124,IF(Pathways!$E$43="Medium Effort",'Results Tables'!F124,IF(Pathways!$E$43="High Effort",'Results Tables'!G124,IF(Pathways!$E$43="Advanced User Pathway",'Results Tables'!H124))))) -> 58.37120721
U174: Transport AC | V174: ='Results Tables'!D125 -> 261.0530557 | W174: =IF(Pathways!$E$43="Please Select a Pathway",'Results Tables'!D125,IF(Pathways!$E$43="Low Effort",'Results Tables'!E125,IF(Pathways!$E$43="Medium Effort",'Results Tables'!F125,IF(Pathways!$E$43="High Effort",'Results Tables'!G125,IF(Pathways!$E$43="Advanced User Pathway",'Results Tables'!H125))))) -> 261.0530557
U175: Transport Refrigeration | V175: ='Results Tables'!D126 -> 16.66944214 | W175: =IF(Pathways!$E$43="Please Select a Pathway",'Results Tables'!D126,IF(Pathways!$E$43="Low Effort",'Results Tables'!E126,IF(Pathways!$E$43="Medium Effort",'Results Tables'!F126,IF(Pathways!$E$43="High Effort",'Results Tables'!G126,IF(Pathways!$E$43="Advanced User Pathway",'Results Tables'!H126))))) -> 16.66944214
T176: South and Central America | U176: Commercial AC | V176: ='Results Tables'!D127 -> 72.43675356 | W176: =IF(Pathways!$E$43="Please Select a Pathway",'Results Tables'!D127,IF(Pathways!$E$43="Low Effort",'Results Tables'!E127,IF(Pathways!$E$43="Medium Effort",'Results Tables'!F127,IF(Pathways!$E$43="High Effort",'Results Tables'!G127,IF(Pathways!$E$43="Advanced User Pathway",'Results Tables'!H127))))) -> 72.43675356
U177: Commercial Refrigeration | V177: ='Results Tables'!D128 -> 52.29762629 | W177: =IF(Pathways!$E$43="Please Select a Pathway",'Results Tables'!D128,IF(Pathways!$E$43="Low Effort",'Results Tables'!E128,IF(Pathways!$E$43="Medium Effort",'Results Tables'!F128,IF(Pathways!$E$43="High Effort",'Results Tables'!G128,IF(Pathways!$E$43="Advanced User Pathway",'Results Tables'!H128))))) -> 52.29762629
U178: Domestic AC | V178: ='Results Tables'!D129 -> 169.6747736 | W178: =IF(Pathways!$E$43="Please Select a Pathway",'Results Tables'!D129,IF(Pathways!$E$43="Low Effort",'Results Tables'!E129,IF(Pathways!$E$43="Medium Effort",'Results Tables'!F129,IF(Pathways!$E$43="High Effort",'Results Tables'!G129,IF(Pathways!$E$43="Advanced User Pathway",'Results Tables'!H129))))) -> 169.6747736
U179: Domestic Refrigeration | V179: ='Results Tables'!D130 -> 18.73785901 | W179: =IF(Pathways!$E$43="Please Select a Pathway",'Results Tables'!D130,IF(Pathways!$E$43="Low Effort",'Results Tables'!E130,IF(Pathways!$E$43="Medium Effort",'Results Tables'!F130,IF(Pathways!$E$43="High Effort",'Results Tables'!G130,IF(Pathways!$E$43="Advanced User Pathway",'Results Tables'!H130))))) -> 18.73785901
U180: Industrial AC | V180: ='Results Tables'!D131 -> 10.32216137 | W180: =IF(Pathways!$E$43="Please Select a Pathway",'Results Tables'!D131,IF(Pathways!$E$43="Low Effort",'Results Tables'!E131,IF(Pathways!$E$43="Medium Effort",'Results Tables'!F131,IF(Pathways!$E$43="High Effort",'Results Tables'!G131,IF(Pathways!$E$43="Advanced User Pathway",'Results Tables'!H131))))) -> 10.32216137
U181: Industrial Refrigeration | V181: ='Results Tables'!D132 -> 7.522020482 | W181: =IF(Pathways!$E$43="Please Select a Pathway",'Results Tables'!D132,IF(Pathways!$E$43="Low Effort",'Results Tables'!E132,IF(Pathways!$E$43="Medium Effort",'Results Tables'!F132,IF(Pathways!$E$43="High Effort",'Results Tables'!G132,IF(Pathways!$E$43="Advanced User Pathway",'Results Tables'!H132))))) -> 7.522020482
U182: Transport AC | V182: ='Results Tables'!D123 -> 98.04610976 | W182: =IF(Pathways!$E$43="Please Select a Pathway",'Results Tables'!D123,IF(Pathways!$E$43="Low Effort",'Results Tables'!E123,IF(Pathways!$E$43="Medium Effort",'Results Tables'!F123,IF(Pathways!$E$43="High Effort",'Results Tables'!G123,IF(Pathways!$E$43="Advanced User Pathway",'Results Tables'!H123))))) -> 98.04610976
U183: Transport Refrigeration | V183: ='Results Tables'!D124 -> 58.37120721 | W183: =IF(Pathways!$E$43="Please Select a Pathway",'Results Tables'!D124,IF(Pathways!$E$43="Low Effort",'Results Tables'!E124,IF(Pathways!$E$43="Medium Effort",'Results Tables'!F124,IF(Pathways!$E$43="High Effort",'Results Tables'!G124,IF(Pathways!$E$43="Advanced User Pathway",'Results Tables'!H124))))) -> 58.37120721
V187: 2050 Direct Emissions (Mt CO2e)
T188: Region | U188: Sector | V188: Baseline 'Do Nothing' Pathway | W188: User Pathway
T189: Africa | U189: Commercial AC | V189: ='Results Tables'!D5 -> 45.18960354 | W189: =IF(Pathways!$E$43="Please Select a Pathway",'Results Tables'!D5,IF(Pathways!$E$43="Low Effort",'Results Tables'!E5,IF(Pathways!$E$43="Medium Effort",'Results Tables'!F5,IF(Pathways!$E$43="High Effort",'Results Tables'!G5,IF(Pathways!$E$43="Advanced User Pathway",'Results Tables'!H5))))) -> 45.18960354
U190: Commercial Refrigeration | V190: ='Results Tables'!D6 -> 39.53847347 | W190: =IF(Pathways!$E$43="Please Select a Pathway",'Results Tables'!D6,IF(Pathways!$E$43="Low Effort",'Results Tables'!E6,IF(Pathways!$E$43="Medium Effort",'Results Tables'!F6,IF(Pathways!$E$43="High Effort",'Results Tables'!G6,IF(Pathways!$E$43="Advanced User Pathway",'Results Tables'!H6))))) -> 39.53847347
U191: Domestic AC | V191: ='Results Tables'!D7 -> 20.02646049 | W191: =IF(Pathways!$E$43="Please Select a Pathway",'Results Tables'!D7,IF(Pathways!$E$43="Low Effort",'Results Tables'!E7,IF(Pathways!$E$43="Medium Effort",'Results Tables'!F7,IF(Pathways!$E$43="High Effort",'Results Tables'!G7,IF(Pathways!$E$43="Advanced User Pathway",'Results Tables'!H7))))) -> 20.02646049
U192: Domestic Refrigeration | V192: ='Results Tables'!D8 -> 1.240888425 | W192: =IF(Pathways!$E$43="Please Select a Pathway",'Results Tables'!D8,IF(Pathways!$E$43="Low Effort",'Results Tables'!E8,IF(Pathways!$E$43="Medium Effort",'Results Tables'!F8,IF(Pathways!$E$43="High Effort",'Results Tables'!G8,IF(Pathways!$E$43="Advanced User Pathway",'Results Tables'!H8))))) -> 1.240888425
U193: Industrial AC | V193: ='Results Tables'!D9 -> 8.120526014 | W193: =IF(Pathways!$E$43="Please Select a Pathway",'Results Tables'!D9,IF(Pathways!$E$43="Low Effort",'Results Tables'!E9,IF(Pathways!$E$43="Medium Effort",'Results Tables'!F9,IF(Pathways!$E$43="High Effort",'Results Tables'!G9,IF(Pathways!$E$43="Advanced User Pathway",'Results Tables'!H9))))) -> 8.120526014
U194: Industrial Refrigeration | V194: ='Results Tables'!D10 -> 8.707100833 | W194: =IF(Pathways!$E$43="Please Select a Pathway",'Results Tables'!D10,IF(Pathways!$E$43="Low Effort",'Results Tables'!E10,IF(Pathways!$E$43="Medium Effort",'Results Tables'!F10,IF(Pathways!$E$43="High Effort",'Results Tables'!G10,IF(Pathways!$E$43="Advanced User Pathway",'Results Tables'!H10))))) -> 8.707100833
U195: Transport AC | V195: ='Results Tables'!D11 -> 21.35849526 | W195: =IF(Pathways!$E$43="Please Select a Pathway",'Results Tables'!D11,IF(Pathways!$E$43="Low Effort",'Results Tables'!E11,IF(Pathways!$E$43="Medium Effort",'Results Tables'!F11,IF(Pathways!$E$43="High Effort",'Results Tables'!G11,IF(Pathways!$E$43="Advanced User Pathway",'Results Tables'!H11))))) -> 21.35849526
U196: Transport Refrigeration | V196: ='Results Tables'!D12 -> 12.74172752 | W196: =IF(Pathways!$E$43="Please Select a Pathway",'Results Tables'!D12,IF(Pathways!$E$43="Low Effort",'Results Tables'!E12,IF(Pathways!$E$43="Medium Effort",'Results Tables'!F12,IF(Pathways!$E$43="High Effort",'Results Tables'!G12,IF(Pathways!$E$43="Advanced User Pathway",'Results Tables'!H12))))) -> 12.74172752
T197: Asia | U197: Commercial AC | V197: ='Results Tables'!D13 -> 226.5513739 | W197: =IF(Pathways!$E$43="Please Select a Pathway",'Results Tables'!D13,IF(Pathways!$E$43="Low Effort",'Results Tables'!E13,IF(Pathways!$E$43="Medium Effort",'Results Tables'!F13,IF(Pathways!$E$43="High Effort",'Results Tables'!G13,IF(Pathways!$E$43="Advanced User Pathway",'Results Tables'!H13))))) -> 226.5513739
U198: Commercial Refrigeration | V198: ='Results Tables'!D14 -> 173.1716447 | W198: =IF(Pathways!$E$43="Please Select a Pathway",'Results Tables'!D14,IF(Pathways!$E$43="Low Effort",'Results Tables'!E14,IF(Pathways!$E$43="Medium Effort",'Results Tables'!F14,IF(Pathways!$E$43="High Effort",'Results Tables'!G14,IF(Pathways!$E$43="Advanced User Pathway",'Results Tables'!H14))))) -> 173.1716447
U199: Domestic AC | V199: ='Results Tables'!D15 -> 241.4263899 | W199: =IF(Pathways!$E$43="Please Select a Pathway",'Results Tables'!D15,IF(Pathways!$E$43="Low Effort",'Results Tables'!E15,IF(Pathways!$E$43="Medium Effort",'Results Tables'!F15,IF(Pathways!$E$43="High Effort",'Results Tables'!G15,IF(Pathways!$E$43="Advanced User Pathway",'Results Tables'!H15))))) -> 241.4263899
U200: Domestic Refrigeration | V200: ='Results Tables'!D16 -> 7.587291768 | W200: =IF(Pathways!$E$43="Please Select a Pathway",'Results Tables'!D16,IF(Pathways!$E$43="Low Effort",'Results Tables'!E16,IF(Pathways!$E$43="Medium Effort",'Results Tables'!F16,IF(Pathways!$E$43="High Effort",'Results Tables'!G16,IF(Pathways!$E$43="Advanced User Pathway",'Results Tables'!H16))))) -> 7.587291768
U201: Industrial AC | V201: ='Results Tables'!D17 -> 80.6638133 | W201: =IF(Pathways!$E$43="Please Select a Pathway",'Results Tables'!D17,IF(Pathways!$E$43="Low Effort",'Results Tables'!E17,IF(Pathways!$E$43="Medium Effort",'Results Tables'!F17,IF(Pathways!$E$43="High Effort",'Results Tables'!G17,IF(Pathways!$E$43="Advanced User Pathway",'Results Tables'!H17))))) -> 80.6638133
U202: Industrial Refrigeration | V202: ='Results Tables'!D18 -> 69.91656732 | W202: =IF(Pathways!$E$43="Please Select a Pathway",'Results Tables'!D18,IF(Pathways!$E$43="Low Effort",'Results Tables'!E18,IF(Pathways!$E$43="Medium Effort",'Results Tables'!F18,IF(Pathways!$E$43="High Effort",'Results Tables'!G18,IF(Pathways!$E$43="Advanced User Pathway",'Results Tables'!H18))))) -> 69.91656732
U203: Transport AC | V203: ='Results Tables'!D19 -> 132.0802095 | W203: =IF(Pathways!$E$43="Please Select a Pathway",'Results Tables'!D19,IF(Pathways!$E$43="Low Effort",'Results Tables'!E19,IF(Pathways!$E$43="Medium Effort",'Results Tables'!F19,IF(Pathways!$E$43="High Effort",'Results Tables'!G19,IF(Pathways!$E$43="Advanced User Pathway",'Results Tables'!H19))))) -> 132.0802095
U204: Transport Refrigeration | V204: ='Results Tables'!D20 -> 56.55710409 | W204: =IF(Pathways!$E$43="Please Select a Pathway",'Results Tables'!D20,IF(Pathways!$E$43="Low Effort",'Results Tables'!E20,IF(Pathways!$E$43="Medium Effort",'Results Tables'!F20,IF(Pathways!$E$43="High Effort",'Results Tables'!G20,IF(Pathways!$E$43="Advanced User Pathway",'Results Tables'!H20))))) -> 56.55710409
T205: Europe | U205: Commercial AC | V205: ='Results Tables'!D21 -> 8.87976392 | W205: =IF(Pathways!$E$43="Please Select a Pathway",'Results Tables'!D21,IF(Pathways!$E$43="Low Effort",'Results Tables'!E21,IF(Pathways!$E$43="Medium Effort",'Results Tables'!F21,IF(Pathways!$E$43="High Effort",'Results Tables'!G21,IF(Pathways!$E$43="Advanced User Pathway",'Results Tables'!H21))))) -> 8.87976392
U206: Commercial Refrigeration | V206: ='Results Tables'!D22 -> 47.52290785 | W206: =IF(Pathways!$E$43="Please Select a Pathway",'Results Tables'!D22,IF(Pathways!$E$43="Low Effort",'Results Tables'!E22,IF(Pathways!$E$43="Medium Effort",'Results Tables'!F22,IF(Pathways!$E$43="High Effort",'Results Tables'!G22,IF(Pathways!$E$43="Advanced User Pathway",'Results Tables'!H22))))) -> 47.52290785
U207: Domestic AC | V207: ='Results Tables'!D23 -> 6.462258619 | W207: =IF(Pathways!$E$43="Please Select a Pathway",'Results Tables'!D23,IF(Pathways!$E$43="Low Effort",'Results Tables'!E23,IF(Pathways!$E$43="Medium Effort",'Results Tables'!F23,IF(Pathways!$E$43="High Effort",'Results Tables'!G23,IF(Pathways!$E$43="Advanced User Pathway",'Results Tables'!H23))))) -> 6.462258619
U208: Domestic Refrigeration | V208: ='Results Tables'!D24 -> 1.174204811 | W208: =IF(Pathways!$E$43="Please Select a Pathway",'Results Tables'!D24,IF(Pathways!$E$43="Low Effort",'Results Tables'!E24,IF(Pathways!$E$43="Medium Effort",'Results Tables'!F24,IF(Pathways!$E$43="High Effort",'Results Tables'!G24,IF(Pathways!$E$43="Advanced User Pathway",'Results Tables'!H24))))) -> 1.174204811
U209: Industrial AC | V209: ='Results Tables'!D25 -> 17.40684174 | W209: =IF(Pathways!$E$43="Please Select a Pathway",'Results Tables'!D25,IF(Pathways!$E$43="Low Effort",'Results Tables'!E25,IF(Pathways!$E$43="Medium Effort",'Results Tables'!F25,IF(Pathways!$E$43="High Effort",'Results Tables'!G25,IF(Pathways!$E$43="Advanced User Pathway",'Results Tables'!H25))))) -> 17.40684174
U210: Industrial Refrigeration | V210: ='Results Tables'!D26 -> 15.68789421 | W210: =IF(Pathways!$E$43="Please Select a Pathway",'Results Tables'!D26,IF(Pathways!$E$43="Low Effort",'Results Tables'!E26,IF(Pathways!$E$43="Medium Effort",'Results Tables'!F26,IF(Pathways!$E$43="High Effort",'Results Tables'!G26,IF(Pathways!$E$43="Advanced User Pathway",'Results Tables'!H26))))) -> 15.68789421
U211: Transport AC | V211: ='Results Tables'!D27 -> 32.16597448 | W211: =IF(Pathways!$E$43="Please Select a Pathway",'Results Tables'!D27,IF(Pathways!$E$43="Low Effort",'Results Tables'!E27,IF(Pathways!$E$43="Medium Effort",'Results Tables'!F27,IF(Pathways!$E$43="High Effort",'Results Tables'!G27,IF(Pathways!$E$43="Advanced User Pathway",'Results Tables'!H27))))) -> 32.16597448
U212: Transport Refrigeration | V212: ='Results Tables'!D28 -> 6.699755742 | W212: =IF(Pathways!$E$43="Please Select a Pathway",'Results Tables'!D28,IF(Pathways!$E$43="Low Effort",'Results Tables'!E28,IF(Pathways!$E$43="Medium Effort",'Results Tables'!F28,IF(Pathways!$E$43="High Effort",'Results Tables'!G28,IF(Pathways!$E$43="Advanced User Pathway",'Results Tables'!H28))))) -> 6.699755742
T213: North America | U213: Commercial AC | V213: ='Results Tables'!D29 -> 40.84087657 | W213: =IF(Pathways!$E$43="Please Select a Pathway",'Results Tables'!D29,IF(Pathways!$E$43="Low Effort",'Results Tables'!E29,IF(Pathways!$E$43="Medium Effort",'Results Tables'!F29,IF(Pathways!$E$43="High Effort",'Results Tables'!G29,IF(Pathways!$E$43="Advanced User Pathway",'Results Tables'!H29))))) -> 40.84087657
U214: Commercial Refrigeration | V214: ='Results Tables'!D30 -> 20.4250756 | W214: =IF(Pathways!$E$43="Please Select a Pathway",'Results Tables'!D30,IF(Pathways!$E$43="Low Effort",'Results Tables'!E30,IF(Pathways!$E$43="Medium Effort",'Results Tables'!F30,IF(Pathways!$E$43="High Effort",'Results Tables'!G30,IF(Pathways!$E$43="Advanced User Pathway",'Results Tables'!H30))))) -> 20.4250756
U215: Domestic AC | V215: ='Results Tables'!D31 -> 40.55184199 | W215: =IF(Pathways!$E$43="Please Select a Pathway",'Results Tables'!D31,IF(Pathways!$E$43="Low Effort",'Results Tables'!E31,IF(Pathways!$E$43="Medium Effort",'Results Tables'!F31,IF(Pathways!$E$43="High Effort",'Results Tables'!G31,IF(Pathways!$E$43="Advanced User Pathway",'Results Tables'!H31))))) -> 40.55184199
U216: Domestic Refrigeration | V216: ='Results Tables'!D32 -> 0.8997449096 | W216: =IF(Pathways!$E$43="Please Select a Pathway",'Results Tables'!D32,IF(Pathways!$E$43="Low Effort",'Results Tables'!E32,IF(Pathways!$E$43="Medium Effort",'Results Tables'!F32,IF(Pathways!$E$43="High Effort",'Results Tables'!G32,IF(Pathways!$E$43="Advanced User Pathway",'Results Tables'!H32))))) -> 0.8997449096
U217: Industrial AC | V217: ='Results Tables'!D33 -> 14.68702272 | W217: =IF(Pathways!$E$43="Please Select a Pathway",'Results Tables'!D33,IF(Pathways!$E$43="Low Effort",'Results Tables'!E33,IF(Pathways!$E$43="Medium Effort",'Results Tables'!F33,IF(Pathways!$E$43="High Effort",'Results Tables'!G33,IF(Pathways!$E$43="Advanced User Pathway",'Results Tables'!H33))))) -> 14.68702272
U218: Industrial Refrigeration | V218: ='Results Tables'!D34 -> 16.10800496 | W218: =IF(Pathways!$E$43="Please Select a Pathway",'Results Tables'!D34,IF(Pathways!$E$43="Low Effort",'Results Tables'!E34,IF(Pathways!$E$43="Medium Effort",'Results Tables'!F34,IF(Pathways!$E$43="High Effort",'Results Tables'!G34,IF(Pathways!$E$43="Advanced User Pathway",'Results Tables'!H34))))) -> 16.10800496
U219: Transport AC | V219: ='Results Tables'!D35 -> 22.1799334 | W219: =IF(Pathways!$E$43="Please Select a Pathway",'Results Tables'!D35,IF(Pathways!$E$43="Low Effort",'Results Tables'!E35,IF(Pathways!$E$43="Medium Effort",'Results Tables'!F35,IF(Pathways!$E$43="High Effort",'Results Tables'!G35,IF(Pathways!$E$43="Advanced User Pathway",'Results Tables'!H35))))) -> 22.1799334
U220: Transport Refrigeration | V220: ='Results Tables'!D36 -> 4.473416988 | W220: =IF(Pathways!$E$43="Please Select a Pathway",'Results Tables'!D36,IF(Pathways!$E$43="Low Effort",'Results Tables'!E36,IF(Pathways!$E$43="Medium Effort",'Results Tables'!F36,IF(Pathways!$E$43="High Effort",'Results Tables'!G36,IF(Pathways!$E$43="Advanced User Pathway",'Results Tables'!H36))))) -> 4.473416988
T221: South and Central America | U221: Commercial AC | V221: ='Results Tables'!D37 -> 14.51126432 | W221: =IF(Pathways!$E$43="Please Select a Pathway",'Results Tables'!D37,IF(Pathways!$E$43="Low Effort",'Results Tables'!E37,IF(Pathways!$E$43="Medium Effort",'Results Tables'!F37,IF(Pathways!$E$43="High Effort",'Results Tables'!G37,IF(Pathways!$E$43="Advanced User Pathway",'Results Tables'!H37))))) -> 14.51126432
U222: Commercial Refrigeration | V222: ='Results Tables'!D38 -> 25.65295009 | W222: =IF(Pathways!$E$43="Please Select a Pathway",'Results Tables'!D38,IF(Pathways!$E$43="Low Effort",'Results Tables'!E38,IF(Pathways!$E$43="Medium Effort",'Results Tables'!F38,IF(Pathways!$E$43="High Effort",'Results Tables'!G38,IF(Pathways!$E$43="Advanced User Pathway",'Results Tables'!H38))))) -> 25.65295009
U223: Domestic AC | V223: ='Results Tables'!D39 -> 15.81662483 | W223: =IF(Pathways!$E$43="Please Select a Pathway",'Results Tables'!D39,IF(Pathways!$E$43="Low Effort",'Results Tables'!E39,IF(Pathways!$E$43="Medium Effort",'Results Tables'!F39,IF(Pathways!$E$43="High Effort",'Results Tables'!G39,IF(Pathways!$E$43="Advanced User Pathway",'Results Tables'!H39))))) -> 15.81662483
U224: Domestic Refrigeration | V224: ='Results Tables'!D40 -> 0.8701282253 | W224: =IF(Pathways!$E$43="Please Select a Pathway",'Results Tables'!D40,IF(Pathways!$E$43="Low Effort",'Results Tables'!E40,IF(Pathways!$E$43="Medium Effort",'Results Tables'!F40,IF(Pathways!$E$43="High Effort",'Results Tables'!G40,IF(Pathways!$E$43="Advanced User Pathway",'Results Tables'!H40))))) -> 0.8701282253
U225: Industrial AC | V225: ='Results Tables'!D41 -> 3.634823684 | W225: =IF(Pathways!$E$43="Please Select a Pathway",'Results Tables'!D41,IF(Pathways!$E$43="Low Effort",'Results Tables'!E41,IF(Pathways!$E$43="Medium Effort",'Results Tables'!F41,IF(Pathways!$E$43="High Effort",'Results Tables'!G41,IF(Pathways!$E$43="Advanced User Pathway",'Results Tables'!H41))))) -> 3.634823684
U226: Industrial Refrigeration | V226: ='Results Tables'!D42 -> 3.896171672 | W226: =IF(Pathways!$E$43="Please Select a Pathway",'Results Tables'!D42,IF(Pathways!$E$43="Low Effort",'Results Tables'!E42,IF(Pathways!$E$43="Medium Effort",'Results Tables'!F42,IF(Pathways!$E$43="High Effort",'Results Tables'!G42,IF(Pathways!$E$43="Advanced User Pathway",'Results Tables'!H42))))) -> 3.896171672
U227: Transport AC | V227: ='Results Tables'!D43 -> 14.96540178 | W227: =IF(Pathways!$E$43="Please Select a Pathway",'Results Tables'!D43,IF(Pathways!$E$43="Low Effort",'Results Tables'!E43,IF(Pathways!$E$43="Medium Effort",'Results Tables'!F43,IF(Pathways!$E$43="High Effort",'Results Tables'!G43,IF(Pathways!$E$43="Advanced User Pathway",'Results Tables'!H43))))) -> 14.96540178
U228: Transport Refrigeration | V228: ='Results Tables'!D44 -> 1.559277966 | W228: =IF(Pathways!$E$43="Please Select a Pathway",'Results Tables'!D44,IF(Pathways!$E$43="Low Effort",'Results Tables'!E44,IF(Pathways!$E$43="Medium Effort",'Results Tables'!F44,IF(Pathways!$E$43="High Effort",'Results Tables'!G44,IF(Pathways!$E$43="Advanced User Pathway",'Results Tables'!H44))))) -> 1.559277966
V232: 2050 Indirect Emissions (Mt CO2e)
T233: Region | U233: Sector | V233: Baseline 'Do Nothing' Pathway | W233: User Pathway
T234: Africa | U234: Commercial AC | V234: ='Results Tables'!D50 -> 500.9062365 | W234: =IF(Pathways!$E$43="Please Select a Pathway",'Results Tables'!D50,IF(Pathways!$E$43="Low Effort",'Results Tables'!E50,IF(Pathways!$E$43="Medium Effort",'Results Tables'!F50,IF(Pathways!$E$43="High Effort",'Results Tables'!G50,IF(Pathways!$E$43="Advanced User Pathway",'Results Tables'!H50))))) -> 500.9062365
U235: Commercial Refrigeration | V235: ='Results Tables'!D51 -> 80.71885931 | W235: =IF(Pathways!$E$43="Please Select a Pathway",'Results Tables'!D51,IF(Pathways!$E$43="Low Effort",'Results Tables'!E51,IF(Pathways!$E$43="Medium Effort",'Results Tables'!F51,IF(Pathways!$E$43="High Effort",'Results Tables'!G51,IF(Pathways!$E$43="Advanced User Pathway",'Results Tables'!H51))))) -> 80.71885931
U236: Domestic AC | V236: ='Results Tables'!D52 -> 422.8275359 | W236: =IF(Pathways!$E$43="Please Select a Pathway",'Results Tables'!D52,IF(Pathways!$E$43="Low Effort",'Results Tables'!E52,IF(Pathways!$E$43="Medium Effort",'Results Tables'!F52,IF(Pathways!$E$43="High Effort",'Results Tables'!G52,IF(Pathways!$E$43="Advanced User Pathway",'Results Tables'!H52))))) -> 422.8275359
U237: Domestic Refrigeration | V237: ='Results Tables'!D53 -> 70.75747504 | W237: =IF(Pathways!$E$43="Please Select a Pathway",'Results Tables'!D53,IF(Pathways!$E$43="Low Effort",'Results Tables'!E53,IF(Pathways!$E$43="Medium Effort",'Results Tables'!F53,IF(Pathways!$E$43="High Effort",'Results Tables'!G53,IF(Pathways!$E$43="Advanced User Pathway",'Results Tables'!H53))))) -> 70.75747504
U238: Industrial AC | V238: ='Results Tables'!D54 -> 35.02758198 | W238: =IF(Pathways!$E$43="Please Select a Pathway",'Results Tables'!D54,IF(Pathways!$E$43="Low Effort",'Results Tables'!E54,IF(Pathways!$E$43="Medium Effort",'Results Tables'!F54,IF(Pathways!$E$43="High Effort",'Results Tables'!G54,IF(Pathways!$E$43="Advanced User Pathway",'Results Tables'!H54))))) -> 35.02758198
U239: Industrial Refrigeration | V239: ='Results Tables'!D55 -> 22.50083476 | W239: =IF(Pathways!$E$43="Please Select a Pathway",'Results Tables'!D55,IF(Pathways!$E$43="Low Effort",'Results Tables'!E55,IF(Pathways!$E$43="Medium Effort",'Results Tables'!F55,IF(Pathways!$E$43="High Effort",'Results Tables'!G55,IF(Pathways!$E$43="Advanced User Pathway",'Results Tables'!H55))))) -> 22.50083476
U240: Transport AC | V240: ='Results Tables'!D56 -> 228.7571759 | W240: =IF(Pathways!$E$43="Please Select a Pathway",'Results Tables'!D56,IF(Pathways!$E$43="Low Effort",'Results Tables'!E56,IF(Pathways!$E$43="Medium Effort",'Results Tables'!F56,IF(Pathways!$E$43="High Effort",'Results Tables'!G56,IF(Pathways!$E$43="Advanced User Pathway",'Results Tables'!H56))))) -> 228.7571759
U241: Transport Refrigeration | V241: ='Results Tables'!D57 -> 41.35183765 | W241: =IF(Pathways!$E$43="Please Select a Pathway",'Results Tables'!D57,IF(Pathways!$E$43="Low Effort",'Results Tables'!E57,IF(Pathways!$E$43="Medium Effort",'Results Tables'!F57,IF(Pathways!$E$43="High Effort",'Results Tables'!G57,IF(Pathways!$E$43="Advanced User Pathway",'Results Tables'!H57))))) -> 41.35183765
T242: Asia | U242: Commercial AC | V242: ='Results Tables'!D58 -> 3027.250749 | W242: =IF(Pathways!$E$43="Please Select a Pathway",'Results Tables'!D58,IF(Pathways!$E$43="Low Effort",'Results Tables'!E58,IF(Pathways!$E$43="Medium Effort",'Results Tables'!F58,IF(Pathways!$E$43="High Effort",'Results Tables'!G58,IF(Pathways!$E$43="Advanced User Pathway",'Results Tables'!H58))))) -> 3027.250749
U243: Commercial Refrigeration | V243: ='Results Tables'!D59 -> 572.4469026 | W243: =IF(Pathways!$E$43="Please Select a Pathway",'Results Tables'!D59,IF(Pathways!$E$43="Low Effort",'Results Tables'!E59,IF(Pathways!$E$43="Medium Effort",'Results Tables'!F59,IF(Pathways!$E$43="High Effort",'Results Tables'!G59,IF(Pathways!$E$43="Advanced User Pathway",'Results Tables'!H59))))) -> 572.4469026
U244: Domestic AC | V244: ='Results Tables'!D60 -> 3722.300517 | W244: =IF(Pathways!$E$43="Please Select a Pathway",'Results Tables'!D60,IF(Pathways!$E$43="Low Effort",'Results Tables'!E60,IF(Pathways!$E$43="Medium Effort",'Results Tables'!F60,IF(Pathways!$E$43="High Effort",'Results Tables'!G60,IF(Pathways!$E$43="Advanced User Pathway",'Results Tables'!H60))))) -> 3722.300517
U245: Domestic Refrigeration | V245: ='Results Tables'!D61 -> 521.5430542 | W245: =IF(Pathways!$E$43="Please Select a Pathway",'Results Tables'!D61,IF(Pathways!$E$43="Low Effort",'Results Tables'!E61,IF(Pathways!$E$43="Medium Effort",'Results Tables'!F61,IF(Pathways!$E$43="High Effort",'Results Tables'!G61,IF(Pathways!$E$43="Advanced User Pathway",'Results Tables'!H61))))) -> 521.5430542
U246: Industrial AC | V246: ='Results Tables'!D62 -> 299.9913687 | W246: =IF(Pathways!$E$43="Please Select a Pathway",'Results Tables'!D62,IF(Pathways!$E$43="Low Effort",'Results Tables'!E62,IF(Pathways!$E$43="Medium Effort",'Results Tables'!F62,IF(Pathways!$E$43="High Effort",'Results Tables'!G62,IF(Pathways!$E$43="Advanced User Pathway",'Results Tables'!H62))))) -> 299.9913687
U247: Industrial Refrigeration | V247: ='Results Tables'!D63 -> 217.8055497 | W247: =IF(Pathways!$E$43="Please Select a Pathway",'Results Tables'!D63,IF(Pathways!$E$43="Low Effort",'Results Tables'!E63,IF(Pathways!$E$43="Medium Effort",'Results Tables'!F63,IF(Pathways!$E$43="High Effort",'Results Tables'!G63,IF(Pathways!$E$43="Advanced User Pathway",'Results Tables'!H63))))) -> 217.8055497
U248: Transport AC | V248: ='Results Tables'!D64 -> 1453.746975 | W248: =IF(Pathways!$E$43="Please Select a Pathway",'Results Tables'!D64,IF(Pathways!$E$43="Low Effort",'Results Tables'!E64,IF(Pathways!$E$43="Medium Effort",'Results Tables'!F64,IF(Pathways!$E$43="High Effort",'Results Tables'!G64,IF(Pathways!$E$43="Advanced User Pathway",'Results Tables'!H64))))) -> 1453.746975
U249: Transport Refrigeration | V249: ='Results Tables'!D65 -> 352.4777859 | W249: =IF(Pathways!$E$43="Please Select a Pathway",'Results Tables'!D65,IF(Pathways!$E$43="Low Effort",'Results Tables'!E65,IF(Pathways!$E$43="Medium Effort",'Results Tables'!F65,IF(Pathways!$E$43="High Effort",'Results Tables'!G65,IF(Pathways!$E$43="Advanced User Pathway",'Results Tables'!H65))))) -> 352.4777859
T250: Europe | U250: Commercial AC | V250: ='Results Tables'!D66 -> 95.96061161 | W250: =IF(Pathways!$E$43="Please Select a Pathway",'Results Tables'!D66,IF(Pathways!$E$43="Low Effort",'Results Tables'!E66,IF(Pathways!$E$43="Medium Effort",'Results Tables'!F66,IF(Pathways!$E$43="High Effort",'Results Tables'!G66,IF(Pathways!$E$43="Advanced User Pathway",'Results Tables'!H66))))) -> 95.96061161
U251: Commercial Refrigeration | V251: ='Results Tables'!D67 -> 79.38919043 | W251: =IF(Pathways!$E$43="Please Select a Pathway",'Results Tables'!D67,IF(Pathways!$E$43="Low Effort",'Results Tables'!E67,IF(Pathways!$E$43="Medium Effort",'Results Tables'!F67,IF(Pathways!$E$43="High Effort",'Results Tables'!G67,IF(Pathways!$E$43="Advanced User Pathway",'Results Tables'!H67))))) -> 79.38919043
U252: Domestic AC | V252: ='Results Tables'!D68 -> 44.62297705 | W252: =IF(Pathways!$E$43="Please Select a Pathway",'Results Tables'!D68,IF(Pathways!$E$43="Low Effort",'Results Tables'!E68,IF(Pathways!$E$43="Medium Effort",'Results Tables'!F68,IF(Pathways!$E$43="High Effort",'Results Tables'!G68,IF(Pathways!$E$43="Advanced User Pathway",'Results Tables'!H68))))) -> 44.62297705
U253: Domestic Refrigeration | V253: ='Results Tables'!D69 -> 54.76219827 | W253: =IF(Pathways!$E$43="Please Select a Pathway",'Results Tables'!D69,IF(Pathways!$E$43="Low Effort",'Results Tables'!E69,IF(Pathways!$E$43="Medium Effort",'Results Tables'!F69,IF(Pathways!$E$43="High Effort",'Results Tables'!G69,IF(Pathways!$E$43="Advanced User Pathway",'Results Tables'!H69))))) -> 54.76219827
U254: Industrial AC | V254: ='Results Tables'!D70 -> 26.16462327 | W254: =IF(Pathways!$E$43="Please Select a Pathway",'Results Tables'!D70,IF(Pathways!$E$43="Low Effort",'Results Tables'!E70,IF(Pathways!$E$43="Medium Effort",'Results Tables'!F70,IF(Pathways!$E$43="High Effort",'Results Tables'!G70,IF(Pathways!$E$43="Advanced User Pathway",'Results Tables'!H70))))) -> 26.16462327
U255: Industrial Refrigeration | V255: ='Results Tables'!D71 -> 47.17451136 | W255: =IF(Pathways!$E$43="Please Select a Pathway",'Results Tables'!D71,IF(Pathways!$E$43="Low Effort",'Results Tables'!E71,IF(Pathways!$E$43="Medium Effort",'Results Tables'!F71,IF(Pathways!$E$43="High Effort",'Results Tables'!G71,IF(Pathways!$E$43="Advanced User Pathway",'Results Tables'!H71))))) -> 47.17451136
U256: Transport AC | V256: ='Results Tables'!D72 -> 349.5032621 | W256: =IF(Pathways!$E$43="Please Select a Pathway",'Results Tables'!D72,IF(Pathways!$E$43="Low Effort",'Results Tables'!E72,IF(Pathways!$E$43="Medium Effort",'Results Tables'!F72,IF(Pathways!$E$43="High Effort",'Results Tables'!G72,IF(Pathways!$E$43="Advanced User Pathway",'Results Tables'!H72))))) -> 349.5032621
U257: Transport Refrigeration | V257: ='Results Tables'!D73 -> 8.288690736 | W257: =IF(Pathways!$E$43="Please Select a Pathway",'Results Tables'!D73,IF(Pathways!$E$43="Low Effort",'Results Tables'!E73,IF(Pathways!$E$43="Medium Effort",'Results Tables'!F73,IF(Pathways!$E$43="High Effort",'Results Tables'!G73,IF(Pathways!$E$43="Advanced User Pathway",'Results Tables'!H73))))) -> 8.288690736
T258: North America | U258: Commercial AC | V258: ='Results Tables'!D74 -> 505.8348597 | W258: =IF(Pathways!$E$43="Please Select a Pathway",'Results Tables'!D74,IF(Pathways!$E$43="Low Effort",'Results Tables'!E74,IF(Pathways!$E$43="Medium Effort",'Results Tables'!F74,IF(Pathways!$E$43="High Effort",'Results Tables'!G74,IF(Pathways!$E$43="Advanced User Pathway",'Results Tables'!H74))))) -> 505.8348597
U259: Commercial Refrigeration | V259: ='Results Tables'!D75 -> 39.10606812 | W259: =IF(Pathways!$E$43="Please Select a Pathway",'Results Tables'!D75,IF(Pathways!$E$43="Low Effort",'Results Tables'!E75,IF(Pathways!$E$43="Medium Effort",'Results Tables'!F75,IF(Pathways!$E$43="High Effort",'Results Tables'!G75,IF(Pathways!$E$43="Advanced User Pathway",'Results Tables'!H75))))) -> 39.10606812
U260: Domestic AC | V260: ='Results Tables'!D76 -> 588.5198039 | W260: =IF(Pathways!$E$43="Please Select a Pathway",'Results Tables'!D76,IF(Pathways!$E$43="Low Effort",'Results Tables'!E76,IF(Pathways!$E$43="Medium Effort",'Results Tables'!F76,IF(Pathways!$E$43="High Effort",'Results Tables'!G76,IF(Pathways!$E$43="Advanced User Pathway",'Results Tables'!H76))))) -> 588.5198039
U261: Domestic Refrigeration | V261: ='Results Tables'!D77 -> 48.09263018 | W261: =IF(Pathways!$E$43="Please Select a Pathway",'Results Tables'!D77,IF(Pathways!$E$43="Low Effort",'Results Tables'!E77,IF(Pathways!$E$43="Medium Effort",'Results Tables'!F77,IF(Pathways!$E$43="High Effort",'Results Tables'!G77,IF(Pathways!$E$43="Advanced User Pathway",'Results Tables'!H77))))) -> 48.09263018
U262: Industrial AC | V262: ='Results Tables'!D78 -> 83.35908704 | W262: =IF(Pathways!$E$43="Please Select a Pathway",'Results Tables'!D78,IF(Pathways!$E$43="Low Effort",'Results Tables'!E78,IF(Pathways!$E$43="Medium Effort",'Results Tables'!F78,IF(Pathways!$E$43="High Effort",'Results Tables'!G78,IF(Pathways!$E$43="Advanced User Pathway",'Results Tables'!H78))))) -> 83.35908704
U263: Industrial Refrigeration | V263: ='Results Tables'!D79 -> 42.26320225 | W263: =IF(Pathways!$E$43="Please Select a Pathway",'Results Tables'!D79,IF(Pathways!$E$43="Low Effort",'Results Tables'!E79,IF(Pathways!$E$43="Medium Effort",'Results Tables'!F79,IF(Pathways!$E$43="High Effort",'Results Tables'!G79,IF(Pathways!$E$43="Advanced User Pathway",'Results Tables'!H79))))) -> 42.26320225
U264: Transport AC | V264: ='Results Tables'!D80 -> 238.8731223 | W264: =IF(Pathways!$E$43="Please Select a Pathway",'Results Tables'!D80,IF(Pathways!$E$43="Low Effort",'Results Tables'!E80,IF(Pathways!$E$43="Medium Effort",'Results Tables'!F80,IF(Pathways!$E$43="High Effort",'Results Tables'!G80,IF(Pathways!$E$43="Advanced User Pathway",'Results Tables'!H80))))) -> 238.8731223
U265: Transport Refrigeration | V265: ='Results Tables'!D81 -> 12.19602515 | W265: =IF(Pathways!$E$43="Please Select a Pathway",'Results Tables'!D81,IF(Pathways!$E$43="Low Effort",'Results Tables'!E81,IF(Pathways!$E$43="Medium Effort",'Results Tables'!F81,IF(Pathways!$E$43="High Effort",'Results Tables'!G81,IF(Pathways!$E$43="Advanced User Pathway",'Results Tables'!H81))))) -> 12.19602515
T266: South and Central America | U266: Commercial AC | V266: ='Results Tables'!D82 -> 57.92548924 | W266: =IF(Pathways!$E$43="Please Select a Pathway",'Results Tables'!D82,IF(Pathways!$E$43="Low Effort",'Results Tables'!E82,IF(Pathways!$E$43="Medium Effort",'Results Tables'!F82,IF(Pathways!$E$43="High Effort",'Results Tables'!G82,IF(Pathways!$E$43="Advanced User Pathway",'Results Tables'!H82))))) -> 57.92548924
U267: Commercial Refrigeration | V267: ='Results Tables'!D83 -> 26.6446762 | W267: =IF(Pathways!$E$43="Please Select a Pathway",'Results Tables'!D83,IF(Pathways!$E$43="Low Effort",'Results Tables'!E83,IF(Pathways!$E$43="Medium Effort",'Results Tables'!F83,IF(Pathways!$E$43="High Effort",'Results Tables'!G83,IF(Pathways!$E$43="Advanced User Pathway",'Results Tables'!H83))))) -> 26.6446762
U268: Domestic AC | V268: ='Results Tables'!D84 -> 153.8581487 | W268: =IF(Pathways!$E$43="Please Select a Pathway",'Results Tables'!D84,IF(Pathways!$E$43="Low Effort",'Results Tables'!E84,IF(Pathways!$E$43="Medium Effort",'Results Tables'!F84,IF(Pathways!$E$43="High Effort",'Results Tables'!G84,IF(Pathways!$E$43="Advanced User Pathway",'Results Tables'!H84))))) -> 153.8581487
U269: Domestic Refrigeration | V269: ='Results Tables'!D85 -> 17.86773078 | W269: =IF(Pathways!$E$43="Please Select a Pathway",'Results Tables'!D85,IF(Pathways!$E$43="Low Effort",'Results Tables'!E85,IF(Pathways!$E$43="Medium Effort",'Results Tables'!F85,IF(Pathways!$E$43="High Effort",'Results Tables'!G85,IF(Pathways!$E$43="Advanced User Pathway",'Results Tables'!H85))))) -> 17.86773078
U270: Industrial AC | V270: ='Results Tables'!D86 -> 6.687337689 | W270: =IF(Pathways!$E$43="Please Select a Pathway",'Results Tables'!D86,IF(Pathways!$E$43="Low Effort",'Results Tables'!E86,IF(Pathways!$E$43="Medium Effort",'Results Tables'!F86,IF(Pathways!$E$43="High Effort",'Results Tables'!G86,IF(Pathways!$E$43="Advanced User Pathway",'Results Tables'!H86))))) -> 6.687337689
U271: Industrial Refrigeration | V271: ='Results Tables'!D87 -> 3.62584881 | W271: =IF(Pathways!$E$43="Please Select a Pathway",'Results Tables'!D87,IF(Pathways!$E$43="Low Effort",'Results Tables'!E87,IF(Pathways!$E$43="Medium Effort",'Results Tables'!F87,IF(Pathways!$E$43="High Effort",'Results Tables'!G87,IF(Pathways!$E$43="Advanced User Pathway",'Results Tables'!H87))))) -> 3.62584881
U272: Transport AC | V272: ='Results Tables'!D88 -> 238.8731223 | W272: =IF(Pathways!$E$43="Please Select a Pathway",'Results Tables'!D88,IF(Pathways!$E$43="Low Effort",'Results Tables'!E88,IF(Pathways!$E$43="Medium Effort",'Results Tables'!F88,IF(Pathways!$E$43="High Effort",'Results Tables'!G88,IF(Pathways!$E$43="Advanced User Pathway",'Results Tables'!H88))))) -> 238.8731223
U273: Transport AC | V273: ='Results Tables'!D89 -> 7.639370986 | W273: =IF(Pathways!$E$43="Please Select a Pathway",'Results Tables'!D89,IF(Pathways!$E$43="Low Effort",'Results Tables'!E89,IF(Pathways!$E$43="Medium Effort",'Results Tables'!F89,IF(Pathways!$E$43="High Effort",'Results Tables'!G89,IF(Pathways!$E$43="Advanced User Pathway",'Results Tables'!H89))))) -> 7.639370986
W274: Back to Results

Sheet Emissions Savings Results
B6: Emissions Savings (Relative to Baseline) | R6: Pathway: | S6: =Pathways!$E$43 -> Please Select a Pathway
M19: 2020 Emissions | N19: Dummy | O19: Direct Emissions | P19: Indirect Emissions | Q19: Total Emissions
L20: 2020 Total Emissions | M20: ='Results Tables'!K100 -> 6158.588469 | N20: 0 | O20: 0 | P20: 0 | Q20: 0
L21: 2050 Baseline 'Do Nothing' Emissions | M21: 0 | N21: 0 | O21: ='Results Tables'!L10 -> 1521.949831 | P21: ='Results Tables'!L55 -> 14347.64303 | Q21: ='Results Tables'!L100 -> 15869.59286
L22: 2050 User Pathway Emissions Savings | M22: 0 | N22: =Q21-Q22 -> 15869.59286 | O22: ='Results Tables'!AN10 -> 0 | P22: ='Results Tables'!AO10 -> 0 | Q22: =SUM(O22:P22) -> 0
L23: Gap to Zero Emissions | M23: 0 | N23: 0 | O23: =O21-O22 -> 1521.949831 | P23: =P21-P22 -> 14347.64303 | Q23: =Q21-Q22 -> 15869.59286
B51: Emissions Savings by Region (Relative to Baseline) | R51: Pathway: | S51: =Pathways!$E$43 -> Please Select a Pathway
I68: 2020 Emissions | J68: Dummy | K68: Africa | L68: Asia | M68: Europe | N68: North America | O68: South and Central America | P68: Total Emissions
H69: 2020 Total Emissions | I69: ='Results Tables'!K100 -> 6158.588469 | J69: 0 | P69: 0
H70: 2050 Baseline 'Do Nothing' Emissions | I70: 0 | J70: 0 | K70: ='Results Tables'!L95 -> 1559.770813 | L70: ='Results Tables'!L96 -> 11155.5173 | M70: ='Results Tables'!L97 -> 841.8656662 | N70: ='Results Tables'!L98 -> 1718.410716 | O70: ='Results Tables'!L99 -> 594.0283673 | P70: =SUM(K70:O70) -> 15869.59286
H71: 2050 User Pathway Emissions Savings | I71: 0 | J71: =P70-P71 -> 15869.59286 | K71: ='Results Tables'!AP5 -> 0 | L71: ='Results Tables'!AP6 -> 0 | M71: ='Results Tables'!AP7 -> 0 | N71: ='Results Tables'!AP8 -> 0 | O71: ='Results Tables'!AP9 -> 0 | P71: =SUM(K71:O71) -> 0
H72: Gap to Zero Emissions | I72: 0 | J72: 0 | K72: =K70-K71 -> 1559.770813 | L72: =L70-L71 -> 11155.5173 | M72: 841.8656662 | N72: 1718.410716 | O72: 594.0283673 | P72: =P70 - P71 -> 15869.59286
B93: Regional Emissions Savings (Relative to Baseline) | R93: Pathway: | S93: =Pathways!$E$43 -> Please Select a Pathway
C112: Africa | D112: 2020 Emissions | E112: Dummy | F112: Direct Emissions | G112: Indirect Emissions | H112: Total Emissions | L112: Asia | M112: 2020 Emissions | N112: Dummy | O112: Direct Emissions | P112: Indirect Emissions | Q112: Total Emissions
C113: 2020 Total Emissions | D113: ='Results Tables'!K95 -> 550.7764135 | E113: 0 | F113: 0 | G113: 0 | H113: 0 | L113: 2020 Total Emissions | M113: ='Results Tables'!K96 -> 3746.835898 | N113: 0 | O113: 0 | P113: 0 | Q113: 0
C114: 2050 Baseline 'Do Nothing' Emissions | D114: 0 | E114: 0 | F114: ='Results Tables'!L5 -> 156.9232756 | G114: ='Results Tables'!L50 -> 1402.847537 | H114: =SUM(F114:G114) -> 1559.770813 | L114: 2050 Baseline 'Do Nothing' Emissions | M114: 0 | N114: 0 | O114: ='Results Tables'!L6 -> 987.9543945 | P114: ='Results Tables'!L51 -> 10167.5629 | Q114: =SUM(O114:P114) -> 11155.5173
C115: 2050 User Pathway Emissions Savings | E115: =H114-H115 -> 1559.770813 | F115: ='Results Tables'!AN5 -> 0 | G115: ='Results Tables'!AO5 -> 0 | H115: =SUM(F115:G115) -> 0 | L115: 2050 User Pathway Emissions Savings | M115: 0 | N115: =Q114-Q115 -> 11155.5173 | O115: ='Results Tables'!AN6 -> 0 | P115: ='Results Tables'!AO6 -> 0 | Q115: =SUM(O115:P115) -> 0
C116: Gap to Zero Emissions | D116: 0 | E116: 0 | F116: =F114-F115 -> 156.9232756 | G116: =G114-G115 -> 1402.847537 | H116: =H114-H115 -> 1559.770813 | L116: Gap to Zero Emissions | M116: 0 | N116: 0 | O116: =O114-O115 -> 987.9543945 | P116: =P114-P115 -> 10167.5629 | Q116: =Q114-Q115 -> 11155.5173
D122: Europe | E122: 2020 Emissions | F122: Dummy | G122: Direct Emissions | H122: Indirect Emissions | I122: Total Emissions | M122: N America | N122: 2020 Emissions | O122: Dummy | P122: Direct Emissions | Q122: Indirect Emissions | R122: Total Emissions
D123: 2020 Total Emissions | E123: ='Results Tables'!K97 -> 603.8534886 | F123: 0 | G123: 0 | H123: 0 | I123: 0 | M123: 2020 Total Emissions | N123: ='Results Tables'!K98 -> 1031.761706 | O123: 0 | P123: 0 | Q123: 0 | R123: 0
D124: 2050 Baseline 'Do Nothing' Emissions | E124: 0 | F124: 0 | G124: ='Results Tables'!L7 -> 135.9996014 | H124: ='Results Tables'!L52 -> 705.8660648 | I124: =SUM(G124:H124) -> 841.8656662 | M124: 2050 Baseline 'Do Nothing' Emissions | N124: 0 | O124: 0 | P124: ='Results Tables'!L8 -> 160.1659171 | Q124: ='Results Tables'!L53 -> 1558.244799 | R124: =SUM(P124:Q124) -> 1718.410716
D125: 2050 User Pathway Emissions Savings | E125: 0 | F125: =I124-I125 -> 841.8656662 | G125: ='Results Tables'!AN7 -> 0 | H125: ='Results Tables'!AO7 -> 0 | I125: =SUM(G125:H125) -> 0 | M125: 2050 User Pathway Emissions Savings | N125: 0 | O125: =R124-R125 -> 1718.410716 | P125: ='Results Tables'!AN8 -> 0 | Q125: ='Results Tables'!AO8 -> 0 | R125: =SUM(P125:Q125) -> 0
D126: Gap to Zero Emissions | E126: 0 | F126: 0 | G126: =G124-G125 -> 135.9996014 | H126: =H124-H125 -> 705.8660648 | I126: =I124-I125 -> 841.8656662 | M126: Gap to Zero Emissions | N126: 0 | O126: 0 | P126: =P124-P125 -> 160.1659171 | Q126: =Q124-Q125 -> 1558.244799 | R126: =R124 - R125 -> 1718.410716
L143: South and Central America | M143: 2020 Emissions | N143: Dummy | O143: Direct Emissions | P143: Indirect Emissions | Q143: Total Emissions
L144: 2020 Total Emissions | M144: ='Results Tables'!K99 -> 225.3609632 | N144: 0 | O144: 0 | P144: 0 | Q144: 0
L145: 2050 Baseline 'Do Nothing' Emissions | M145: 0 | N145: 0 | O145: ='Results Tables'!L9 -> 80.90664256 | P145: ='Results Tables'!L54 -> 513.1217247 | Q145: =SUM(O145:P145) -> 594.0283673
L146: 2050 User Pathway Emissions Savings | M146: 0 | N146: =Q145-Q146 -> 594.0283673 | O146: ='Results Tables'!AN9 -> 0 | P146: ='Results Tables'!AO9 -> 0 | Q146: =SUM(O146:P146) -> 0
L147: Gap to Zero Emissions | M147: 0 | N147: 0 | O147: =O145-O146 -> 80.90664256 | P147: =P145-P146 -> 513.1217247 | Q147: =Q145-Q146 -> 594.0283673

Sheet Energy Consumption Results
B6: Energy Consumption by Region | T6: Pathway: | U6: =Pathways!$E$43 -> Please Select a Pathway
T17: 2050 Energy Consumption (TWh / year)
S18: Region | T18: Baseline 'Do Nothing' Pathway | U18: User Pathway
S19: Africa | T19: ='Results Tables'!$T$48 -> 2727.219442 | U19: =IF(Pathways!$E$43 = "Please Select a Pathway", 'Results Tables'!$T$48, IF(Pathways!$E$43 = "Low Effort", 'Results Tables'!$U$48, IF(Pathways!$E$43 = "Medium Effort", 'Results Tables'!$V$48, IF(Pathways!$E$43 = "High Effort",'Results Tables'!$W$48, IF(Pathways!$E$43 = "Advanced User Pathway",'Results Tables'!$X$48))))) -> 2727.219442
S20: Asia | T20: ='Results Tables'!$T$49 -> 17081.15478 | U20: =IF(Pathways!$E$43 = "Please Select a Pathway", 'Results Tables'!$T$49, IF(Pathways!$E$43 = "Low Effort", 'Results Tables'!$U$49, IF(Pathways!$E$43 = "Medium Effort", 'Results Tables'!$V$49, IF(Pathways!$E$43 = "High Effort",'Results Tables'!$W$49, IF(Pathways!$E$43 = "Advanced User Pathway",'Results Tables'!$X$49))))) -> 17081.15478
S21: Europe | T21: ='Results Tables'!$T$50 -> 1920.494267 | U21: =IF(Pathways!$E$43 = "Please Select a Pathway", 'Results Tables'!$T$50, IF(Pathways!$E$43 = "Low Effort", 'Results Tables'!$U$50, IF(Pathways!$E$43 = "Medium Effort", 'Results Tables'!$V$50, IF(Pathways!$E$43 = "High Effort",'Results Tables'!$W$50, IF(Pathways!$E$43 = "Advanced User Pathway",'Results Tables'!$X$50))))) -> 1920.494267
S22: North America | T22: ='Results Tables'!$T$51 -> 4302.510239 | U22: =IF(Pathways!$E$43 = "Please Select a Pathway", 'Results Tables'!$T$51, IF(Pathways!$E$43 = "Low Effort", 'Results Tables'!$U$51, IF(Pathways!$E$43 = "Medium Effort", 'Results Tables'!$V$51, IF(Pathways!$E$43 = "High Effort",'Results Tables'!$W$51, IF(Pathways!$E$43 = "Advanced User Pathway",'Results Tables'!$X$51))))) -> 4302.510239
S23: South America | T23: ='Results Tables'!$T$52 -> 1766.618384 | U23: =IF(Pathways!$E$43 = "Please Select a Pathway", 'Results Tables'!$T$52, IF(Pathways!$E$43 = "Low Effort", 'Results Tables'!$U$52, IF(Pathways!$E$43 = "Medium Effort", 'Results Tables'!$V$52, IF(Pathways!$E$43 = "High Effort",'Results Tables'!$W$52, IF(Pathways!$E$43 = "Advanced User Pathway",'Results Tables'!$X$52))))) -> 1766.618384
S24: Global | T24: =SUM(T19:T23) -> 27797.99711 | U24: =SUM(U19:U23) -> 27797.99711
B41: Energy Consumption by Sector | T41: Pathway: | U41: =Pathways!$E$43 -> Please Select a Pathway
T52: 2050 Energy Consumption (TWh / year)
S53: Sector | T53: Baseline 'Do Nothing' Pathway | U53: User Pathway
S54: Commercial AC | T54: ='Results Tables'!T57 -> 7336.655596 | U54: =IF(Pathways!$E$43 = "Please Select a Pathway",'Results Tables'!T57, IF(Pathways!$E$43 = "Low Effort", 'Results Tables'!U57, IF(Pathways!$E$43 = "Medium Effort", 'Results Tables'!V57, IF(Pathways!$E$43 = "High Effort", 'Results Tables'!W57, IF(Pathways!$E$43 = "Advanced User Pathway", 'Results Tables'!X57))))) -> 7336.655596
S55: Commercial Refrigeration | T55: ='Results Tables'!T58 -> 1476.419702 | U55: =IF(Pathways!$E$43 = "Please Select a Pathway",'Results Tables'!T58, IF(Pathways!$E$43 = "Low Effort", 'Results Tables'!U58, IF(Pathways!$E$43 = "Medium Effort", 'Results Tables'!V58, IF(Pathways!$E$43 = "High Effort", 'Results Tables'!W58, IF(Pathways!$E$43 = "Advanced User Pathway", 'Results Tables'!X58))))) -> 1476.419702
S56: Domestic AC | T56: ='Results Tables'!T59 -> 8987.048489 | U56: =IF(Pathways!$E$43 = "Please Select a Pathway",'Results Tables'!T59, IF(Pathways!$E$43 = "Low Effort", 'Results Tables'!U59, IF(Pathways!$E$43 = "Medium Effort", 'Results Tables'!V59, IF(Pathways!$E$43 = "High Effort", 'Results Tables'!W59, IF(Pathways!$E$43 = "Advanced User Pathway", 'Results Tables'!X59))))) -> 8987.048489
S57: Domestic Refrigeration | T57: ='Results Tables'!T60 -> 1287.927264 | U57: =IF(Pathways!$E$43 = "Please Select a Pathway",'Results Tables'!T60, IF(Pathways!$E$43 = "Low Effort", 'Results Tables'!U60, IF(Pathways!$E$43 = "Medium Effort", 'Results Tables'!V60, IF(Pathways!$E$43 = "High Effort", 'Results Tables'!W60, IF(Pathways!$E$43 = "Advanced User Pathway", 'Results Tables'!X60))))) -> 1287.927264
S58: Industrial AC | T58: ='Results Tables'!T61 -> 842.422443 | U58: =IF(Pathways!$E$43 = "Please Select a Pathway",'Results Tables'!T61, IF(Pathways!$E$43 = "Low Effort", 'Results Tables'!U61, IF(Pathways!$E$43 = "Medium Effort", 'Results Tables'!V61, IF(Pathways!$E$43 = "High Effort", 'Results Tables'!W61, IF(Pathways!$E$43 = "Advanced User Pathway", 'Results Tables'!X61))))) -> 842.422443
S59: Industrial Refrigeration | T59: ='Results Tables'!T62 -> 635.05875 | U59: =IF(Pathways!$E$43 = "Please Select a Pathway",'Results Tables'!T62, IF(Pathways!$E$43 = "Low Effort", 'Results Tables'!U62, IF(Pathways!$E$43 = "Medium Effort", 'Results Tables'!V62, IF(Pathways!$E$43 = "High Effort", 'Results Tables'!W62, IF(Pathways!$E$43 = "Advanced User Pathway", 'Results Tables'!X62))))) -> 635.05875
S60: Transport AC | T60: ='Results Tables'!T63 -> 6191.821474 | U60: =IF(Pathways!$E$43 = "Please Select a Pathway",'Results Tables'!T63, IF(Pathways!$E$43 = "Low Effort", 'Results Tables'!U63, IF(Pathways!$E$43 = "Medium Effort", 'Results Tables'!V63, IF(Pathways!$E$43 = "High Effort", 'Results Tables'!W63, IF(Pathways!$E$43 = "Advanced User Pathway", 'Results Tables'!X63))))) -> 6191.821474
S61: Transport Refrigeration | T61: ='Results Tables'!T64 -> 1040.643396 | U61: =IF(Pathways!$E$43 = "Please Select a Pathway",'Results Tables'!T64, IF(Pathways!$E$43 = "Low Effort", 'Results Tables'!U64, IF(Pathways!$E$43 = "Medium Effort", 'Results Tables'!V64, IF(Pathways!$E$43 = "High Effort", 'Results Tables'!W64, IF(Pathways!$E$43 = "Advanced User Pathway", 'Results Tables'!X64))))) -> 1040.643396
S62: Total | T62: =SUM(T54:T61) -> 27797.99711 | U62: =SUM(U54:U61) -> 27797.99711
S65: Sector | T65: Energy Savings by Sector (TWh / year)
S66: Commercial AC | T66: =(T54-U54) -> 0
S67: Commercial Refrigeration | T67: =(T55-U55) -> 0
S68: Domestic AC | T68: 0
S69: Domestic Refrigeration | T69: 0
S70: Industrial AC | T70: 0
S71: Industrial Refrigeration | T71: 0
S72: Transport AC | T72: 0
S73: Transport Refrigeration | T73: 0
S74: Total | T74: =SUM(T66:T72) -> 0
B103: Energy Consumption by Region and by Sector | T103: Pathway: | U103: =Pathways!$E$43 -> Please Select a Pathway
T109: 2050 Total Energy Consumption (TWh / year)
R110: Region | S110: Sector | T110: Baseline 'Do Nothing' Pathway | U110: User Pathway
R111: Africa | S111: Commercial AC | T111: ='Results Tables'!T3 -> 903.6614332 | U111: =IF(Pathways!$E$43 = "Please Select a Pathway", 'Results Tables'!T3, IF(Pathways!$E$43 = "Low Effort", 'Results Tables'!U3, IF(Pathways!$E$43 = "Medium Effort",'Results Tables'!V3, IF(Pathways!$E$43 = "High Effort", 'Results Tables'!W3, IF(Pathways!$E$43 = "Advanced User Pathway", 'Results Tables'!X3))))) -> 903.6614332
S112: Commercial Refrigeration | T112: ='Results Tables'!T4 -> 145.6211059 | U112: =IF(Pathways!$E$43 = "Please Select a Pathway", 'Results Tables'!T4, IF(Pathways!$E$43 = "Low Effort", 'Results Tables'!U4, IF(Pathways!$E$43 = "Medium Effort",'Results Tables'!V4, IF(Pathways!$E$43 = "High Effort", 'Results Tables'!W4, IF(Pathways!$E$43 = "Advanced User Pathway", 'Results Tables'!X4))))) -> 145.6211059
S113: Domestic AC | T113: ='Results Tables'!T5 -> 762.8033138 | U113: =IF(Pathways!$E$43 = "Please Select a Pathway", 'Results Tables'!T5, IF(Pathways!$E$43 = "Low Effort", 'Results Tables'!U5, IF(Pathways!$E$43 = "Medium Effort",'Results Tables'!V5, IF(Pathways!$E$43 = "High Effort", 'Results Tables'!W5, IF(Pathways!$E$43 = "Advanced User Pathway", 'Results Tables'!X5))))) -> 762.8033138
S114: Domestic Refrigeration | T114: ='Results Tables'!T6 -> 127.65024 | U114: =IF(Pathways!$E$43 = "Please Select a Pathway", 'Results Tables'!T6, IF(Pathways!$E$43 = "Low Effort", 'Results Tables'!U6, IF(Pathways!$E$43 = "Medium Effort",'Results Tables'!V6, IF(Pathways!$E$43 = "High Effort", 'Results Tables'!W6, IF(Pathways!$E$43 = "Advanced User Pathway", 'Results Tables'!X6))))) -> 127.65024
S115: Industrial AC | T115: ='Results Tables'!T7 -> 63.19161677 | U115: =IF(Pathways!$E$43 = "Please Select a Pathway", 'Results Tables'!T7, IF(Pathways!$E$43 = "Low Effort", 'Results Tables'!U7, IF(Pathways!$E$43 = "Medium Effort",'Results Tables'!V7, IF(Pathways!$E$43 = "High Effort", 'Results Tables'!W7, IF(Pathways!$E$43 = "Advanced User Pathway", 'Results Tables'!X7))))) -> 63.19161677
S116: Industrial Refrigeration | T116: ='Results Tables'!T8 -> 40.5927 | U116: =IF(Pathways!$E$43 = "Please Select a Pathway", 'Results Tables'!T8, IF(Pathways!$E$43 = "Low Effort", 'Results Tables'!U8, IF(Pathways!$E$43 = "Medium Effort",'Results Tables'!V8, IF(Pathways!$E$43 = "High Effort", 'Results Tables'!W8, IF(Pathways!$E$43 = "Advanced User Pathway", 'Results Tables'!X8))))) -> 40.5927
S117: Transport AC | T117: ='Results Tables'!T9 -> 581.4689494 | U117: =IF(Pathways!$E$43 = "Please Select a Pathway", 'Results Tables'!T9, IF(Pathways!$E$43 = "Low Effort", 'Results Tables'!U9, IF(Pathways!$E$43 = "Medium Effort",'Results Tables'!V9, IF(Pathways!$E$43 = "High Effort", 'Results Tables'!W9, IF(Pathways!$E$43 = "Advanced User Pathway", 'Results Tables'!X9))))) -> 581.4689494
S118: Transport Refrigeration | T118: ='Results Tables'!T10 -> 102.2300828 | U118: =IF(Pathways!$E$43 = "Please Select a Pathway", 'Results Tables'!T10, IF(Pathways!$E$43 = "Low Effort", 'Results Tables'!U10, IF(Pathways!$E$43 = "Medium Effort",'Results Tables'!V10, IF(Pathways!$E$43 = "High Effort", 'Results Tables'!W10, IF(Pathways!$E$43 = "Advanced User Pathway", 'Results Tables'!X10))))) -> 102.2300828
R119: Asia | S119: Commercial AC | T119: ='Results Tables'!T11 -> 4530.372545 | U119: =IF(Pathways!$E$43 = "Please Select a Pathway", 'Results Tables'!T11, IF(Pathways!$E$43 = "Low Effort", 'Results Tables'!U11, IF(Pathways!$E$43 = "Medium Effort",'Results Tables'!V11, IF(Pathways!$E$43 = "High Effort", 'Results Tables'!W11, IF(Pathways!$E$43 = "Advanced User Pathway", 'Results Tables'!X11))))) -> 4530.372545
S120: Commercial Refrigeration | T120: ='Results Tables'!T12 -> 856.6841488 | U120: =IF(Pathways!$E$43 = "Please Select a Pathway", 'Results Tables'!T12, IF(Pathways!$E$43 = "Low Effort", 'Results Tables'!U12, IF(Pathways!$E$43 = "Medium Effort",'Results Tables'!V12, IF(Pathways!$E$43 = "High Effort", 'Results Tables'!W12, IF(Pathways!$E$43 = "Advanced User Pathway", 'Results Tables'!X12))))) -> 856.6841488
S121: Domestic AC | T121: ='Results Tables'!T13 -> 5570.5356 | U121: =IF(Pathways!$E$43 = "Please Select a Pathway", 'Results Tables'!T13, IF(Pathways!$E$43 = "Low Effort", 'Results Tables'!U13, IF(Pathways!$E$43 = "Medium Effort",'Results Tables'!V13, IF(Pathways!$E$43 = "High Effort", 'Results Tables'!W13, IF(Pathways!$E$43 = "Advanced User Pathway", 'Results Tables'!X13))))) -> 5570.5356
S122: Domestic Refrigeration | T122: ='Results Tables'!T14 -> 780.504996 | U122: =IF(Pathways!$E$43 = "Please Select a Pathway", 'Results Tables'!T14, IF(Pathways!$E$43 = "Low Effort", 'Results Tables'!U14, IF(Pathways!$E$43 = "Medium Effort",'Results Tables'!V14, IF(Pathways!$E$43 = "High Effort", 'Results Tables'!W14, IF(Pathways!$E$43 = "Advanced User Pathway", 'Results Tables'!X14))))) -> 780.504996
S123: Industrial AC | T123: ='Results Tables'!T15 -> 448.9461802 | U123: =IF(Pathways!$E$43 = "Please Select a Pathway", 'Results Tables'!T15, IF(Pathways!$E$43 = "Low Effort", 'Results Tables'!U15, IF(Pathways!$E$43 = "Medium Effort",'Results Tables'!V15, IF(Pathways!$E$43 = "High Effort", 'Results Tables'!W15, IF(Pathways!$E$43 = "Advanced User Pathway", 'Results Tables'!X15))))) -> 448.9461802
S124: Industrial Refrigeration | T124: ='Results Tables'!T16 -> 325.95261 | U124: =IF(Pathways!$E$43 = "Please Select a Pathway", 'Results Tables'!T16, IF(Pathways!$E$43 = "Low Effort", 'Results Tables'!U16, IF(Pathways!$E$43 = "Medium Effort",'Results Tables'!V16, IF(Pathways!$E$43 = "High Effort", 'Results Tables'!W16, IF(Pathways!$E$43 = "Advanced User Pathway", 'Results Tables'!X16))))) -> 325.95261
S125: Transport AC | T125: ='Results Tables'!T17 -> 3700.526798 | U125: =IF(Pathways!$E$43 = "Please Select a Pathway", 'Results Tables'!T17, IF(Pathways!$E$43 = "Low Effort", 'Results Tables'!U17, IF(Pathways!$E$43 = "Medium Effort",'Results Tables'!V17, IF(Pathways!$E$43 = "High Effort", 'Results Tables'!W17, IF(Pathways!$E$43 = "Advanced User Pathway", 'Results Tables'!X17))))) -> 3700.526798
S126: Transport Refrigeration | T126: ='Results Tables'!T18 -> 867.631904 | U126: =IF(Pathways!$E$43 = "Please Select a Pathway", 'Results Tables'!T18, IF(Pathways!$E$43 = "Low Effort", 'Results Tables'!U18, IF(Pathways!$E$43 = "Medium Effort",'Results Tables'!V18, IF(Pathways!$E$43 = "High Effort", 'Results Tables'!W18, IF(Pathways!$E$43 = "Advanced User Pathway", 'Results Tables'!X18))))) -> 867.631904
R127: Europe | S127: Commercial AC | T127: ='Results Tables'!T19 -> 287.9703709 | U127: =IF(Pathways!$E$43 = "Please Select a Pathway", 'Results Tables'!T19, IF(Pathways!$E$43 = "Low Effort", 'Results Tables'!U19, IF(Pathways!$E$43 = "Medium Effort",'Results Tables'!V19, IF(Pathways!$E$43 = "High Effort", 'Results Tables'!W19, IF(Pathways!$E$43 = "Advanced User Pathway", 'Results Tables'!X19))))) -> 287.9703709
S128: Commercial Refrigeration | T128: ='Results Tables'!T20 -> 238.2408181 | U128: =IF(Pathways!$E$43 = "Please Select a Pathway", 'Results Tables'!T20, IF(Pathways!$E$43 = "Low Effort", 'Results Tables'!U20, IF(Pathways!$E$43 = "Medium Effort",'Results Tables'!V20, IF(Pathways!$E$43 = "High Effort", 'Results Tables'!W20, IF(Pathways!$E$43 = "Advanced User Pathway", 'Results Tables'!X20))))) -> 238.2408181
S129: Domestic AC | T129: ='Results Tables'!T21 -> 116.8399134 | U129: =IF(Pathways!$E$43 = "Please Select a Pathway", 'Results Tables'!T21, IF(Pathways!$E$43 = "Low Effort", 'Results Tables'!U21, IF(Pathways!$E$43 = "Medium Effort",'Results Tables'!V21, IF(Pathways!$E$43 = "High Effort", 'Results Tables'!W21, IF(Pathways!$E$43 = "Advanced User Pathway", 'Results Tables'!X21))))) -> 116.8399134
S130: Domestic Refrigeration | T130: ='Results Tables'!T22 -> 164.33712 | U130: =IF(Pathways!$E$43 = "Please Select a Pathway", 'Results Tables'!T22, IF(Pathways!$E$43 = "Low Effort", 'Results Tables'!U22, IF(Pathways!$E$43 = "Medium Effort",'Results Tables'!V22, IF(Pathways!$E$43 = "High Effort", 'Results Tables'!W22, IF(Pathways!$E$43 = "Advanced User Pathway", 'Results Tables'!X22))))) -> 164.33712
S131: Industrial AC | T131: ='Results Tables'!T23 -> 78.51801006 | U131: =IF(Pathways!$E$43 = "Please Select a Pathway", 'Results Tables'!T23, IF(Pathways!$E$43 = "Low Effort", 'Results Tables'!U23, IF(Pathways!$E$43 = "Medium Effort",'Results Tables'!V23, IF(Pathways!$E$43 = "High Effort", 'Results Tables'!W23, IF(Pathways!$E$43 = "Advanced User Pathway", 'Results Tables'!X23))))) -> 78.51801006
S132: Industrial Refrigeration | T132: ='Results Tables'!T24 -> 123.5208 | U132: =IF(Pathways!$E$43 = "Please Select a Pathway", 'Results Tables'!T24, IF(Pathways!$E$43 = "Low Effort", 'Results Tables'!U24, IF(Pathways!$E$43 = "Medium Effort",'Results Tables'!V24, IF(Pathways!$E$43 = "High Effort", 'Results Tables'!W24, IF(Pathways!$E$43 = "Advanced User Pathway", 'Results Tables'!X24))))) -> 123.5208
S133: Transport AC | T133: ='Results Tables'!T25 -> 890.1417154 | U133: =IF(Pathways!$E$43 = "Please Select a Pathway", 'Results Tables'!T25, IF(Pathways!$E$43 = "Low Effort", 'Results Tables'!U25, IF(Pathways!$E$43 = "Medium Effort",'Results Tables'!V25, IF(Pathways!$E$43 = "High Effort", 'Results Tables'!W25, IF(Pathways!$E$43 = "Advanced User Pathway", 'Results Tables'!X25))))) -> 890.1417154
S134: Transport Refrigeration | T134: ='Results Tables'!T26 -> 20.92551905 | U134: =IF(Pathways!$E$43 = "Please Select a Pathway", 'Results Tables'!T26, IF(Pathways!$E$43 = "Low Effort", 'Results Tables'!U26, IF(Pathways!$E$43 = "Medium Effort",'Results Tables'!V26, IF(Pathways!$E$43 = "High Effort", 'Results Tables'!W26, IF(Pathways!$E$43 = "Advanced User Pathway", 'Results Tables'!X26))))) -> 20.92551905
R135: North America | S135: Commercial AC | T135: ='Results Tables'!T27 -> 1324.467911 | U135: =IF(Pathways!$E$43 = "Please Select a Pathway", 'Results Tables'!T27, IF(Pathways!$E$43 = "Low Effort", 'Results Tables'!U27, IF(Pathways!$E$43 = "Medium Effort",'Results Tables'!V27, IF(Pathways!$E$43 = "High Effort", 'Results Tables'!W27, IF(Pathways!$E$43 = "Advanced User Pathway", 'Results Tables'!X27))))) -> 1324.467911
S136: Commercial Refrigeration | T136: ='Results Tables'!T28 -> 102.3945491 | U136: =IF(Pathways!$E$43 = "Please Select a Pathway", 'Results Tables'!T28, IF(Pathways!$E$43 = "Low Effort", 'Results Tables'!U28, IF(Pathways!$E$43 = "Medium Effort",'Results Tables'!V28, IF(Pathways!$E$43 = "High Effort", 'Results Tables'!W28, IF(Pathways!$E$43 = "Advanced User Pathway", 'Results Tables'!X28))))) -> 102.3945491
S137: Domestic AC | T137: ='Results Tables'!T29 -> 1766.102397 | U137: =IF(Pathways!$E$43 = "Please Select a Pathway", 'Results Tables'!T29, IF(Pathways!$E$43 = "Low Effort", 'Results Tables'!U29, IF(Pathways!$E$43 = "Medium Effort",'Results Tables'!V29, IF(Pathways!$E$43 = "High Effort", 'Results Tables'!W29, IF(Pathways!$E$43 = "Advanced User Pathway", 'Results Tables'!X29))))) -> 1766.102397
S138: Domestic Refrigeration | T138: ='Results Tables'!T30 -> 125.924784 | U138: =IF(Pathways!$E$43 = "Please Select a Pathway", 'Results Tables'!T30, IF(Pathways!$E$43 = "Low Effort", 'Results Tables'!U30, IF(Pathways!$E$43 = "Medium Effort",'Results Tables'!V30, IF(Pathways!$E$43 = "High Effort", 'Results Tables'!W30, IF(Pathways!$E$43 = "Advanced User Pathway", 'Results Tables'!X30))))) -> 125.924784
S139: Industrial AC | T139: ='Results Tables'!T31 -> 218.2657715 | U139: =IF(Pathways!$E$43 = "Please Select a Pathway", 'Results Tables'!T31, IF(Pathways!$E$43 = "Low Effort", 'Results Tables'!U31, IF(Pathways!$E$43 = "Medium Effort",'Results Tables'!V31, IF(Pathways!$E$43 = "High Effort", 'Results Tables'!W31, IF(Pathways!$E$43 = "Advanced User Pathway", 'Results Tables'!X31))))) -> 218.2657715
S140: Industrial Refrigeration | T140: ='Results Tables'!T32 -> 126.8286 | U140: =IF(Pathways!$E$43 = "Please Select a Pathway", 'Results Tables'!T32, IF(Pathways!$E$43 = "Low Effort", 'Results Tables'!U32, IF(Pathways!$E$43 = "Medium Effort",'Results Tables'!V32, IF(Pathways!$E$43 = "High Effort", 'Results Tables'!W32, IF(Pathways!$E$43 = "Advanced User Pathway", 'Results Tables'!X32))))) -> 126.8286
S141: Transport AC | T141: ='Results Tables'!T33 -> 608.0201461 | U141: =IF(Pathways!$E$43 = "Please Select a Pathway", 'Results Tables'!T33, IF(Pathways!$E$43 = "Low Effort", 'Results Tables'!U33, IF(Pathways!$E$43 = "Medium Effort",'Results Tables'!V33, IF(Pathways!$E$43 = "High Effort", 'Results Tables'!W33, IF(Pathways!$E$43 = "Advanced User Pathway", 'Results Tables'!X33))))) -> 608.0201461
S142: Transport Refrigeration | T142: ='Results Tables'!T34 -> 30.50607933 | U142: =IF(Pathways!$E$43 = "Please Select a Pathway", 'Results Tables'!T34, IF(Pathways!$E$43 = "Low Effort", 'Results Tables'!U34, IF(Pathways!$E$43 = "Medium Effort",'Results Tables'!V34, IF(Pathways!$E$43 = "High Effort", 'Results Tables'!W34, IF(Pathways!$E$43 = "Advanced User Pathway", 'Results Tables'!X34))))) -> 30.50607933
R143: South and Central America | S143: Commercial AC | T143: ='Results Tables'!T35 -> 290.183336 | U143: =IF(Pathways!$E$43 = "Please Select a Pathway", 'Results Tables'!T35, IF(Pathways!$E$43 = "Low Effort", 'Results Tables'!U35, IF(Pathways!$E$43 = "Medium Effort",'Results Tables'!V35, IF(Pathways!$E$43 = "High Effort", 'Results Tables'!W35, IF(Pathways!$E$43 = "Advanced User Pathway", 'Results Tables'!X35))))) -> 290.183336
S144: Commercial Refrigeration | T144: ='Results Tables'!T36 -> 133.4790802 | U144: =IF(Pathways!$E$43 = "Please Select a Pathway", 'Results Tables'!T36, IF(Pathways!$E$43 = "Low Effort", 'Results Tables'!U36, IF(Pathways!$E$43 = "Medium Effort",'Results Tables'!V36, IF(Pathways!$E$43 = "High Effort", 'Results Tables'!W36, IF(Pathways!$E$43 = "Advanced User Pathway", 'Results Tables'!X36))))) -> 133.4790802
S145: Domestic AC | T145: ='Results Tables'!T37 -> 770.7672643 | U145: =IF(Pathways!$E$43 = "Please Select a Pathway", 'Results Tables'!T37, IF(Pathways!$E$43 = "Low Effort", 'Results Tables'!U37, IF(Pathways!$E$43 = "Medium Effort",'Results Tables'!V37, IF(Pathways!$E$43 = "High Effort", 'Results Tables'!W37, IF(Pathways!$E$43 = "Advanced User Pathway", 'Results Tables'!X37))))) -> 770.7672643
S146: Domestic Refrigeration | T146: ='Results Tables'!T38 -> 89.510124 | U146: =IF(Pathways!$E$43 = "Please Select a Pathway", 'Results Tables'!T38, IF(Pathways!$E$43 = "Low Effort", 'Results Tables'!U38, IF(Pathways!$E$43 = "Medium Effort",'Results Tables'!V38, IF(Pathways!$E$43 = "High Effort", 'Results Tables'!W38, IF(Pathways!$E$43 = "Advanced User Pathway", 'Results Tables'!X38))))) -> 89.510124
S147: Industrial AC | T147: ='Results Tables'!T39 -> 33.50086438 | U147: =IF(Pathways!$E$43 = "Please Select a Pathway", 'Results Tables'!T39, IF(Pathways!$E$43 = "Low Effort", 'Results Tables'!U39, IF(Pathways!$E$43 = "Medium Effort",'Results Tables'!V39, IF(Pathways!$E$43 = "High Effort", 'Results Tables'!W39, IF(Pathways!$E$43 = "Advanced User Pathway", 'Results Tables'!X39))))) -> 33.50086438
S148: Industrial Refrigeration | T148: ='Results Tables'!T40 -> 18.16404 | U148: =IF(Pathways!$E$43 = "Please Select a Pathway", 'Results Tables'!T40, IF(Pathways!$E$43 = "Low Effort", 'Results Tables'!U40, IF(Pathways!$E$43 = "Medium Effort",'Results Tables'!V40, IF(Pathways!$E$43 = "High Effort", 'Results Tables'!W40, IF(Pathways!$E$43 = "Advanced User Pathway", 'Results Tables'!X40))))) -> 18.16404
S149: Transport AC | T149: ='Results Tables'!T41 -> 411.6638643 | U149: =IF(Pathways!$E$43 = "Please Select a Pathway", 'Results Tables'!T41, IF(Pathways!$E$43 = "Low Effort", 'Results Tables'!U41, IF(Pathways!$E$43 = "Medium Effort",'Results Tables'!V41, IF(Pathways!$E$43 = "High Effort", 'Results Tables'!W41, IF(Pathways!$E$43 = "Advanced User Pathway", 'Results Tables'!X41))))) -> 411.6638643
S150: Transport Refrigeration | T150: ='Results Tables'!T42 -> 19.34981127 | U150: =IF(Pathways!$E$43 = "Please Select a Pathway", 'Results Tables'!T42, IF(Pathways!$E$43 = "Low Effort", 'Results Tables'!U42, IF(Pathways!$E$43 = "Medium Effort",'Results Tables'!V42, IF(Pathways!$E$43 = "High Effort", 'Results Tables'!W42, IF(Pathways!$E$43 = "Advanced User Pathway", 'Results Tables'!X42))))) -> 19.34981127

Sheet Stock Results
B6: Stock by Region | W6: Pathway: | X6: =Pathways!$E$43 -> Please Select a Pathway
W9: Stock (millions of units)
W10: 2020 | X10: 2050
V11: Africa | W11: ='Results Tables'!$AA$47 / 10^6 -> 206.2590233 | X11: ='Results Tables'!$AB$47 / 10^6 -> 1023.771641
V12: Asia | W12: ='Results Tables'!$AA$48 / 10^6 -> 2424.703167 | X12: ='Results Tables'!$AB$48 / 10^6 -> 7427.097589
V13: Europe | W13: ='Results Tables'!$AA$49 / 10^6 -> 685.6613065 | X13: ='Results Tables'!$AB$49 / 10^6 -> 1009.5802
V14: North America | W14: ='Results Tables'!$AA$50 / 10^6 -> 902.6417107 | X14: ='Results Tables'!$AB$50 / 10^6 -> 1331.114746
V15: South America | W15: ='Results Tables'!$AA$51 / 10^6 -> 282.6809718 | X15: ='Results Tables'!$AB$51 / 10^6 -> 655.1028112
V16: Global | W16: =SUM(W11:W15) -> 4501.946179 | X16: =SUM(X11:X15) -> 11446.66699
B38: Stock by Sector | W38: Pathway: | X38: =Pathways!$E$43 -> Please Select a Pathway
W41: Stock (millions of units)
W42: 2020 | X42: 2050
V43: Commercial AC | W43: ='Results Tables'!AA57 / 10^6 -> 608.448356 | X43: ='Results Tables'!AB57 / 10^6 -> 1366.671703
V44: Commercial Refrigeration | W44: ='Results Tables'!AA58 / 10^6 -> 90.6 | X44: ='Results Tables'!AB58 / 10^6 -> 122
V45: Domestic AC | W45: ='Results Tables'!AA59 / 10^6 -> 917 | X45: ='Results Tables'!AB59 / 10^6 -> 3770
V46: Domestic Refrigeration | W46: ='Results Tables'!AA60 / 10^6 -> 1511.37 | X46: ='Results Tables'!AB60 / 10^6 -> 3075.28
V47: Industrial AC | W47: ='Results Tables'!AA61 / 10^6 -> 5.53266 | X47: ='Results Tables'!AB61 / 10^6 -> 6.29936
V48: Industrial Refrigeration | W48: ='Results Tables'!AA62 / 10^6 -> 0.514327 | X48: ='Results Tables'!AB62 / 10^6 -> 0.572125
V49: Transport AC | W49: ='Results Tables'!AA63 / 10^6 -> 1361.544374 | X49: ='Results Tables'!AB63 / 10^6 -> 3074.674309
V50: Transport Refrigeration | W50: ='Results Tables'!AA64 / 10^6 -> 6.936462 | X50: ='Results Tables'!AB64 / 10^6 -> 31.16949
V51: Total | W51: =SUM(W43:W50) -> 4501.946179 | X51: =SUM(X43:X50) -> 11446.66699

Sheet Results Tables (hidden)
A1: Emissions | T1: Energy Consumption (TWh / year) | AB1: Stock | AG1: Emissions Savings
R2: Region | S2: Sector | T2: 2050 Baseline | U2: Low Effort | V2: Medium Effort | W2: High Effort | X2: Advanced User Pathway | Z2: Region | AA2: Sector | AB2: 2020 Stock | AC2: 2050 Stock
C3: Direct Emissions (Mt CO2e) | K3: Direct Emissions (Mt CO2e) | R3: Africa | S3: Commercial AC | T3: =SUM('Baseline Calcs'!CT144:CT150) / 10^9 -> 903.6614332 | U3: =SUM('Indirect Emissions Calcs'!K321:K327) / 10^9 -> 834.8715859 | V3: =SUM('Indirect Emissions Calcs'!K498:K504) / 10^9 -> 523.7517033 | W3: =SUM('Indirect Emissions Calcs'!K675:K681) / 10^9 -> 369.4356759 | X3: =SUM('Indirect Emissions Calcs'!K852:K858) / 10^9 -> 0 | Z3: Africa | AA3: Commercial AC | AB3: =SUM('Direct Emissions Calcs'!F144:F150) -> 76434480 | AC3: =SUM('Direct Emissions Calcs'!F852:F858) -> 168333990 | AI3: Emissions Savings (Mt CO2e) | AN3: Emissions Savings (Mt CO2e)
A4: Region | B4: Sector | C4: 2020 Baseline | D4: 2050 Baseline | E4: Low Effort | F4: Medium Effort | G4: High Effort | H4: Advanced User Pathway | J4: Region | K4: 2020 Baseline | L4: 2050 Baseline | M4: Low Effort | N4: Medium Effort | O4: High Effort | P4: Advanced User Pathway | S4: Commercial Refrigeration | T4: =SUM('Baseline Calcs'!CT79:CT81) / 10^9 -> 145.6211059 | U4: =SUM('Indirect Emissions Calcs'!K256:K258) / 10^9 -> 134.2747264 | V4: =SUM('Indirect Emissions Calcs'!K433:K435) / 10^9 -> 84.09605198 | W4: =SUM('Indirect Emissions Calcs'!K610:K612) / 10^9 -> 59.25947226 | X4: =SUM('Indirect Emissions Calcs'!K787:K789) / 10^9 -> 0 | AA4: Commercial Refrigeration | AB4: =SUM('Direct Emissions Calcs'!F79:F81) -> 18187795.31 | AC4: =SUM('Direct Emissions Calcs'!F787:F789) -> 24491291.69 | AG4: Region | AH4: Sector | AI4: Direct Emissions Savings | AJ4: Indirect Emissions Savings | AK4: Total Emissions Savings | AM4: Region | AN4: Direct Emissions Savings | AO4: Indirect Emissions Savings | AP4: Total Emissions Savings
A5: Africa | B5: Commercial AC | C5: =SUM('Direct Emissions Calcs'!BS144:BS150) -> 38.02550658 | D5: =SUM('Baseline Calcs'!BU144:BU150) -> 45.18960354 | E5: =SUM('Direct Emissions Calcs'!Q321:Q327) -> 30.72893041 | F5: =SUM('Direct Emissions Calcs'!Q498:Q504) -> 3.615168283 | G5: =SUM('Direct Emissions Calcs'!Q675:Q681) -> 0.009712450388 | H5: =SUM('Direct Emissions Calcs'!Q852:Q858) -> 0 | J5: Africa | K5: =SUM(C5:C12) -> 87.30026728 | L5: 156.9232756 | M5: 102.1373077 | N5: 12.31605183 | O5: 0.02223773045 | P5: 0 | S5: Domestic AC | T5: =SUM('Baseline Calcs'!CT19:CT30)/10^9 -> 762.8033138 | U5: =SUM('Indirect Emissions Calcs'!K196:K207) / 10^9 -> 651.2123024 | V5: =SUM('Indirect Emissions Calcs'!K373:K384) / 10^9 -> 385.9796354 | W5: =SUM('Indirect Emissions Calcs'!K550:K561) / 10^9 -> 284.0252022 | X5: =SUM('Indirect Emissions Calcs'!K727:K738)/10^9 -> 0 | AA5: Domestic AC | AB5: =SUM('Direct Emissions Calcs'!F19:F30) -> 32000000 | AC5: =IF(Pathways!$E$43="Please Select a Pathway",'Size Summary-Base'!F196,IF(Pathways!$E$43="Low Effort",SUM('Direct Emissions Calcs'!F196:F207),IF(Pathways!$E$43="Medium Effort",SUM('Direct Emissions Calcs'!F373:F384),IF(Pathways!$E$43="High Effort",SUM('Direct Emissions Calcs'!F550:F561),IF(Pathways!$E$43="Advanced User Pathway",SUM('Direct Emissions Calcs'!F727:F738)))))) -> 235000000 | AG5: Africa | AH5: Commercial AC | AI5: =D5 - IF(Pathways!$E$43 = "Please Select a Pathway", 'Results Tables'!D5, IF(Pathways!$E$43 = "Low Effort", 'Results Tables'!E5, IF(Pathways!$E$43 = "Medium Effort", 'Results Tables'!F5, IF(Pathways!$E$43 = "High Effort", 'Results Tables'!G5, IF(Pathways!$E$43 = "Advanced User Pathway", 'Results Tables'!H5))))) -> 0 | AJ5: =D50 - IF(Pathways!$E$43 = "Please Select a Pathway", D50, IF(Pathways!$E$43 = "Low Effort", E50, IF(Pathways!$E$43 = "Medium Effort", F50, IF(Pathways!$E$43 = "High Effort", G50, IF(Pathways!$E$43 = "Advanced User Pathway", H50))))) -> 0 | AK5: =SUM(AI5:AJ5) -> 0 | AM5: Africa | AN5: =SUM(AI5:AI12) -> 0 | AO5: =SUM(AJ5:AJ12) -> 0 | AP5: 0
B6: Commercial Refrigeration | C6: =SUM('Direct Emissions Calcs'!BS79:BS81) -> 29.36217784 | D6: =SUM('Baseline Calcs'!BU79:BU81) -> 39.53847347 | E6: =SUM('Direct Emissions Calcs'!Q256:Q258) -> 26.18668809 | F6: =SUM('Direct Emissions Calcs'!Q433:Q435) -> 3.135926199 | G6: =SUM('Direct Emissions Calcs'!Q610:Q612) -> 0.004296390723 | H6: =SUM('Direct Emissions Calcs'!Q787:Q789) -> 0 | J6: Asia | K6: =SUM(C13:C20) -> 509.5440678 | L6: 987.9543945 | M6: 646.7285567 | N6: 77.60061212 | O6: 0.1334215224 | P6: 0 | S6: Domestic Refrigeration | T6: ='Baseline Calcs'!CT4/10^9 -> 127.65024 | U6: ='Indirect Emissions Calcs'!K181/10^9 -> 116.7999696 | V6: ='Indirect Emissions Calcs'!K358/10^9 -> 90.41892 | W6: ='Indirect Emissions Calcs'!K535 / 10^9 -> 45.741336 | X6: ='Indirect Emissions Calcs'!K712/10^9 -> 0 | AA6: Domestic Refrigeration | AB6: ='Direct Emissions Calcs'!F4 -> 78400000 | AC6: ='Direct Emissions Calcs'!F712 -> 304800000 | AH6: Commercial Refrigeration | AI6: =D6 - IF(Pathways!$E$43 = "Please Select a Pathway", 'Results Tables'!D6, IF(Pathways!$E$43 = "Low Effort", 'Results Tables'!E6, IF(Pathways!$E$43 = "Medium Effort", 'Results Tables'!F6, IF(Pathways!$E$43 = "High Effort", 'Results Tables'!G6, IF(Pathways!$E$43 = "Advanced User Pathway", 'Results Tables'!H6))))) -> 0 | AJ6: =D51 - IF(Pathways!$E$43 = "Please Select a Pathway", D51, IF(Pathways!$E$43 = "Low Effort", E51, IF(Pathways!$E$43 = "Medium Effort", F51, IF(Pathways!$E$43 = "High Effort", G51, IF(Pathways!$E$43 = "Advanced User Pathway", H51))))) -> 0 | AK6: =SUM(AI6:AJ6) -> 0 | AM6: Asia | AN6: =SUM(AI13:AI20) -> 0 | AO6: =SUM(AJ13:AJ20) -> 0 | AP6: 0
B7: Domestic AC | C7: =SUM('Direct Emissions Calcs'!BS19:BS30) -> 2.131093042 | D7: =SUM('Baseline Calcs'!BU19:BU30) -> 20.02646049 | E7: =SUM('Direct Emissions Calcs'!Q196:Q207) -> 12.83689232 | F7: =SUM('Direct Emissions Calcs'!Q373:Q384) -> 1.539885339 | G7: =SUM('Direct Emissions Calcs'!Q550:Q561) -> 0.001779953858 | H7: =SUM('Direct Emissions Calcs'!Q727:Q738) -> 0 | J7: Europe | K7: =SUM(C21:C28) -> 106.2569311 | L7: 135.9996014 | M7: 89.71039581 | N7: 10.856023 | O7: 0.01950869705 | P7: 0 | S7: Industrial AC | T7: =SUM('Baseline Calcs'!CT94:CT95)/10^9 -> 63.19161677 | U7: =SUM('Indirect Emissions Calcs'!K271:K272) / 10^9 -> 59.40011977 | V7: =SUM('Indirect Emissions Calcs'!K448:K449) / 10^9 -> 44.23413174 | W7: =SUM('Indirect Emissions Calcs'!K625:K626) / 10^9 -> 31.59580839 | X7: =SUM('Indirect Emissions Calcs'!K802:K803)/10^9 -> 0 | AA7: Industrial AC | AB7: =SUM('Direct Emissions Calcs'!F94:F95) -> 186700 | AC7: =SUM('Direct Emissions Calcs'!F802:F803) -> 345100 | AH7: Domestic AC | AI7: =D7 - IF(Pathways!$E$43 = "Please Select a Pathway", 'Results Tables'!D7, IF(Pathways!$E$43 = "Low Effort", 'Results Tables'!E7, IF(Pathways!$E$43 = "Medium Effort", 'Results Tables'!F7, IF(Pathways!$E$43 = "High Effort", 'Results Tables'!G7, IF(Pathways!$E$43 = "Advanced User Pathway", 'Results Tables'!H7))))) -> 0 | AJ7: =D52 - IF(Pathways!$E$43 = "Please Select a Pathway", D52, IF(Pathways!$E$43 = "Low Effort", E52, IF(Pathways!$E$43 = "Medium Effort", F52, IF(Pathways!$E$43 = "High Effort", G52, IF(Pathways!$E$43 = "Advanced User Pathway", H52))))) -> 0 | AK7: 0 | AM7: Europe | AN7: =SUM(AI21:AI28) -> 0 | AO7: =SUM(AJ21:AJ28) -> 0 | AP7: 0
B8: Domestic Refrigeration | C8: ='Direct Emissions Calcs'!BS4 -> 0.31917865 | D8: ='Baseline Calcs'!BU4 -> 1.240888425 | E8: ='Direct Emissions Calcs'!Q181 -> 0.8457895505 | F8: ='Direct Emissions Calcs'!Q358 -> 0.099271074 | G8: ='Direct Emissions Calcs'!Q535 -> 0.00013335 | H8: ='Direct Emissions Calcs'!Q712 -> 0 | J8: North America | K8: =SUM(C29:C36) -> 122.7928925 | L8: 160.1659171 | M8: 104.5343972 | N8: 12.59431402 | O8: 0.02869322983 | P8: 0 | S8: Industrial Refrigeration | T8: =SUM('Baseline Calcs'!CT9,'Baseline Calcs'!CT14)/10^9 -> 40.5927 | U8: =SUM('Indirect Emissions Calcs'!K186,'Indirect Emissions Calcs'!K191) / 10^9 -> 38.157138 | V8: =SUM('Indirect Emissions Calcs'!K363,'Indirect Emissions Calcs'!K368) / 10^9 -> 28.41489 | W8: =SUM('Indirect Emissions Calcs'!K540,'Indirect Emissions Calcs'!K545) / 10^9 -> 20.29635 | X8: =SUM('Indirect Emissions Calcs'!K717,'Indirect Emissions Calcs'!K722)/10^9 -> 0 | AA8: Industrial Refrigeration | AB8: =SUM('Direct Emissions Calcs'!F9,'Direct Emissions Calcs'!F14) -> 19790 | AC8: =SUM('Direct Emissions Calcs'!F717,'Direct Emissions Calcs'!F722) -> 36570 | AH8: Domestic Refrigeration | AI8: =D8 - IF(Pathways!$E$43 = "Please Select a Pathway", 'Results Tables'!D8, IF(Pathways!$E$43 = "Low Effort", 'Results Tables'!E8, IF(Pathways!$E$43 = "Medium Effort", 'Results Tables'!F8, IF(Pathways!$E$43 = "High Effort", 'Results Tables'!G8, IF(Pathways!$E$43 = "Advanced User Pathway", 'Results Tables'!H8))))) -> 0 | AJ8: =D53 - IF(Pathways!$E$43 = "Please Select a Pathway", D53, IF(Pathways!$E$43 = "Low Effort", E53, IF(Pathways!$E$43 = "Medium Effort", F53, IF(Pathways!$E$43 = "High Effort", G53, IF(Pathways!$E$43 = "Advanced User Pathway", H53))))) -> 0 | AK8: 0 | AM8: North America | AN8: =SUM(AI29:AI36) -> 0 | AO8: =SUM(AJ29:AJ36) -> 0 | AP8: 0
B9: Industrial AC | C9: =SUM('Direct Emissions Calcs'!BS94:BS95) -> 4.393225751 | D9: =SUM('Baseline Calcs'!BU94:BU95) -> 8.120526014 | E9: =SUM('Direct Emissions Calcs'!Q271:Q272) -> 5.521957689 | F9: =SUM('Direct Emissions Calcs'!Q448:Q449) -> 0.6496420811 | G9: =SUM('Direct Emissions Calcs'!Q625:Q626) -> 0.001135737904 | H9: =SUM('Direct Emissions Calcs'!Q802:Q803) -> 0 | J9: South America | K9: =SUM(C37:C44) -> 48.72320898 | L9: 80.90664256 | M9: 53.13686848 | N9: 6.383907451 | O9: 0.01061722991 | P9: 0 | S9: Transport AC | T9: =SUM('Baseline Calcs'!CT124:CT127)/10^9 -> 581.4689494 | U9: =SUM('Indirect Emissions Calcs'!K301:K304) / 10^9 -> 526.2946638 | V9: =SUM('Indirect Emissions Calcs'!K478:K481) / 10^9 -> 300.6431724 | W9: =SUM('Indirect Emissions Calcs'!K655:K658) / 10^9 -> 176.7487472 | X9: =SUM('Indirect Emissions Calcs'!K832:K835)/10^9 -> 0 | AA9: Transport AC | AB9: =SUM('Direct Emissions Calcs'!F104:F107) -> 515129 | AC9: =SUM('Direct Emissions Calcs'!F832:F835) -> 286776387 | AH9: Industrial AC | AI9: =D9 - IF(Pathways!$E$43 = "Please Select a Pathway", 'Results Tables'!D9, IF(Pathways!$E$43 = "Low Effort", 'Results Tables'!E9, IF(Pathways!$E$43 = "Medium Effort", 'Results Tables'!F9, IF(Pathways!$E$43 = "High Effort", 'Results Tables'!G9, IF(Pathways!$E$43 = "Advanced User Pathway", 'Results Tables'!H9))))) -> 0 | AJ9: =D54 - IF(Pathways!$E$43 = "Please Select a Pathway", D54, IF(Pathways!$E$43 = "Low Effort", E54, IF(Pathways!$E$43 = "Medium Effort", F54, IF(Pathways!$E$43 = "High Effort", G54, IF(Pathways!$E$43 = "Advanced User Pathway", H54))))) -> 0 | AK9: 0 | AM9: South America | AN9: =SUM(AI37:AI44) -> 0 | AO9: =SUM(AJ37:AJ44) -> 0 | AP9: 0
B10: Industrial Refrigeration | C10: =SUM('Direct Emissions Calcs'!BS9,'Direct Emissions Calcs'!BS14) -> 4.711882021 | D10: =SUM('Baseline Calcs'!BU9,'Baseline Calcs'!BU14) -> 8.707100833 | E10: =SUM('Direct Emissions Calcs'!Q186,'Direct Emissions Calcs'!Q191) -> 5.635817083 | F10: =SUM('Direct Emissions Calcs'!Q363,'Direct Emissions Calcs'!Q368) -> 0.6965680667 | G10: =SUM('Direct Emissions Calcs'!Q540,'Direct Emissions Calcs'!Q545) -> 0.0008767891548 | H10: =SUM('Direct Emissions Calcs'!Q717,'Direct Emissions Calcs'!Q722) -> 0 | J10: Global | K10: =SUM(K5:K9) -> 874.6173677 | L10: =SUM(L5:L9) -> 1521.949831 | M10: =SUM(M5:M9) -> 996.2475259 | N10: 119.7509084 | O10: 0.2144784096 | P10: 0 | S10: Transport Refrigeration | T10: =SUM('Baseline Calcs'!CT104:CT107)/10^9 -> 102.2300828 | U10: =SUM('Indirect Emissions Calcs'!K281:K284) / 10^9 -> 96.0962778 | V10: =SUM('Indirect Emissions Calcs'!K458:K461) / 10^9 -> 71.56105794 | W10: =SUM('Indirect Emissions Calcs'!K635:K638) / 10^9 -> 51.11504138 | X10: =SUM('Indirect Emissions Calcs'!K812:K815)/10^9 -> 0 | AA10: Transport Refrigeration | AB10: =SUM('Direct Emissions Calcs'!F104:F107) -> 515129 | AC10: =SUM('Direct Emissions Calcs'!F812:F815) -> 3988302 | AH10: Industrial Refrigeration | AI10: =D10 - IF(Pathways!$E$43 = "Please Select a Pathway", 'Results Tables'!D10, IF(Pathways!$E$43 = "Low Effort", 'Results Tables'!E10, IF(Pathways!$E$43 = "Medium Effort", 'Results Tables'!F10, IF(Pathways!$E$43 = "High Effort", 'Results Tables'!G10, IF(Pathways!$E$43 = "Advanced User Pathway", 'Results Tables'!H10))))) -> 0 | AJ10: =D55 - IF(Pathways!$E$43 = "Please Select a Pathway", D55, IF(Pathways!$E$43 = "Low Effort", E55, IF(Pathways!$E$43 = "Medium Effort", F55, IF(Pathways!$E$43 = "High Effort", G55, IF(Pathways!$E$43 = "Advanced User Pathway", H55))))) -> 0 | AK10: 0 | AM10: Global | AN10: =SUM(AN5:AN9) -> 0 | AO10: =SUM(AO5:AO9) -> 0 | AP10: 0
B11: Transport AC | C11: =SUM('Direct Emissions Calcs'!BS124:BS127) -> 6.873962525 | D11: =SUM('Baseline Calcs'!BU124:BU127) -> 21.35849526 | E11: =SUM('Direct Emissions Calcs'!Q301:Q304) -> 13.32031078 | F11: =SUM('Direct Emissions Calcs'!Q478:Q481) -> 1.746905116 | G11: =SUM('Direct Emissions Calcs'!Q655:Q658) -> 0.003054029923 | H11: =SUM('Direct Emissions Calcs'!Q832:Q835) -> 0 | R11: Asia | S11: Commercial AC | T11: =SUM('Baseline Calcs'!CT151:CT157) / 10^9 -> 4530.372545 | U11: =SUM('Indirect Emissions Calcs'!K328:K334) / 10^9 -> 4185.50485 | V11: =SUM('Indirect Emissions Calcs'!K505:K511) / 10^9 -> 2625.751471 | W11: =SUM('Indirect Emissions Calcs'!K682:K688) / 10^9 -> 1852.110958 | X11: =SUM('Indirect Emissions Calcs'!K859:K865) / 10^9 -> 0 | Z11: Asia | AA11: Commercial AC | AB11: =SUM('Direct Emissions Calcs'!F151:F157) -> 334715300 | AC11: =SUM('Direct Emissions Calcs'!F859:F865) -> 843917488 | AH11: Transport AC | AI11: =D11 - IF(Pathways!$E$43 = "Please Select a Pathway", 'Results Tables'!D11, IF(Pathways!$E$43 = "Low Effort", 'Results Tables'!E11, IF(Pathways!$E$43 = "Medium Effort", 'Results Tables'!F11, IF(Pathways!$E$43 = "High Effort", 'Results Tables'!G11, IF(Pathways!$E$43 = "Advanced User Pathway", 'Results Tables'!H11))))) -> 0 | AJ11: =D56 - IF(Pathways!$E$43 = "Please Select a Pathway", D56, IF(Pathways!$E$43 = "Low Effort", E56, IF(Pathways!$E$43 = "Medium Effort", F56, IF(Pathways!$E$43 = "High Effort", G56, IF(Pathways!$E$43 = "Advanced User Pathway", H56))))) -> 0 | AK11: 0
B12: Transport Refrigeration | C12: =SUM('Direct Emissions Calcs'!BS104:BS107) -> 1.483240872 | D12: =SUM('Baseline Calcs'!BU104:BU107) -> 12.74172752 | E12: =SUM('Direct Emissions Calcs'!Q281:Q284) -> 7.060921767 | F12: =SUM('Direct Emissions Calcs'!Q458:Q461) -> 0.8326856682 | G12: =SUM('Direct Emissions Calcs'!Q635:Q638) -> 0.001249028502 | H12: =SUM('Direct Emissions Calcs'!Q812:Q815) -> 0 | S12: Commercial Refrigeration | T12: =SUM('Baseline Calcs'!CT82:CT84) / 10^9 -> 856.6841488 | U12: =SUM('Indirect Emissions Calcs'!K259:K261) / 10^9 -> 791.0685007 | V12: =SUM('Indirect Emissions Calcs'!K436:K438) / 10^9 -> 497.0037463 | W12: =SUM('Indirect Emissions Calcs'!K613:K615) / 10^9 -> 352.4039389 | X12: =SUM('Indirect Emissions Calcs'!K790:K792) / 10^9 -> 0 | AA12: Commercial Refrigeration | AB12: =SUM('Direct Emissions Calcs'!F82:F84) -> 41906058.73 | AC12: =SUM('Direct Emissions Calcs'!F790:F792) -> 56429792.11 | AH12: Transport Refrigeration | AI12: =D12 - IF(Pathways!$E$43 = "Please Select a Pathway", 'Results Tables'!D12, IF(Pathways!$E$43 = "Low Effort", 'Results Tables'!E12, IF(Pathways!$E$43 = "Medium Effort", 'Results Tables'!F12, IF(Pathways!$E$43 = "High Effort", 'Results Tables'!G12, IF(Pathways!$E$43 = "Advanced User Pathway", 'Results Tables'!H12))))) -> 0 | AJ12: =D57 - IF(Pathways!$E$43 = "Please Select a Pathway", D57, IF(Pathways!$E$43 = "Low Effort", E57, IF(Pathways!$E$43 = "Medium Effort", F57, IF(Pathways!$E$43 = "High Effort", G57, IF(Pathways!$E$43 = "Advanced User Pathway", H57))))) -> 0 | AK12: 0
A13: Asia | B13: Commercial AC | C13: =SUM('Direct Emissions Calcs'!BS152:BS157) -> 140.8451686 | D13: =SUM('Baseline Calcs'!BU151:BU157) -> 226.5513739 | E13: =SUM('Direct Emissions Calcs'!Q328:Q334) -> 154.0549342 | F13: =SUM('Direct Emissions Calcs'!Q505:Q511) -> 18.12410991 | G13: =SUM('Direct Emissions Calcs'!Q682:Q688) -> 0.04869192926 | H13: =SUM('Direct Emissions Calcs'!Q859:Q865) -> 0 | S13: Domestic AC | T13: =SUM('Baseline Calcs'!CT31:CT42) / 10^9 -> 5570.5356 | U13: =SUM('Indirect Emissions Calcs'!K208:K219) / 10^9 -> 4831.898053 | V13: =SUM('Indirect Emissions Calcs'!K385:K396) / 10^9 -> 3270.552062 | W13: =SUM('Indirect Emissions Calcs'!K562:K573) / 10^9 -> 2406.653423 | X13: =SUM('Indirect Emissions Calcs'!K739:K750) / 10^9 -> 0 | AA13: Domestic AC | AB13: =SUM('Direct Emissions Calcs'!F31:F42) -> 500000000 | AC13: =IF(Pathways!$E$43="Please Select a Pathway",'Size Summary-Base'!F208,IF(Pathways!$E$43="Low Effort",SUM('Direct Emissions Calcs'!F208:F219),IF(Pathways!$E$43="Medium Effort",SUM('Direct Emissions Calcs'!F385:F396),IF(Pathways!$E$43="High Effort",SUM('Direct Emissions Calcs'!F562:F573),IF(Pathways!$E$43="Advanced User Pathway",SUM('Direct Emissions Calcs'!F739:F750)))))) -> 2800000000 | AG13: Asia | AH13: Commercial AC | AI13: =D13 - IF(Pathways!$E$43 = "Please Select a Pathway", 'Results Tables'!D13, IF(Pathways!$E$43 = "Low Effort", 'Results Tables'!E13, IF(Pathways!$E$43 = "Medium Effort", 'Results Tables'!F13, IF(Pathways!$E$43 = "High Effort", 'Results Tables'!G13, IF(Pathways!$E$43 = "Advanced User Pathway", 'Results Tables'!H13))))) -> 0 | AJ13: =D58 - IF(Pathways!$E$43 = "Please Select a Pathway", D58, IF(Pathways!$E$43 = "Low Effort", E58, IF(Pathways!$E$43 = "Medium Effort", F58, IF(Pathways!$E$43 = "High Effort", G58, IF(Pathways!$E$43 = "Advanced User Pathway", H58))))) -> 0 | AK13: 0 | AN13: Emissions Savings by percentage (Mt CO2e)
B14: Commercial Refrigeration | C14: =SUM('Direct Emissions Calcs'!BS82:BS84) -> 128.6012378 | D14: =SUM('Baseline Calcs'!BU82:BU84) -> 173.1716447 | E14: =SUM('Direct Emissions Calcs'!Q259:Q261) -> 118.1424016 | F14: =SUM('Direct Emissions Calcs'!Q436:Q438) -> 13.68872874 | G14: =SUM('Direct Emissions Calcs'!Q613:Q615) -> 0.01883174007 | H14: =SUM('Direct Emissions Calcs'!Q790:Q792) -> 0 | K14: Direct Emissions (Mt CO2e) | S14: Domestic Refrigeration | T14: ='Baseline Calcs'!CT5/10^9 -> 780.504996 | U14: ='Indirect Emissions Calcs'!K182/10^9 -> 714.1620713 | V14: ='Indirect Emissions Calcs'!K359/10^9 -> 552.8577055 | W14: ='Indirect Emissions Calcs'!K536/10^9 -> 279.6809569 | X14: ='Indirect Emissions Calcs'!K713/10^9 -> 0 | AA14: Domestic Refrigeration | AB14: ='Direct Emissions Calcs'!F5 -> 832890000 | AC14: ='Direct Emissions Calcs'!F713 -> 1863670000 | AH14: Commercial Refrigeration | AI14: =D14 - IF(Pathways!$E$43 = "Please Select a Pathway", 'Results Tables'!D14, IF(Pathways!$E$43 = "Low Effort", 'Results Tables'!E14, IF(Pathways!$E$43 = "Medium Effort", 'Results Tables'!F14, IF(Pathways!$E$43 = "High Effort", 'Results Tables'!G14, IF(Pathways!$E$43 = "Advanced User Pathway", 'Results Tables'!H14))))) -> 0 | AJ14: =D59 - IF(Pathways!$E$43 = "Please Select a Pathway", D59, IF(Pathways!$E$43 = "Low Effort", E59, IF(Pathways!$E$43 = "Medium Effort", F59, IF(Pathways!$E$43 = "High Effort", G59, IF(Pathways!$E$43 = "Advanced User Pathway", H59))))) -> 0 | AK14: 0 | AM14: Region | AN14: Direct Emissions Savings | AO14: Indirect Emissions Savings | AP14: Total Emissions Savings
B15: Domestic AC | C15: =SUM('Direct Emissions Calcs'!BS31:BS42) -> 34.32828986 | D15: =SUM('Baseline Calcs'!BU31:BU42) -> 241.4263899 | E15: =SUM('Direct Emissions Calcs'!Q208:Q219) -> 148.518541 | F15: =SUM('Direct Emissions Calcs'!Q385:Q396) -> 17.80698943 | G15: =SUM('Direct Emissions Calcs'!Q562:Q573) -> 0.02108750471 | H15: =SUM('Direct Emissions Calcs'!Q739:Q750) -> 0 | J15: Sector | K15: 2020 Baseline | L15: 2050 Baseline | M15: Low Effort | N15: Medium Effort | O15: High Effort | P15: Advanced User Pathway | S15: Industrial AC | T15: =SUM('Baseline Calcs'!CT96:CT97)/10^9 -> 448.9461802 | U15: =SUM('Indirect Emissions Calcs'!K273:K274) / 10^9 -> 422.0094094 | V15: =SUM('Indirect Emissions Calcs'!K450:K451)/10^9 -> 314.2623262 | W15: =SUM('Indirect Emissions Calcs'!K627:K628) / 10^9 -> 224.4730901 | X15: =SUM('Indirect Emissions Calcs'!K804:K805)/10^9 -> 0 | AA15: Industrial AC | AB15: =SUM('Direct Emissions Calcs'!F96:F97) -> 3282100 | AC15: =SUM('Direct Emissions Calcs'!F804:F805) -> 3427990 | AH15: Domestic AC | AI15: =D15 - IF(Pathways!$E$43 = "Please Select a Pathway", 'Results Tables'!D15, IF(Pathways!$E$43 = "Low Effort", 'Results Tables'!E15, IF(Pathways!$E$43 = "Medium Effort", 'Results Tables'!F15, IF(Pathways!$E$43 = "High Effort", 'Results Tables'!G15, IF(Pathways!$E$43 = "Advanced User Pathway", 'Results Tables'!H15))))) -> 0 | AJ15: =D60 - IF(Pathways!$E$43 = "Please Select a Pathway", D60, IF(Pathways!$E$43 = "Low Effort", E60, IF(Pathways!$E$43 = "Medium Effort", F60, IF(Pathways!$E$43 = "High Effort", G60, IF(Pathways!$E$43 = "Advanced User Pathway", H60))))) -> 0 | AK15: 0 | AM15: Africa | AN15: =AN5/L5 -> 0 | AO15: =AO5/L50 -> 0 | AP15: =AP5/L95 -> 0
B16: Domestic Refrigeration | C16: ='Direct Emissions Calcs'!BS5 -> 3.390825329 | D16: ='Baseline Calcs'!BU5 -> 7.587291768 | E16: ='Direct Emissions Calcs'!Q182 -> 5.171498069 | F16: ='Direct Emissions Calcs'!Q359 -> 0.6069833415 | G16: ='Direct Emissions Calcs'!Q536 -> 0.000815355625 | H16: ='Direct Emissions Calcs'!Q713 -> 0 | J16: Commercial AC | K16: =SUM(C5,C13,C21,C29,C37) -> 243.9371061 | L16: 335.9728822 | M16: 228.4615599 | N16: 26.87783058 | O16: 0.07885354058 | P16: 0 | S16: Industrial Refrigeration | T16: =SUM('Baseline Calcs'!CT10,'Baseline Calcs'!CT15)/10^9 -> 325.95261 | U16: =SUM('Indirect Emissions Calcs'!K187,'Indirect Emissions Calcs'!K192) / 10^9 -> 306.3954534 | V16: =SUM('Indirect Emissions Calcs'!K364,'Indirect Emissions Calcs'!K369) / 10^9 -> 228.166827 | W16: =SUM('Indirect Emissions Calcs'!K541,'Indirect Emissions Calcs'!K546) / 10^9 -> 162.976305 | X16: =SUM('Indirect Emissions Calcs'!K718,'Indirect Emissions Calcs'!K723)/10^9 -> 0 | AA16: Industrial Refrigeration | AB16: =SUM('Direct Emissions Calcs'!F10,'Direct Emissions Calcs'!F15) -> 277119 | AC16: =SUM('Direct Emissions Calcs'!F718,'Direct Emissions Calcs'!F723) -> 293651 | AH16: Domestic Refrigeration | AI16: =D16 - IF(Pathways!$E$43 = "Please Select a Pathway", 'Results Tables'!D16, IF(Pathways!$E$43 = "Low Effort", 'Results Tables'!E16, IF(Pathways!$E$43 = "Medium Effort", 'Results Tables'!F16, IF(Pathways!$E$43 = "High Effort", 'Results Tables'!G16, IF(Pathways!$E$43 = "Advanced User Pathway", 'Results Tables'!H16))))) -> 0 | AJ16: =D61 - IF(Pathways!$E$43 = "Please Select a Pathway", D61, IF(Pathways!$E$43 = "Low Effort", E61, IF(Pathways!$E$43 = "Medium Effort", F61, IF(Pathways!$E$43 = "High Effort", G61, IF(Pathways!$E$43 = "Advanced User Pathway", H61))))) -> 0 | AK16: 0 | AM16: Asia | AN16: =AN6/L6 -> 0 | AO16: =AO6/L51 -> 0 | AP16: =AP6/L96 -> 0
B17: Industrial AC | C17: =SUM('Direct Emissions Calcs'!BS96:BS97) -> 77.23088505 | D17: =SUM('Baseline Calcs'!BU96:BU97) -> 80.6638133 | E17: =SUM('Direct Emissions Calcs'!Q273:Q274) -> 54.85139304 | F17: =SUM('Direct Emissions Calcs'!Q450:Q451) -> 6.453105064 | G17: =SUM('Direct Emissions Calcs'!Q627:Q628) -> 0.01128165221 | H17: =SUM('Direct Emissions Calcs'!Q804:Q805) -> 0 | J17: Commercial Refrigeration | K17: 227.4736171 | L17: 306.3110517 | M17: 207.9423848 | N17: 24.20357524 | O17: 0.0332520695 | P17: 0 | S17: Transport AC | T17: =SUM('Baseline Calcs'!CT128:CT131)/10^9 -> 3700.526798 | U17: =SUM('Indirect Emissions Calcs'!K305:K308) / 10^9 -> 3343.886378 | V17: =SUM('Indirect Emissions Calcs'!K482:K485) / 10^9 -> 1894.970932 | W17: =SUM('Indirect Emissions Calcs'!K659:K662) / 10^9 -> 1093.647675 | X17: =SUM('Indirect Emissions Calcs'!K836:K839)/10^9 -> 0 | AA17: Transport AC | AB17: =SUM('Direct Emissions Calcs'!F128:F131) -> 708155237 | AC17: =SUM('Direct Emissions Calcs'!F836:F839) -> 1837547570 | AH17: Industrial AC | AI17: =D17 - IF(Pathways!$E$43 = "Please Select a Pathway", 'Results Tables'!D17, IF(Pathways!$E$43 = "Low Effort", 'Results Tables'!E17, IF(Pathways!$E$43 = "Medium Effort", 'Results Tables'!F17, IF(Pathways!$E$43 = "High Effort", 'Results Tables'!G17, IF(Pathways!$E$43 = "Advanced User Pathway", 'Results Tables'!H17))))) -> 0 | AJ17: =D62 - IF(Pathways!$E$43 = "Please Select a Pathway", D62, IF(Pathways!$E$43 = "Low Effort", E62, IF(Pathways!$E$43 = "Medium Effort", F62, IF(Pathways!$E$43 = "High Effort", G62, IF(Pathways!$E$43 = "Advanced User Pathway", H62))))) -> 0 | AK17: 0 | AM17: Europe | AN17: 0 | AO17: 0 | AP17: 0
B18: Industrial Refrigeration | C18: =SUM('Direct Emissions Calcs'!BS10,'Direct Emissions Calcs'!BS15) -> 65.98039584 | D18: =SUM('Baseline Calcs'!BU10,'Baseline Calcs'!BU15) -> 69.91656732 | E18: =SUM('Direct Emissions Calcs'!Q187,'Direct Emissions Calcs'!Q192) -> 45.2546711 | F18: =SUM('Direct Emissions Calcs'!Q364,'Direct Emissions Calcs'!Q369) -> 5.593325385 | G18: =SUM('Direct Emissions Calcs'!Q541,'Direct Emissions Calcs'!Q546) -> 0.007040470662 | H18: =SUM('Direct Emissions Calcs'!Q718,'Direct Emissions Calcs'!Q723) -> 0 | J18: Domestic AC | K18: 61.92053279 | L18: 324.2835759 | M18: 200.431605 | N18: 24.0286218 | O18: 0.02837497605 | P18: 0 | S18: Transport Refrigeration | T18: =SUM('Baseline Calcs'!CT108:CT111)/10^9 -> 867.631904 | U18: =SUM('Indirect Emissions Calcs'!K285:K288) / 10^9 -> 815.5739898 | V18: =SUM('Indirect Emissions Calcs'!K462:K465) / 10^9 -> 607.3423328 | W18: =SUM('Indirect Emissions Calcs'!K639:K642) / 10^9 -> 433.815952 | X18: =SUM('Indirect Emissions Calcs'!K816:K819)/10^9 -> 0 | AA18: Transport Refrigeration | AB18: =SUM('Direct Emissions Calcs'!F108:F111) -> 3477352 | AC18: =SUM('Direct Emissions Calcs'!F816:F819) -> 21811098 | AH18: Industrial Refrigeration | AI18: =D18 - IF(Pathways!$E$43 = "Please Select a Pathway", 'Results Tables'!D18, IF(Pathways!$E$43 = "Low Effort", 'Results Tables'!E18, IF(Pathways!$E$43 = "Medium Effort", 'Results Tables'!F18, IF(Pathways!$E$43 = "High Effort", 'Results Tables'!G18, IF(Pathways!$E$43 = "Advanced User Pathway", 'Results Tables'!H18))))) -> 0 | AJ18: =D63 - IF(Pathways!$E$43 = "Please Select a Pathway", D63, IF(Pathways!$E$43 = "Low Effort", E63, IF(Pathways!$E$43 = "Medium Effort", F63, IF(Pathways!$E$43 = "High Effort", G63, IF(Pathways!$E$43 = "Advanced User Pathway", H63))))) -> 0 | AK18: 0 | AM18: North America | AN18: 0 | AO18: 0 | AP18: 0
B19: Transport AC | C19: =SUM('Direct Emissions Calcs'!BS128:BS131) -> 50.90115411 | D19: =SUM('Baseline Calcs'!BU128:BU131) -> 132.0802095 | E19: =SUM('Direct Emissions Calcs'!Q305:Q308) -> 82.37234959 | F19: =SUM('Direct Emissions Calcs'!Q482:Q485) -> 10.80280192 | G19: =SUM('Direct Emissions Calcs'!Q659:Q662) -> 0.01888601734 | H19: =SUM('Direct Emissions Calcs'!Q836:Q839) -> 0 | J19: Domestic Refrigeration | K19: 5.614243706 | L19: 11.77225814 | M19: 8.006733702 | N19: 0.9417806511 | O19: 0.00140365372 | P19: 0 | R19: Europe | S19: Commercial AC | T19: =SUM('Baseline Calcs'!CT165:CT171) / 10^9 -> 287.9703709 | U19: =SUM('Indirect Emissions Calcs'!K342:K348) / 10^9 -> 266.0490659 | V19: =SUM('Indirect Emissions Calcs'!K519:K525) / 10^9 -> 166.9042926 | W19: =SUM('Indirect Emissions Calcs'!K696:K702) / 10^9 -> 117.7283047 | X19: =SUM('Indirect Emissions Calcs'!K873:K879) / 10^9 -> 0 | Z19: Europe | AA19: Commercial AC | AB19: =SUM('Direct Emissions Calcs'!F165:F171) -> 34319840 | AC19: =SUM('Direct Emissions Calcs'!F873:F879) -> 53643101 | AH19: Transport AC | AI19: =D19 - IF(Pathways!$E$43 = "Please Select a Pathway", 'Results Tables'!D19, IF(Pathways!$E$43 = "Low Effort", 'Results Tables'!E19, IF(Pathways!$E$43 = "Medium Effort", 'Results Tables'!F19, IF(Pathways!$E$43 = "High Effort", 'Results Tables'!G19, IF(Pathways!$E$43 = "Advanced User Pathway", 'Results Tables'!H19))))) -> 0 | AJ19: =D64 - IF(Pathways!$E$43 = "Please Select a Pathway", D64, IF(Pathways!$E$43 = "Low Effort", E64, IF(Pathways!$E$43 = "Medium Effort", F64, IF(Pathways!$E$43 = "High Effort", G64, IF(Pathways!$E$43 = "Advanced User Pathway", H64))))) -> 0 | AK19: 0 | AM19: South America | AN19: 0 | AO19: 0 | AP19: 0
B20: Transport Refrigeration | C20: =SUM('Direct Emissions Calcs'!BS108:BS111) -> 8.26611124 | D20: =SUM('Baseline Calcs'!BU108:BU111) -> 56.55710409 | E20: =SUM('Direct Emissions Calcs'!Q285:Q288) -> 38.36276816 | F20: =SUM('Direct Emissions Calcs'!Q462:Q465) -> 4.524568327 | G20: =SUM('Direct Emissions Calcs'!Q639:Q642) -> 0.00678685249 | H20: =SUM('Direct Emissions Calcs'!Q816:Q819) -> 0 | J20: Industrial AC | K20: 110.7826424 | L20: 124.5130275 | M20: 84.49251875 | N20: 9.961042196 | O20: 0.01755323373 | P20: 0 | S20: Commercial Refrigeration | T20: =SUM('Baseline Calcs'!CT88:CT90) / 10^9 -> 238.2408181 | U20: =SUM('Indirect Emissions Calcs'!K265:K267) / 10^9 -> 220.0147252 | V20: =SUM('Indirect Emissions Calcs'!K442:K444) / 10^9 -> 138.2577475 | W20: =SUM('Indirect Emissions Calcs'!K619:K621) / 10^9 -> 98.07356914 | X20: =SUM('Indirect Emissions Calcs'!K796:K798) / 10^9 -> 0 | AA20: Commercial Refrigeration | AB20: =SUM('Direct Emissions Calcs'!F88:F90) -> 15329229.49 | AC20: =SUM('Direct Emissions Calcs'!F796:F798) -> 20642008.81 | AH20: Transport Refrigeration | AI20: =D20 - IF(Pathways!$E$43 = "Please Select a Pathway", 'Results Tables'!D20, IF(Pathways!$E$43 = "Low Effort", 'Results Tables'!E20, IF(Pathways!$E$43 = "Medium Effort", 'Results Tables'!F20, IF(Pathways!$E$43 = "High Effort", 'Results Tables'!G20, IF(Pathways!$E$43 = "Advanced User Pathway", 'Results Tables'!H20))))) -> 0 | AJ20: =D65 - IF(Pathways!$E$43 = "Please Select a Pathway", D65, IF(Pathways!$E$43 = "Low Effort", E65, IF(Pathways!$E$43 = "Medium Effort", F65, IF(Pathways!$E$43 = "High Effort", G65, IF(Pathways!$E$43 = "Advanced User Pathway", H65))))) -> 0 | AK20: 0 | AM20: Global | AN20: =AN10/L10 -> 0 | AO20: =AO10/L55 -> 0 | AP20: =AP10/L100 -> 0
A21: Europe | B21: Commercial AC | C21: =SUM('Direct Emissions Calcs'!BS165:BS171) -> 10.51839623 | D21: =SUM('Baseline Calcs'!BU165:BU171) -> 8.87976392 | E21: =SUM('Direct Emissions Calcs'!Q342:Q348) -> 6.038239466 | F21: =SUM('Direct Emissions Calcs'!Q519:Q525) -> 0.7103811136 | G21: =SUM('Direct Emissions Calcs'!Q696:Q702) -> 0.00309507282 | H21: =SUM('Direct Emissions Calcs'!Q873:Q879) -> 0 | J21: Industrial Refrigeration | K21: 102.6113218 | L21: 114.315739 | M21: 73.9927798 | N21: 9.14525912 | O21: 0.01371706304 | P21: 0 | S21: Domestic AC | T21: =SUM('Baseline Calcs'!CT55:CT66) / 10^9 -> 116.8399134 | U21: =SUM('Indirect Emissions Calcs'!K232:K243) / 10^9 -> 94.79802898 | V21: =SUM('Indirect Emissions Calcs'!K409:K420) / 10^9 -> 56.18768031 | W21: =SUM('Indirect Emissions Calcs'!K586:K597) / 10^9 -> 41.34600843 | X21: =SUM('Indirect Emissions Calcs'!K763:K774) / 10^9 -> 0 | AA21: Domestic AC | AB21: =SUM('Direct Emissions Calcs'!F55:F66) -> 65000000 | AC21: =IF(Pathways!$E$43="Please Select a Pathway", 'Size Summary-Base'!F232, IF(Pathways!$E$43 = "Low Effort", SUM('Direct Emissions Calcs'!F232:F243), IF(Pathways!$E$43 = "Medium Effort", SUM('Direct Emissions Calcs'!F409:F420), IF(Pathways!$E$43 = "High Effort", SUM('Direct Emissions Calcs'!F586:F597), IF(Pathways!$E$43 = "Advanced User Pathway",SUM('Direct Emissions Calcs'!F763:F774)))))) -> 95000000 | AG21: Europe | AH21: Commercial AC | AI21: =D21 - IF(Pathways!$E$43 = "Please Select a Pathway", 'Results Tables'!D21, IF(Pathways!$E$43 = "Low Effort", 'Results Tables'!E21, IF(Pathways!$E$43 = "Medium Effort", 'Results Tables'!F21, IF(Pathways!$E$43 = "High Effort", 'Results Tables'!G21, IF(Pathways!$E$43 = "Advanced User Pathway", 'Results Tables'!H21))))) -> 0 | AJ21: =D66 - IF(Pathways!$E$43 = "Please Select a Pathway", D66, IF(Pathways!$E$43 = "Low Effort", E66, IF(Pathways!$E$43 = "Medium Effort", F66, IF(Pathways!$E$43 = "High Effort", G66, IF(Pathways!$E$43 = "Advanced User Pathway", H66))))) -> 0 | AK21: 0
B22: Commercial Refrigeration | C22: =SUM('Direct Emissions Calcs'!BS88:BS90) -> 35.29160206 | D22: =SUM('Baseline Calcs'!BU88:BU90) -> 47.52290785 | E22: =SUM('Direct Emissions Calcs'!Q265:Q267) -> 32.2548622 | F22: =SUM('Direct Emissions Calcs'!Q442:Q444) -> 3.7427634 | G22: =SUM('Direct Emissions Calcs'!Q619:Q621) -> 0.005132062947 | H22: =SUM('Direct Emissions Calcs'!Q796:Q798) -> 0 | J22: Transport AC | K22: 105.3985657 | L22: 222.7500144 | M22: 138.8835926 | N22: 18.21694877 | O22: 0.03184781254 | P22: 0 | S22: Domestic Refrigeration | T22: ='Baseline Calcs'!CT6/10^9 -> 164.33712 | U22: ='Indirect Emissions Calcs'!K183/10^9 -> 150.3684648 | V22: ='Indirect Emissions Calcs'!K360/10^9 -> 116.40546 | W22: ='Indirect Emissions Calcs'!K537/10^9 -> 58.887468 | X22: ='Indirect Emissions Calcs'!K714/10^9 -> 0 | AA22: Domestic Refrigeration | AB22: ='Direct Emissions Calcs'!F6 -> 255700000 | AC22: ='Direct Emissions Calcs'!F714 -> 392400000 | AH22: Commercial Refrigeration | AI22: =D22 - IF(Pathways!$E$43 = "Please Select a Pathway", 'Results Tables'!D22, IF(Pathways!$E$43 = "Low Effort", 'Results Tables'!E22, IF(Pathways!$E$43 = "Medium Effort", 'Results Tables'!F22, IF(Pathways!$E$43 = "High Effort", 'Results Tables'!G22, IF(Pathways!$E$43 = "Advanced User Pathway", 'Results Tables'!H22))))) -> 0 | AJ22: =D67 - IF(Pathways!$E$43 = "Please Select a Pathway", D67, IF(Pathways!$E$43 = "Low Effort", E67, IF(Pathways!$E$43 = "Medium Effort", F67, IF(Pathways!$E$43 = "High Effort", G67, IF(Pathways!$E$43 = "Advanced User Pathway", H67))))) -> 0 | AK22: 0
B23: Domestic AC | C23: =SUM('Direct Emissions Calcs'!BS55:BS66) -> 3.485197669 | D23: =SUM('Baseline Calcs'!BU55:BU66) -> 6.462258619 | E23: =SUM('Direct Emissions Calcs'!Q232:Q243) -> 4.161342876 | F23: =SUM('Direct Emissions Calcs'!Q409:Q420) -> 0.4955492457 | G23: =SUM('Direct Emissions Calcs'!Q586:Q597) -> 0.0005501120841 | H23: =SUM('Direct Emissions Calcs'!Q763:Q774) -> 0 | J23: Transport Refrigeration | K23: 16.87933804 | L23: 82.0312823 | M23: 54.0363514 | N23: 6.375850051 | O23: 0.009476060449 | P23: 0 | S23: Industrial AC | T23: =SUM('Baseline Calcs'!CT100:CT101)/10^9 -> 78.51801006 | U23: =SUM('Indirect Emissions Calcs'!K277:K278) / 10^9 -> 73.80692946 | V23: =SUM('Indirect Emissions Calcs'!K454:K455) / 10^9 -> 54.96260704 | W23: =SUM('Indirect Emissions Calcs'!K631:K632) / 10^9 -> 39.25900503 | X23: =SUM('Indirect Emissions Calcs'!K808:K809)/10^9 -> 0 | AA23: Industrial AC | AB23: =SUM('Direct Emissions Calcs'!F100:F101) -> 1039600 | AC23: =SUM('Direct Emissions Calcs'!F808:F809) -> 1286400 | AH23: Domestic AC | AI23: =D23 - IF(Pathways!$E$43 = "Please Select a Pathway", 'Results Tables'!D23, IF(Pathways!$E$43 = "Low Effort", 'Results Tables'!E23, IF(Pathways!$E$43 = "Medium Effort", 'Results Tables'!F23, IF(Pathways!$E$43 = "High Effort", 'Results Tables'!G23, IF(Pathways!$E$43 = "Advanced User Pathway", 'Results Tables'!H23))))) -> 0 | AJ23: =D68 - IF(Pathways!$E$43 = "Please Select a Pathway", D68, IF(Pathways!$E$43 = "Low Effort", E68, IF(Pathways!$E$43 = "Medium Effort", F68, IF(Pathways!$E$43 = "High Effort", G68, IF(Pathways!$E$43 = "Advanced User Pathway", H68))))) -> 0 | AK23: 0
B24: Domestic Refrigeration | C24: ='Direct Emissions Calcs'!BS6 -> 0.7651482419 | D24: ='Baseline Calcs'!BU6 -> 1.174204811 | E24: ='Direct Emissions Calcs'!Q183 -> 0.7905787021 | F24: ='Direct Emissions Calcs'!Q360 -> 0.09393638486 | G24: ='Direct Emissions Calcs'!Q537 -> 0.0002046366 | H24: ='Direct Emissions Calcs'!Q714 -> 0 | J24: Total | K24: =SUM(K16:K23) -> 874.6173677 | L24: =SUM(L16:L23) -> 1521.949831 | M24: =SUM(M16:M23) -> 996.2475259 | N24: 119.7509084 | O24: 0.2144784096 | P24: 0 | S24: Industrial Refrigeration | T24: =SUM('Baseline Calcs'!CT12,'Baseline Calcs'!CT17)/10^9 -> 123.5208 | U24: =SUM('Indirect Emissions Calcs'!K189,'Indirect Emissions Calcs'!K194) / 10^9 -> 116.109552 | V24: =SUM('Indirect Emissions Calcs'!K366,'Indirect Emissions Calcs'!K371) / 10^9 -> 86.46456 | W24: =SUM('Indirect Emissions Calcs'!K543,'Indirect Emissions Calcs'!K548) / 10^9 -> 61.7604 | X24: =SUM('Indirect Emissions Calcs'!K720,'Indirect Emissions Calcs'!K725)/10^9 -> 0 | AA24: Industrial Refrigeration | AB24: =SUM('Direct Emissions Calcs'!F12,'Direct Emissions Calcs'!F17) -> 109440 | AC24: =SUM('Direct Emissions Calcs'!F720,'Direct Emissions Calcs'!F725) -> 111280 | AH24: Domestic Refrigeration | AI24: =D24 - IF(Pathways!$E$43 = "Please Select a Pathway", 'Results Tables'!D24, IF(Pathways!$E$43 = "Low Effort", 'Results Tables'!E24, IF(Pathways!$E$43 = "Medium Effort", 'Results Tables'!F24, IF(Pathways!$E$43 = "High Effort", 'Results Tables'!G24, IF(Pathways!$E$43 = "Advanced User Pathway", 'Results Tables'!H24))))) -> 0 | AJ24: =D69 - IF(Pathways!$E$43 = "Please Select a Pathway", D69, IF(Pathways!$E$43 = "Low Effort", E69, IF(Pathways!$E$43 = "Medium Effort", F69, IF(Pathways!$E$43 = "High Effort", G69, IF(Pathways!$E$43 = "Advanced User Pathway", H69))))) -> 0 | AK24: 0 | AN24: Emissions Savings (Mt CO2e)
B25: Industrial AC | C25: =SUM('Direct Emissions Calcs'!BS100:BS101) -> 14.06728286 | D25: =SUM('Baseline Calcs'!BU100:BU101) -> 17.40684174 | E25: =SUM('Direct Emissions Calcs'!Q277:Q278) -> 11.7410104 | F25: =SUM('Direct Emissions Calcs'!Q454:Q455) -> 1.392547339 | G25: =SUM('Direct Emissions Calcs'!Q631:Q632) -> 0.002509817856 | H25: =SUM('Direct Emissions Calcs'!Q808:Q809) -> 0 | S25: Transport AC | T25: =SUM('Baseline Calcs'!CT136:CT139)/10^9 -> 890.1417154 | U25: =SUM('Indirect Emissions Calcs'!K313:K316) / 10^9 -> 803.8585043 | V25: =SUM('Indirect Emissions Calcs'!K490:K493) / 10^9 -> 454.1740592 | W25: =SUM('Indirect Emissions Calcs'!K667:K670) / 10^9 -> 260.2644143 | X25: =SUM('Indirect Emissions Calcs'!K844:K847)/10^9 -> 0 | AA25: Transport AC | AB25: =SUM('Direct Emissions Calcs'!F136:F139) -> 312496491 | AC25: =SUM('Direct Emissions Calcs'!F844:F847) -> 443651073.6 | AH25: Industrial AC | AI25: =D25 - IF(Pathways!$E$43 = "Please Select a Pathway", 'Results Tables'!D25, IF(Pathways!$E$43 = "Low Effort", 'Results Tables'!E25, IF(Pathways!$E$43 = "Medium Effort", 'Results Tables'!F25, IF(Pathways!$E$43 = "High Effort", 'Results Tables'!G25, IF(Pathways!$E$43 = "Advanced User Pathway", 'Results Tables'!H25))))) -> 0 | AJ25: =D70 - IF(Pathways!$E$43 = "Please Select a Pathway", D70, IF(Pathways!$E$43 = "Low Effort", E70, IF(Pathways!$E$43 = "Medium Effort", F70, IF(Pathways!$E$43 = "High Effort", G70, IF(Pathways!$E$43 = "Advanced User Pathway", H70))))) -> 0 | AK25: 0 | AM25: Sector | AN25: Direct Emissions Savings | AO25: Indirect Emissions Savings | AP25: Total Emissions Savings
B26: Industrial Refrigeration | C26: =SUM('Direct Emissions Calcs'!BS12,'Direct Emissions Calcs'!BS17) -> 15.42849696 | D26: =SUM('Baseline Calcs'!BU12,'Baseline Calcs'!BU17) -> 15.68789421 | E26: =SUM('Direct Emissions Calcs'!Q189,'Direct Emissions Calcs'!Q194) -> 10.1542527 | F26: =SUM('Direct Emissions Calcs'!Q366,'Direct Emissions Calcs'!Q371) -> 1.255031537 | G26: =SUM('Direct Emissions Calcs'!Q543,'Direct Emissions Calcs'!Q548) -> 0.002668009219 | H26: =SUM('Direct Emissions Calcs'!Q720,'Direct Emissions Calcs'!Q725) -> 0 | S26: Transport Refrigeration | T26: =SUM('Baseline Calcs'!CT116:CT119)/10^9 -> 20.92551905 | U26: =SUM('Indirect Emissions Calcs'!K293:K296) / 10^9 -> 19.66998791 | V26: =SUM('Indirect Emissions Calcs'!K470:K473) / 10^9 -> 14.64786334 | W26: =SUM('Indirect Emissions Calcs'!K647:K650) / 10^9 -> 10.46275953 | X26: =SUM('Indirect Emissions Calcs'!K824:K827)/10^9 -> 0 | AA26: Transport Refrigeration | AB26: =SUM('Direct Emissions Calcs'!F116:F119) -> 1666706 | AC26: =SUM('Direct Emissions Calcs'!F824:F827) -> 2846337 | AH26: Industrial Refrigeration | AI26: =D26 - IF(Pathways!$E$43 = "Please Select a Pathway", 'Results Tables'!D26, IF(Pathways!$E$43 = "Low Effort", 'Results Tables'!E26, IF(Pathways!$E$43 = "Medium Effort", 'Results Tables'!F26, IF(Pathways!$E$43 = "High Effort", 'Results Tables'!G26, IF(Pathways!$E$43 = "Advanced User Pathway", 'Results Tables'!H26))))) -> 0 | AJ26: =D71 - IF(Pathways!$E$43 = "Please Select a Pathway", D71, IF(Pathways!$E$43 = "Low Effort", E71, IF(Pathways!$E$43 = "Medium Effort", F71, IF(Pathways!$E$43 = "High Effort", G71, IF(Pathways!$E$43 = "Advanced User Pathway", H71))))) -> 0 | AK26: 0 | AM26: Commercial AC | AN26: =SUM(AI5,AI13,AI21,AI29,AI37) -> 0 | AO26: =SUM(AJ5,AJ13,AJ21,AJ29,AJ37) -> 0 | AP26: 0
B27: Transport AC | C27: =SUM('Direct Emissions Calcs'!BS136:BS139) -> 22.65689131 | D27: =SUM('Baseline Calcs'!BU136:BU139) -> 32.16597448 | E27: =SUM('Direct Emissions Calcs'!Q313:Q316) -> 20.03951993 | F27: =SUM('Direct Emissions Calcs'!Q490:Q493) -> 2.629833518 | G27: =SUM('Direct Emissions Calcs'!Q667:Q670) -> 0.004597611045 | H27: =SUM('Direct Emissions Calcs'!Q844:Q847) -> 0 | R27: North America | S27: Commercial AC | T27: =SUM('Baseline Calcs'!CT158:CT164) / 10^9 -> 1324.467911 | U27: =SUM('Indirect Emissions Calcs'!K335:K341) / 10^9 -> 1223.644813 | V27: =SUM('Indirect Emissions Calcs'!K512:K518) / 10^9 -> 767.6462657 | W27: =SUM('Indirect Emissions Calcs'!K689:K695) / 10^9 -> 541.4701569 | X27: =SUM('Indirect Emissions Calcs'!K866:K872) / 10^9 -> 0 | Z27: North America | AA27: Commercial AC | AB27: =SUM('Direct Emissions Calcs'!F158:F164) -> 138906354 | AC27: =SUM('Direct Emissions Calcs'!F866:F872) -> 246721792 | AH27: Transport AC | AI27: =D27 - IF(Pathways!$E$43 = "Please Select a Pathway", 'Results Tables'!D27, IF(Pathways!$E$43 = "Low Effort", 'Results Tables'!E27, IF(Pathways!$E$43 = "Medium Effort", 'Results Tables'!F27, IF(Pathways!$E$43 = "High Effort", 'Results Tables'!G27, IF(Pathways!$E$43 = "Advanced User Pathway", 'Results Tables'!H27))))) -> 0 | AJ27: =D72 - IF(Pathways!$E$43 = "Please Select a Pathway", D72, IF(Pathways!$E$43 = "Low Effort", E72, IF(Pathways!$E$43 = "Medium Effort", F72, IF(Pathways!$E$43 = "High Effort", G72, IF(Pathways!$E$43 = "Advanced User Pathway", H72))))) -> 0 | AK27: 0 | AM27: Commercial Refrigeration | AN27: =SUM(AI6,AI14,AI22,AI30,AI38) -> 0 | AO27: 0 | AP27: 0
B28: Transport Refrigeration | C28: =SUM('Direct Emissions Calcs'!BS116:BS119) -> 4.043915783 | D28: =SUM('Baseline Calcs'!BU116:BU119) -> 6.699755742 | E28: =SUM('Direct Emissions Calcs'!Q293:Q296) -> 4.530589544 | F28: =SUM('Direct Emissions Calcs'!Q470:Q473) -> 0.5359804594 | G28: =SUM('Direct Emissions Calcs'!Q647:Q650) -> 0.0007513744758 | H28: =SUM('Direct Emissions Calcs'!Q824:Q827) -> 0 | S28: Commercial Refrigeration | T28: =SUM('Baseline Calcs'!CT85:CT87) / 10^9 -> 102.3945491 | U28: =SUM('Indirect Emissions Calcs'!K262:K264) / 10^9 -> 94.56107799 | V28: =SUM('Indirect Emissions Calcs'!K439:K441) / 10^9 -> 59.42239381 | W28: =SUM('Indirect Emissions Calcs'!K616:K618) / 10^9 -> 42.15146242 | X28: =SUM('Indirect Emissions Calcs'!K793:K795) / 10^9 -> 0 | AA28: Commercial Refrigeration | AB28: =SUM('Direct Emissions Calcs'!F85:F87) -> 6588415.681 | AC28: =SUM('Direct Emissions Calcs'!F793:F795) -> 8871818.026 | AH28: Transport Refrigeration | AI28: =D28 - IF(Pathways!$E$43 = "Please Select a Pathway", 'Results Tables'!D28, IF(Pathways!$E$43 = "Low Effort", 'Results Tables'!E28, IF(Pathways!$E$43 = "Medium Effort", 'Results Tables'!F28, IF(Pathways!$E$43 = "High Effort", 'Results Tables'!G28, IF(Pathways!$E$43 = "Advanced User Pathway", 'Results Tables'!H28))))) -> 0 | AJ28: =D73 - IF(Pathways!$E$43 = "Please Select a Pathway", D73, IF(Pathways!$E$43 = "Low Effort", E73, IF(Pathways!$E$43 = "Medium Effort", F73, IF(Pathways!$E$43 = "High Effort", G73, IF(Pathways!$E$43 = "Advanced User Pathway", H73))))) -> 0 | AK28: 0 | AM28: Domestic AC | AN28: 0 | AO28: 0 | AP28: 0
A29: North America | B29: Commercial AC | C29: =SUM('Direct Emissions Calcs'!BS158:BS164) -> 42.5722285 | D29: =SUM('Baseline Calcs'!BU158:BU164) -> 40.84087657 | E29: =SUM('Direct Emissions Calcs'!Q335:Q341) -> 27.77179607 | F29: =SUM('Direct Emissions Calcs'!Q512:Q518) -> 3.267270126 | G29: =SUM('Direct Emissions Calcs'!Q689:Q695) -> 0.01423523059 | H29: =SUM('Direct Emissions Calcs'!Q866:Q872) -> 0 | S29: Domestic AC | T29: =SUM('Baseline Calcs'!CT43:CT54)/10^9 -> 1766.102397 | U29: =SUM('Indirect Emissions Calcs'!K220:K231) / 10^9 -> 1432.926654 | V29: =SUM('Indirect Emissions Calcs'!K397:K408) / 10^9 -> 849.3090587 | W29: =SUM('Indirect Emissions Calcs'!K574:K585) / 10^9 -> 624.9686641 | X29: =SUM('Indirect Emissions Calcs'!K751:K762) / 10^9 -> 0 | AA29: Domestic AC | AB29: =SUM('Direct Emissions Calcs'!F43:F54) -> 280000000 | AC29: =IF(Pathways!$E$43="Please Select a Pathway", 'Size Summary-Base'!F220, IF(Pathways!$E$43 = "Low Effort",SUM('Direct Emissions Calcs'!F220:F231), IF(Pathways!$E$43 = "Medium Effort", SUM('Direct Emissions Calcs'!F397:F408), IF(Pathways!$E$43 = "High Effort", SUM('Direct Emissions Calcs'!F574:F585), IF(Pathways!$E$43 = "Advanced User Pathway",SUM('Direct Emissions Calcs'!F751:F762)))))) -> 470000000 | AG29: North America | AH29: Commercial AC | AI29: =D29 - IF(Pathways!$E$43 = "Please Select a Pathway", 'Results Tables'!D29, IF(Pathways!$E$43 = "Low Effort", 'Results Tables'!E29, IF(Pathways!$E$43 = "Medium Effort", 'Results Tables'!F29, IF(Pathways!$E$43 = "High Effort", 'Results Tables'!G29, IF(Pathways!$E$43 = "Advanced User Pathway", 'Results Tables'!H29))))) -> 0 | AJ29: =D74 - IF(Pathways!$E$43 = "Please Select a Pathway", D74, IF(Pathways!$E$43 = "Low Effort", E74, IF(Pathways!$E$43 = "Medium Effort", F74, IF(Pathways!$E$43 = "High Effort", G74, IF(Pathways!$E$43 = "Advanced User Pathway", H74))))) -> 0 | AK29: 0 | AM29: Domestic Refrigeration | AN29: 0 | AO29: 0 | AP29: 0
B30: Commercial Refrigeration | C30: =SUM('Direct Emissions Calcs'!BS85:BS87) -> 15.16812991 | D30: =SUM('Baseline Calcs'!BU85:BU87) -> 20.4250756 | E30: =SUM('Direct Emissions Calcs'!Q262:Q264) -> 13.86295639 | F30: =SUM('Direct Emissions Calcs'!Q439:Q441) -> 1.60861843 | G30: =SUM('Direct Emissions Calcs'!Q616:Q618) -> 0.002205731476 | H30: =SUM('Direct Emissions Calcs'!Q793:Q795) -> 0 | S30: Domestic Refrigeration | T30: ='Baseline Calcs'!CT7/10^9 -> 125.924784 | U30: ='Indirect Emissions Calcs'!K184/10^9 -> 115.2211774 | V30: ='Indirect Emissions Calcs'!K361/10^9 -> 89.196722 | W30: ='Indirect Emissions Calcs'!K538/10^9 -> 45.1230476 | X30: ='Indirect Emissions Calcs'!K715/10^9 -> 0 | AA30: Domestic Refrigeration | AB30: ='Direct Emissions Calcs'!F7 -> 243730000 | AC30: ='Direct Emissions Calcs'!F715 -> 300680000 | AH30: Commercial Refrigeration | AI30: =D30 - IF(Pathways!$E$43 = "Please Select a Pathway", 'Results Tables'!D30, IF(Pathways!$E$43 = "Low Effort", 'Results Tables'!E30, IF(Pathways!$E$43 = "Medium Effort", 'Results Tables'!F30, IF(Pathways!$E$43 = "High Effort", 'Results Tables'!G30, IF(Pathways!$E$43 = "Advanced User Pathway", 'Results Tables'!H30))))) -> 0 | AJ30: =D75 - IF(Pathways!$E$43 = "Please Select a Pathway", D75, IF(Pathways!$E$43 = "Low Effort", E75, IF(Pathways!$E$43 = "Medium Effort", F75, IF(Pathways!$E$43 = "High Effort", G75, IF(Pathways!$E$43 = "Advanced User Pathway", H75))))) -> 0 | AK30: 0 | AM30: Industrial AC | AN30: 0 | AO30: =SUM(AJ9,AJ17,AJ25,AJ33,AJ41) -> 0 | AP30: 0
B31: Domestic AC | C31: =SUM('Direct Emissions Calcs'!BS43:BS54) -> 19.04250545 | D31: =SUM('Baseline Calcs'!BU43:BU54) -> 40.55184199 | E31: =SUM('Direct Emissions Calcs'!Q220:Q231) -> 25.11795513 | F31: =SUM('Direct Emissions Calcs'!Q397:Q408) -> 3.011577939 | G31: =SUM('Direct Emissions Calcs'!Q574:Q585) -> 0.003566389716 | H31: =SUM('Direct Emissions Calcs'!Q751:Q762) -> 0 | S31: Industrial AC | T31: =SUM('Baseline Calcs'!CT98:CT99)/10^9 -> 218.2657715 | U31: =SUM('Indirect Emissions Calcs'!K275:K276) / 10^9 -> 205.1698252 | V31: =SUM('Indirect Emissions Calcs'!K452:K453) / 10^9 -> 152.7860401 | W31: =SUM('Indirect Emissions Calcs'!K629:K630) / 10^9 -> 109.1328858 | X31: =SUM('Indirect Emissions Calcs'!K806:K807)/10^9 -> 0 | AA31: Industrial AC | AB31: =SUM('Direct Emissions Calcs'!F98:F99) -> 901100 | AC31: =SUM('Direct Emissions Calcs'!F806:F807) -> 1085400 | AH31: Domestic AC | AI31: =D31 - IF(Pathways!$E$43 = "Please Select a Pathway", 'Results Tables'!D31, IF(Pathways!$E$43 = "Low Effort", 'Results Tables'!E31, IF(Pathways!$E$43 = "Medium Effort", 'Results Tables'!F31, IF(Pathways!$E$43 = "High Effort", 'Results Tables'!G31, IF(Pathways!$E$43 = "Advanced User Pathway", 'Results Tables'!H31))))) -> 0 | AJ31: =D76 - IF(Pathways!$E$43 = "Please Select a Pathway", D76, IF(Pathways!$E$43 = "Low Effort", E76, IF(Pathways!$E$43 = "Medium Effort", F76, IF(Pathways!$E$43 = "High Effort", G76, IF(Pathways!$E$43 = "Advanced User Pathway", H76))))) -> 0 | AK31: 0 | AM31: Industrial Refrigeration | AN31: 0 | AO31: 0 | AP31: 0
B32: Domestic Refrigeration | C32: ='Direct Emissions Calcs'!BS7 -> 0.7293296089 | D32: ='Baseline Calcs'!BU7 -> 0.8997449096 | E32: ='Direct Emissions Calcs'!Q184 -> 0.6057879821 | F32: ='Direct Emissions Calcs'!Q361 -> 0.07197959276 | G32: ='Direct Emissions Calcs'!Q538 -> 0.00015680462 | H32: ='Direct Emissions Calcs'!Q715 -> 0 | S32: Industrial Refrigeration | T32: =SUM('Baseline Calcs'!CT11,'Baseline Calcs'!CT16)/10^9 -> 126.8286 | U32: =SUM('Indirect Emissions Calcs'!K188,'Indirect Emissions Calcs'!K193) / 10^9 -> 119.218884 | V32: =SUM('Indirect Emissions Calcs'!K365,'Indirect Emissions Calcs'!K370) / 10^9 -> 88.78002 | W32: =SUM('Indirect Emissions Calcs'!K542,'Indirect Emissions Calcs'!K547) / 10^9 -> 63.4143 | X32: =SUM('Indirect Emissions Calcs'!K719,'Indirect Emissions Calcs'!K724)/10^9 -> 0 | AA32: Industrial Refrigeration | AB32: =SUM('Direct Emissions Calcs'!F11,'Direct Emissions Calcs'!F16) -> 94920 | AC32: =SUM('Direct Emissions Calcs'!F719,'Direct Emissions Calcs'!F724) -> 114260 | AH32: Domestic Refrigeration | AI32: =D32 - IF(Pathways!$E$43 = "Please Select a Pathway", 'Results Tables'!D32, IF(Pathways!$E$43 = "Low Effort", 'Results Tables'!E32, IF(Pathways!$E$43 = "Medium Effort", 'Results Tables'!F32, IF(Pathways!$E$43 = "High Effort", 'Results Tables'!G32, IF(Pathways!$E$43 = "Advanced User Pathway", 'Results Tables'!H32))))) -> 0 | AJ32: =D77 - IF(Pathways!$E$43 = "Please Select a Pathway", D77, IF(Pathways!$E$43 = "Low Effort", E77, IF(Pathways!$E$43 = "Medium Effort", F77, IF(Pathways!$E$43 = "High Effort", G77, IF(Pathways!$E$43 = "Advanced User Pathway", H77))))) -> 0 | AK32: 0 | AM32: Transport AC | AN32: =SUM(AI11,AI19,AI27,AI35,AI43) -> 0 | AO32: 0 | AP32: 0
B33: Industrial AC | C33: =SUM('Direct Emissions Calcs'!BS98:BS99) -> 12.19317871 | D33: =SUM('Baseline Calcs'!BU98:BU99) -> 14.68702272 | E33: =SUM('Direct Emissions Calcs'!Q275:Q276) -> 9.906477521 | F33: =SUM('Direct Emissions Calcs'!Q452:Q453) -> 1.174961817 | G33: =SUM('Direct Emissions Calcs'!Q629:Q630) -> 0.002117658816 | H33: =SUM('Direct Emissions Calcs'!Q806:Q807) -> 0 | S33: Transport AC | T33: =SUM('Baseline Calcs'!CT132:CT135)/10^9 -> 608.0201461 | U33: =SUM('Indirect Emissions Calcs'!K309:K312) / 10^9 -> 549.4567478 | V33: =SUM('Indirect Emissions Calcs'!K486:K489) / 10^9 -> 311.4721275 | W33: =SUM('Indirect Emissions Calcs'!K663:K666) / 10^9 -> 179.8910328 | X33: =SUM('Indirect Emissions Calcs'!K840:K843)/10^9 -> 0 | AA33: Transport AC | AB33: =SUM('Direct Emissions Calcs'!F132:F135) -> 231307992 | AC33: =SUM('Direct Emissions Calcs'!F840:F843) -> 301740980.9 | AH33: Industrial AC | AI33: =D33 - IF(Pathways!$E$43 = "Please Select a Pathway", 'Results Tables'!D33, IF(Pathways!$E$43 = "Low Effort", 'Results Tables'!E33, IF(Pathways!$E$43 = "Medium Effort", 'Results Tables'!F33, IF(Pathways!$E$43 = "High Effort", 'Results Tables'!G33, IF(Pathways!$E$43 = "Advanced User Pathway", 'Results Tables'!H33))))) -> 0 | AJ33: =D78 - IF(Pathways!$E$43 = "Please Select a Pathway", D78, IF(Pathways!$E$43 = "Low Effort", E78, IF(Pathways!$E$43 = "Medium Effort", F78, IF(Pathways!$E$43 = "High Effort", G78, IF(Pathways!$E$43 = "Advanced User Pathway", H78))))) -> 0 | AK33: 0 | AM33: Transport Refrigeration | AN33: 0 | AO33: 0 | AP33: 0
B34: Industrial Refrigeration | C34: =SUM('Direct Emissions Calcs'!BS11,'Direct Emissions Calcs'!BS16) -> 13.38151436 | D34: =SUM('Baseline Calcs'!BU11,'Baseline Calcs'!BU16) -> 16.10800496 | E34: =SUM('Direct Emissions Calcs'!Q188,'Direct Emissions Calcs'!Q193) -> 10.42617644 | F34: =SUM('Direct Emissions Calcs'!Q365,'Direct Emissions Calcs'!Q370) -> 1.288640397 | G34: =SUM('Direct Emissions Calcs'!Q542,'Direct Emissions Calcs'!Q547) -> 0.002739456626 | H34: =SUM('Direct Emissions Calcs'!Q719,'Direct Emissions Calcs'!Q724) -> 0 | S34: Transport Refrigeration | T34: =SUM('Baseline Calcs'!CT112:CT115)/10^9 -> 30.50607933 | U34: =SUM('Indirect Emissions Calcs'!K289:K292) / 10^9 -> 28.67571457 | V34: =SUM('Indirect Emissions Calcs'!K466:K469) / 10^9 -> 21.35425553 | W34: =SUM('Indirect Emissions Calcs'!K643:K646) / 10^9 -> 15.25303966 | X34: =SUM('Indirect Emissions Calcs'!K820:K823)/10^9 -> 0 | AA34: Transport Refrigeration | AB34: =SUM('Direct Emissions Calcs'!F112:F115) -> 1112929 | AC34: =SUM('Direct Emissions Calcs'!F820:F823) -> 1900495 | AH34: Industrial Refrigeration | AI34: =D34 - IF(Pathways!$E$43 = "Please Select a Pathway", 'Results Tables'!D34, IF(Pathways!$E$43 = "Low Effort", 'Results Tables'!E34, IF(Pathways!$E$43 = "Medium Effort", 'Results Tables'!F34, IF(Pathways!$E$43 = "High Effort", 'Results Tables'!G34, IF(Pathways!$E$43 = "Advanced User Pathway", 'Results Tables'!H34))))) -> 0 | AJ34: =D79 - IF(Pathways!$E$43 = "Please Select a Pathway", D79, IF(Pathways!$E$43 = "Low Effort", E79, IF(Pathways!$E$43 = "Medium Effort", F79, IF(Pathways!$E$43 = "High Effort", G79, IF(Pathways!$E$43 = "Advanced User Pathway", H79))))) -> 0 | AK34: 0 | AM34: Total | AN34: =SUM(AN26:AN33) -> 0 | AO34: =SUM(AO26:AO33) -> 0 | AP34: 0
B35: Transport AC | C35: =SUM('Direct Emissions Calcs'!BS132:BS135) -> 17.00264857 | D35: =SUM('Baseline Calcs'!BU132:BU135) -> 22.1799334 | E35: =SUM('Direct Emissions Calcs'!Q309:Q312) -> 13.81817975 | F35: =SUM('Direct Emissions Calcs'!Q486:Q489) -> 1.813392357 | G35: =SUM('Direct Emissions Calcs'!Q663:Q666) -> 0.003170266358 | H35: =SUM('Direct Emissions Calcs'!Q840:Q843) -> 0 | R35: South and Central America | S35: Commercial AC | T35: =SUM('Baseline Calcs'!CT172:CT178) / 10^9 -> 290.183336 | U35: =SUM('Indirect Emissions Calcs'!K349:K355) / 10^9 -> 268.0935725 | V35: =SUM('Indirect Emissions Calcs'!K526:K532) / 10^9 -> 168.1869016 | W35: =SUM('Indirect Emissions Calcs'!K703:K709) / 10^9 -> 118.6330111 | X35: =SUM('Indirect Emissions Calcs'!K880:K886) / 10^9 -> 0 | Z35: South and Central America | AA35: Commercial AC | AB35: =SUM('Direct Emissions Calcs'!F172:F178) -> 24072382 | AC35: =SUM('Direct Emissions Calcs'!F880:F886) -> 54055332 | AH35: Transport AC | AI35: =D35 - IF(Pathways!$E$43 = "Please Select a Pathway", 'Results Tables'!D35, IF(Pathways!$E$43 = "Low Effort", 'Results Tables'!E35, IF(Pathways!$E$43 = "Medium Effort", 'Results Tables'!F35, IF(Pathways!$E$43 = "High Effort", 'Results Tables'!G35, IF(Pathways!$E$43 = "Advanced User Pathway", 'Results Tables'!H35))))) -> 0 | AJ35: =D80 - IF(Pathways!$E$43 = "Please Select a Pathway", D80, IF(Pathways!$E$43 = "Low Effort", E80, IF(Pathways!$E$43 = "Medium Effort", F80, IF(Pathways!$E$43 = "High Effort", G80, IF(Pathways!$E$43 = "Advanced User Pathway", H80))))) -> 0 | AK35: 0
B36: Transport Refrigeration | C36: =SUM('Direct Emissions Calcs'!BS112:BS115) -> 2.70335736 | D36: =SUM('Baseline Calcs'!BU112:BU115) -> 4.473416988 | E36: =SUM('Direct Emissions Calcs'!Q289:Q292) -> 3.02506793 | F36: =SUM('Direct Emissions Calcs'!Q466:Q469) -> 0.357873359 | G36: =SUM('Direct Emissions Calcs'!Q643:Q646) -> 0.0005016916248 | H36: =SUM('Direct Emissions Calcs'!Q820:Q823) -> 0 | S36: Commercial Refrigeration | T36: =SUM('Baseline Calcs'!CT91:CT93)/10^9 -> 133.4790802 | U36: =SUM('Indirect Emissions Calcs'!K268:K270) / 10^9 -> 123.2675551 | V36: =SUM('Indirect Emissions Calcs'!K445:K447) / 10^9 -> 77.46160848 | W36: =SUM('Indirect Emissions Calcs'!K622:K624) / 10^9 -> 54.94763623 | X36: =SUM('Indirect Emissions Calcs'!K799:K801)/10^9 -> 0 | AA36: Commercial Refrigeration | AB36: =SUM('Direct Emissions Calcs'!F91:F93) -> 8588500.787 | AC36: =SUM('Direct Emissions Calcs'!F799:F801) -> 11565089.36 | AH36: Transport Refrigeration | AI36: =D36 - IF(Pathways!$E$43 = "Please Select a Pathway", 'Results Tables'!D36, IF(Pathways!$E$43 = "Low Effort", 'Results Tables'!E36, IF(Pathways!$E$43 = "Medium Effort", 'Results Tables'!F36, IF(Pathways!$E$43 = "High Effort", 'Results Tables'!G36, IF(Pathways!$E$43 = "Advanced User Pathway", 'Results Tables'!H36))))) -> 0 | AJ36: =D81 - IF(Pathways!$E$43 = "Please Select a Pathway", D81, IF(Pathways!$E$43 = "Low Effort", E81, IF(Pathways!$E$43 = "Medium Effort", F81, IF(Pathways!$E$43 = "High Effort", G81, IF(Pathways!$E$43 = "Advanced User Pathway", H81))))) -> 0 | AK36: 0
A37: South and Central America | B37: Commercial AC | C37: =SUM('Direct Emissions Calcs'!BS172:BS178) -> 11.97580621 | D37: =SUM('Baseline Calcs'!BU172:BU178) -> 14.51126432 | E37: =SUM('Direct Emissions Calcs'!Q349:Q355) -> 9.867659736 | F37: =SUM('Direct Emissions Calcs'!Q526:Q532) -> 1.160901145 | G37: =SUM('Direct Emissions Calcs'!Q703:Q709) -> 0.003118857518 | H37: =SUM('Direct Emissions Calcs'!Q880:Q886) -> 0 | S37: Domestic AC | T37: =SUM('Baseline Calcs'!CT67:CT78)/10^9 -> 770.7672643 | U37: =SUM('Indirect Emissions Calcs'!K244:K255) / 10^9 -> 602.7583523 | V37: =SUM('Indirect Emissions Calcs'!K421:K432) / 10^9 -> 357.260525 | W37: =SUM('Indirect Emissions Calcs'!K598:K609) / 10^9 -> 262.8920895 | X37: =SUM('Indirect Emissions Calcs'!K775:K786) / 10^9 -> 0 | AA37: Domestic AC | AB37: =SUM('Direct Emissions Calcs'!F67:F78) -> 40000000 | AC37: =IF(Pathways!$E$43="Please Select a Pathway", 'Size Summary-Base'!F244, IF(Pathways!$E$43 = "Low Effort",SUM('Direct Emissions Calcs'!F244:F255), IF(Pathways!$E$43 = "Medium Effort", SUM('Direct Emissions Calcs'!F421:F432), IF(Pathways!$E$43 = "High Effort", SUM('Direct Emissions Calcs'!F598:F609), IF(Pathways!$E$43 = "Advanced User Pathway",SUM('Direct Emissions Calcs'!F775:F786)))))) -> 170000000 | AG37: South and Central America | AH37: Commercial AC | AI37: =D37 - IF(Pathways!$E$43 = "Please Select a Pathway", 'Results Tables'!D37, IF(Pathways!$E$43 = "Low Effort", 'Results Tables'!E37, IF(Pathways!$E$43 = "Medium Effort", 'Results Tables'!F37, IF(Pathways!$E$43 = "High Effort", 'Results Tables'!G37, IF(Pathways!$E$43 = "Advanced User Pathway", 'Results Tables'!H37))))) -> 0 | AJ37: =D82 - IF(Pathways!$E$43 = "Please Select a Pathway", D82, IF(Pathways!$E$43 = "Low Effort", E82, IF(Pathways!$E$43 = "Medium Effort", F82, IF(Pathways!$E$43 = "High Effort", G82, IF(Pathways!$E$43 = "Advanced User Pathway", H82))))) -> 0 | AK37: 0
B38: Commercial Refrigeration | C38: =SUM('Direct Emissions Calcs'!BS91:BS93) -> 19.05046949 | D38: =SUM('Baseline Calcs'!BU91:BU93) -> 25.65295009 | E38: =SUM('Direct Emissions Calcs'!Q268:Q270) -> 17.49547658 | F38: =SUM('Direct Emissions Calcs'!Q445:Q447) -> 2.027538477 | G38: =SUM('Direct Emissions Calcs'!Q622:Q624) -> 0.00278614429 | H38: =SUM('Direct Emissions Calcs'!Q799:Q801) -> 0 | S38: Domestic Refrigeration | T38: ='Baseline Calcs'!CT8/10^9 -> 89.510124 | U38: ='Indirect Emissions Calcs'!K185/10^9 -> 81.90176346 | V38: ='Indirect Emissions Calcs'!K362/10^9 -> 63.4030045 | W38: ='Indirect Emissions Calcs'!K539/10^9 -> 32.0744611 | X38: ='Indirect Emissions Calcs'!K716/10^9 -> 0 | AA38: Domestic Refrigeration | AB38: ='Direct Emissions Calcs'!F8 -> 100650000 | AC38: ='Direct Emissions Calcs'!F716 -> 213730000 | AH38: Commercial Refrigeration | AI38: =D38 - IF(Pathways!$E$43 = "Please Select a Pathway", 'Results Tables'!D38, IF(Pathways!$E$43 = "Low Effort", 'Results Tables'!E38, IF(Pathways!$E$43 = "Medium Effort", 'Results Tables'!F38, IF(Pathways!$E$43 = "High Effort", 'Results Tables'!G38, IF(Pathways!$E$43 = "Advanced User Pathway", 'Results Tables'!H38))))) -> 0 | AJ38: =D83 - IF(Pathways!$E$43 = "Please Select a Pathway", D83, IF(Pathways!$E$43 = "Low Effort", E83, IF(Pathways!$E$43 = "Medium Effort", F83, IF(Pathways!$E$43 = "High Effort", G83, IF(Pathways!$E$43 = "Advanced User Pathway", H83))))) -> 0 | AK38: 0 | AN38: Emissions Savings (Mt CO2e)
B39: Domestic AC | C39: =SUM('Direct Emissions Calcs'!BS67:BS78) -> 2.933446773 | D39: =SUM('Baseline Calcs'!BU67:BU78) -> 15.81662483 | E39: =SUM('Direct Emissions Calcs'!Q244:Q255) -> 9.796873663 | F39: =SUM('Direct Emissions Calcs'!Q421:Q432) -> 1.174619846 | G39: =SUM('Direct Emissions Calcs'!Q598:Q609) -> 0.001391015682 | H39: =SUM('Direct Emissions Calcs'!Q775:Q786) -> 0 | S39: Industrial AC | T39: =SUM('Baseline Calcs'!CT102:CT103)/10^9 -> 33.50086438 | U39: =SUM('Indirect Emissions Calcs'!K279:K280) / 10^9 -> 31.49081252 | V39: =SUM('Indirect Emissions Calcs'!K456:K457) / 10^9 -> 23.45060507 | W39: =SUM('Indirect Emissions Calcs'!K633:K634) / 10^9 -> 16.75043219 | X39: =SUM('Indirect Emissions Calcs'!K810:K811)/10^9 -> 0 | AA39: Industrial AC | AB39: =SUM('Direct Emissions Calcs'!F102:F103) -> 123160 | AC39: =SUM('Direct Emissions Calcs'!F810:F811) -> 154470 | AH39: Domestic AC | AI39: =D39 - IF(Pathways!$E$43 = "Please Select a Pathway", 'Results Tables'!D39, IF(Pathways!$E$43 = "Low Effort", 'Results Tables'!E39, IF(Pathways!$E$43 = "Medium Effort", 'Results Tables'!F39, IF(Pathways!$E$43 = "High Effort", 'Results Tables'!G39, IF(Pathways!$E$43 = "Advanced User Pathway", 'Results Tables'!H39))))) -> 0 | AJ39: =D84 - IF(Pathways!$E$43 = "Please Select a Pathway", D84, IF(Pathways!$E$43 = "Low Effort", E84, IF(Pathways!$E$43 = "Medium Effort", F84, IF(Pathways!$E$43 = "High Effort", G84, IF(Pathways!$E$43 = "Advanced User Pathway", H84))))) -> 0 | AK39: 0 | AM39: Sector | AN39: Direct Emissions Savings | AO39: Indirect Emissions Savings | AP39: Total Emissions Savings
B40: Domestic Refrigeration | C40: ='Direct Emissions Calcs'!BS8 -> 0.4097618766 | D40: ='Baseline Calcs'!BU8 -> 0.8701282253 | E40: ='Direct Emissions Calcs'!Q185 -> 0.5930793984 | F40: ='Direct Emissions Calcs'!Q362 -> 0.06961025803 | G40: ='Direct Emissions Calcs'!Q539 -> 9.3506875e-05 | H40: ='Direct Emissions Calcs'!Q716 -> 0 | S40: Industrial Refrigeration | T40: =SUM('Baseline Calcs'!CT13,'Baseline Calcs'!CT18)/10^9 -> 18.16404 | U40: =SUM('Indirect Emissions Calcs'!K190,'Indirect Emissions Calcs'!K195) / 10^9 -> 17.0741976 | V40: =SUM('Indirect Emissions Calcs'!K367,'Indirect Emissions Calcs'!K372) / 10^9 -> 12.714828 | W40: =SUM('Indirect Emissions Calcs'!K544,'Indirect Emissions Calcs'!K549) / 10^9 -> 9.08202 | X40: =SUM('Indirect Emissions Calcs'!K721,'Indirect Emissions Calcs'!K726)/10^9 -> 0 | AA40: Industrial Refrigeration | AB40: =SUM('Direct Emissions Calcs'!F13,'Direct Emissions Calcs'!F18) -> 13058 | AC40: =SUM('Direct Emissions Calcs'!F721,'Direct Emissions Calcs'!F726) -> 16364 | AH40: Domestic Refrigeration | AI40: =D40 - IF(Pathways!$E$43 = "Please Select a Pathway", 'Results Tables'!D40, IF(Pathways!$E$43 = "Low Effort", 'Results Tables'!E40, IF(Pathways!$E$43 = "Medium Effort", 'Results Tables'!F40, IF(Pathways!$E$43 = "High Effort", 'Results Tables'!G40, IF(Pathways!$E$43 = "Advanced User Pathway", 'Results Tables'!H40))))) -> 0 | AJ40: =D85 - IF(Pathways!$E$43 = "Please Select a Pathway", D85, IF(Pathways!$E$43 = "Low Effort", E85, IF(Pathways!$E$43 = "Medium Effort", F85, IF(Pathways!$E$43 = "High Effort", G85, IF(Pathways!$E$43 = "Advanced User Pathway", H85))))) -> 0 | AK40: 0 | AM40: Commercial AC | AN40: =AN26/L16 -> 0 | AO40: =AO26/L61 -> 0 | AP40: =AP26/L106 -> 0
B41: Industrial AC | C41: =SUM('Direct Emissions Calcs'!BS102:BS103) -> 2.898070078 | D41: =SUM('Baseline Calcs'!BU102:BU103) -> 3.634823684 | E41: =SUM('Direct Emissions Calcs'!Q279:Q280) -> 2.471680105 | F41: =SUM('Direct Emissions Calcs'!Q456:Q457) -> 0.2907858947 | G41: =SUM('Direct Emissions Calcs'!Q633:Q634) -> 0.0005083669488 | H41: =SUM('Direct Emissions Calcs'!Q810:Q811) -> 0 | S41: Transport AC | T41: =SUM('Baseline Calcs'!CT140:CT143)/10^9 -> 411.6638643 | U41: =SUM('Indirect Emissions Calcs'!K317:K320) / 10^9 -> 372.128446 | V41: =SUM('Indirect Emissions Calcs'!K494:K497) / 10^9 -> 211.2684926 | W41: =SUM('Indirect Emissions Calcs'!K671:K674) / 10^9 -> 122.4497155 | X41: =SUM('Indirect Emissions Calcs'!K848:K851)/10^9 -> 0 | AA41: Transport AC | AB41: =SUM('Direct Emissions Calcs'!F140:F143) -> 109069525 | AC41: =SUM('Direct Emissions Calcs'!F848:F851) -> 204958297.8 | AH41: Industrial AC | AI41: =D41 - IF(Pathways!$E$43 = "Please Select a Pathway", 'Results Tables'!D41, IF(Pathways!$E$43 = "Low Effort", 'Results Tables'!E41, IF(Pathways!$E$43 = "Medium Effort", 'Results Tables'!F41, IF(Pathways!$E$43 = "High Effort", 'Results Tables'!G41, IF(Pathways!$E$43 = "Advanced User Pathway", 'Results Tables'!H41))))) -> 0 | AJ41: =D86 - IF(Pathways!$E$43 = "Please Select a Pathway", D86, IF(Pathways!$E$43 = "Low Effort", E86, IF(Pathways!$E$43 = "Medium Effort", F86, IF(Pathways!$E$43 = "High Effort", G86, IF(Pathways!$E$43 = "Advanced User Pathway", H86))))) -> 0 | AK41: 0 | AM41: Commercial Refrigeration | AN41: =AN27/L17 -> 0 | AO41: =AO27/L62 -> 0 | AP41: =AP27/L107 -> 0
B42: Industrial Refrigeration | C42: =SUM('Direct Emissions Calcs'!BS13,'Direct Emissions Calcs'!BS18) -> 3.109032614 | D42: =SUM('Baseline Calcs'!BU13,'Baseline Calcs'!BU18) -> 3.896171672 | E42: =SUM('Direct Emissions Calcs'!Q190,'Direct Emissions Calcs'!Q195) -> 2.521862476 | F42: =SUM('Direct Emissions Calcs'!Q367,'Direct Emissions Calcs'!Q372) -> 0.3116937337 | G42: =SUM('Direct Emissions Calcs'!Q544,'Direct Emissions Calcs'!Q549) -> 0.000392337373 | H42: =SUM('Direct Emissions Calcs'!Q721,'Direct Emissions Calcs'!Q726) -> 0 | S42: Transport Refrigeration | T42: =SUM('Baseline Calcs'!CT120:CT123)/10^9 -> 19.34981127 | U42: =SUM('Indirect Emissions Calcs'!K297:K300) / 10^9 -> 18.18882259 | V42: =SUM('Indirect Emissions Calcs'!K474:K477) / 10^9 -> 13.54486789 | W42: =SUM('Indirect Emissions Calcs'!K651:K654) / 10^9 -> 9.674905635 | X42: =SUM('Indirect Emissions Calcs'!K828:K831)/10^9 -> 0 | AA42: Transport Refrigeration | AB42: =SUM('Direct Emissions Calcs'!F120:F123) -> 164346 | AC42: =SUM('Direct Emissions Calcs'!F828:F831) -> 623258 | AH42: Industrial Refrigeration | AI42: =D42 - IF(Pathways!$E$43 = "Please Select a Pathway", 'Results Tables'!D42, IF(Pathways!$E$43 = "Low Effort", 'Results Tables'!E42, IF(Pathways!$E$43 = "Medium Effort", 'Results Tables'!F42, IF(Pathways!$E$43 = "High Effort", 'Results Tables'!G42, IF(Pathways!$E$43 = "Advanced User Pathway", 'Results Tables'!H42))))) -> 0 | AJ42: =D87 - IF(Pathways!$E$43 = "Please Select a Pathway", D87, IF(Pathways!$E$43 = "Low Effort", E87, IF(Pathways!$E$43 = "Medium Effort", F87, IF(Pathways!$E$43 = "High Effort", G87, IF(Pathways!$E$43 = "Advanced User Pathway", H87))))) -> 0 | AK42: 0 | AM42: Domestic AC | AN42: 0 | AO42: 0 | AP42: 0
B43: Transport AC | C43: =SUM('Direct Emissions Calcs'!BS140:BS143) -> 7.963909149 | D43: =SUM('Baseline Calcs'!BU140:BU143) -> 14.96540178 | E43: =SUM('Direct Emissions Calcs'!Q317:Q320) -> 9.333232523 | F43: =SUM('Direct Emissions Calcs'!Q494:Q497) -> 1.224015859 | G43: =SUM('Direct Emissions Calcs'!Q671:Q674) -> 0.002139887865 | H43: =SUM('Direct Emissions Calcs'!Q848:Q851) -> 0 | AH43: Transport AC | AI43: =D43 - IF(Pathways!$E$43 = "Please Select a Pathway", 'Results Tables'!D43, IF(Pathways!$E$43 = "Low Effort", 'Results Tables'!E43, IF(Pathways!$E$43 = "Medium Effort", 'Results Tables'!F43, IF(Pathways!$E$43 = "High Effort", 'Results Tables'!G43, IF(Pathways!$E$43 = "Advanced User Pathway", 'Results Tables'!H43))))) -> 0 | AJ43: =D88 - IF(Pathways!$E$43 = "Please Select a Pathway", D88, IF(Pathways!$E$43 = "Low Effort", E88, IF(Pathways!$E$43 = "Medium Effort", F88, IF(Pathways!$E$43 = "High Effort", G88, IF(Pathways!$E$43 = "Advanced User Pathway", H88))))) -> 0 | AK43: 0 | AM43: Domestic Refrigeration | AN43: 0 | AO43: 0 | AP43: 0
B44: Transport Refrigeration | C44: =SUM('Direct Emissions Calcs'!BS120:BS123) -> 0.382712787 | D44: =SUM('Baseline Calcs'!BU120:BU123) -> 1.559277966 | E44: =SUM('Direct Emissions Calcs'!Q297:Q300) -> 1.057003997 | F44: =SUM('Direct Emissions Calcs'!Q474:Q477) -> 0.1247422373 | G44: =SUM('Direct Emissions Calcs'!Q651:Q654) -> 0.0001871133559 | H44: =SUM('Direct Emissions Calcs'!Q828:Q831) -> 0 | AH44: Transport Refrigeration | AI44: =D44 - IF(Pathways!$E$43 = "Please Select a Pathway", 'Results Tables'!D44, IF(Pathways!$E$43 = "Low Effort", 'Results Tables'!E44, IF(Pathways!$E$43 = "Medium Effort", 'Results Tables'!F44, IF(Pathways!$E$43 = "High Effort", 'Results Tables'!G44, IF(Pathways!$E$43 = "Advanced User Pathway", 'Results Tables'!H44))))) -> 0 | AJ44: =D89 - IF(Pathways!$E$43 = "Please Select a Pathway", D89, IF(Pathways!$E$43 = "Low Effort", E89, IF(Pathways!$E$43 = "Medium Effort", F89, IF(Pathways!$E$43 = "High Effort", G89, IF(Pathways!$E$43 = "Advanced User Pathway", H89))))) -> 0 | AK44: 0 | AM44: Industrial AC | AN44: 0 | AO44: =AO30/L65 -> 0 | AP44: 0
AM45: Industrial Refrigeration | AN45: 0 | AO45: 0 | AP45: 0
T46: Energy Consumption (TWh / year) | Z46: Region | AA46: 2020 Stock | AB46: 2050 Stock | AM46: Transport AC | AN46: =AN32/L22 -> 0 | AO46: 0 | AP46: 0
S47: Region | T47: 2050 Baseline | U47: Low Effort | V47: Medium Effort | W47: High Effort | X47: Advanced User Pathway | Z47: Africa | AA47: =SUM(AB3:AB10) -> 206259023.3 | AB47: =SUM(AC3:AC10) -> 1023771641 | AM47: Transport Refrigeration | AN47: 0 | AO47: 0 | AP47: 0
C48: Indirect Emissions (Mt CO2e) | K48: Indirect Emissions (Mt CO2e) | S48: Africa | T48: =SUM(T3:T10) -> 2727.219442 | U48: =SUM(U3:U10) -> 2457.106784 | V48: =SUM(V3:V10) -> 1529.099563 | W48: =SUM(W3:W10) -> 1038.217633 | X48: =SUM(X3:X10) -> 0 | Z48: Asia | AA48: =SUM(AB11:AB18) -> 2424703167 | AB48: =SUM(AC11:AC18) -> 7427097589 | AM48: Total | AN48: =AN34/L24 -> 0 | AO48: =AO34/L69 -> 0 | AP48: =AP34/L114 -> 0
A49: Region | B49: Sector | C49: 2020 Baseline | D49: 2050 Baseline | E49: Low Effort | F49: Medium Effort | G49: High Effort | H49: Advanced User Pathway | J49: Region | K49: 2020 Baseline | L49: 2050 Baseline | M49: Low Effort | N49: Medium Effort | O49: High Effort | P49: Advanced User Pathway | S49: Asia | T49: =SUM(T11:T18) -> 17081.15478 | U49: =SUM(U11:U18) -> 15410.49871 | V49: =SUM(V11:V18) -> 9990.907402 | W49: =SUM(W11:W18) -> 6805.762299 | X49: =SUM(X11:X18) -> 0 | Z49: Europe | AA49: =SUM(AB19:AB26) -> 685661306.5 | AB49: =SUM(AC19:AC26) -> 1009580200
A50: Africa | B50: Commercial AC | C50: =SUM('Indirect Emissions Calcs'!N144:N150) -> 227.443713 | D50: =SUM('Baseline Calcs'!CW144:CW150) -> 500.9062365 | E50: =SUM('Indirect Emissions Calcs'!N321:N327) -> 323.5083164 | F50: =SUM('Indirect Emissions Calcs'!N498:N504) -> 146.1958111 | G50: =SUM('Indirect Emissions Calcs'!N675:N681) -> 37.42600118 | H50: =SUM('Indirect Emissions Calcs'!N852:N858) -> 0 | J50: Africa | K50: =SUM(C50:C57) -> 463.4761462 | L50: 1402.847537 | M50: 937.3941819 | N50: 461.111701 | O50: 108.6814418 | P50: 0 | S50: Europe | T50: =SUM(T19:T26) -> 1920.494267 | U50: =SUM(U19:U26) -> 1744.675259 | V50: =SUM(V19:V26) -> 1088.00427 | W50: =SUM(W19:W26) -> 687.7819292 | X50: =SUM(X19:X26) -> 0 | Z50: North America | AA50: =SUM(AB27:AB34) -> 902641710.7 | AB50: =SUM(AC27:AC34) -> 1331114746
B51: Commercial Refrigeration | C51: =SUM('Indirect Emissions Calcs'!N79:N81) -> 59.94367749 | D51: =SUM('Baseline Calcs'!CW79:CW81) -> 80.71885931 | E51: =SUM('Indirect Emissions Calcs'!N256:N258) -> 52.03074508 | F51: =SUM('Indirect Emissions Calcs'!N433:N435) -> 23.47389126 | G51: =SUM('Indirect Emissions Calcs'!N610:N612) -> 6.003332172 | H51: =SUM('Indirect Emissions Calcs'!N787:N789) -> 0 | J51: Asia | K51: =SUM(C58:C65) -> 3237.29183 | L51: 10167.5629 | M51: 6905.506768 | N51: 4128.861193 | O51: 880.6278248 | P51: 0 | S51: North America | T51: =SUM(T27:T34) -> 4302.510239 | U51: =SUM(U27:U34) -> 3768.874894 | V51: =SUM(V27:V34) -> 2339.966883 | W51: =SUM(W27:W34) -> 1621.404589 | X51: =SUM(X27:X34) -> 0 | Z51: South and Central America | AA51: =SUM(AB35:AB42) -> 282680971.8 | AB51: =SUM(AC35:AC42) -> 655102811.2
B52: Domestic AC | C52: =SUM('Indirect Emissions Calcs'!N19:N30) -> 50.32055531 | D52: =SUM('Baseline Calcs'!CW19:CW30) -> 422.8275359 | E52: =SUM('Indirect Emissions Calcs'!N196:N207) -> 252.3413171 | F52: =SUM('Indirect Emissions Calcs'!N373:N384) -> 107.7392312 | G52: =SUM('Indirect Emissions Calcs'!N550:N561) -> 28.77341915 | H52: =SUM('Indirect Emissions Calcs'!N727:N738) -> 0 | J52: Europe | K52: =SUM(C66:C73) -> 497.5965575 | L52: 705.8660648 | M52: 482.4776409 | N52: 222.8462832 | O52: 36.14635906 | P52: 0 | S52: South America | T52: =SUM(T35:T42) -> 1766.618384 | U52: =SUM(U35:U42) -> 1514.903522 | V52: =SUM(V35:V42) -> 927.2908332 | W52: =SUM(W35:W42) -> 626.5042713 | X52: =SUM(X35:X42) -> 0 | Z52: Global | AA52: =SUM(AA47:AA51) -> 4501946179 | AB52: =SUM(AB47:AB51) -> 1.144666699e+10
B53: Domestic Refrigeration | C53: ='Indirect Emissions Calcs'!N4 -> 18.20008544 | D53: ='Baseline Calcs'!CW4 -> 70.75747504 | E53: ='Indirect Emissions Calcs'!N181 -> 45.25936941 | F53: =SUM('Indirect Emissions Calcs'!N358) -> 25.23880546 | G53: ='Indirect Emissions Calcs'!N535 -> 4.633865668 | H53: ='Indirect Emissions Calcs'!N712 -> 0 | J53: North America | K53: =SUM(C74:C81) -> 908.9688137 | L53: 1558.244799 | M53: 1028.249341 | N53: 576.9868302 | O53: 82.09809164 | P53: 0 | S53: Global | T53: =SUM(T48:T52) -> 27797.99711 | U53: =SUM(U48:U52) -> 24896.05916 | V53: =SUM(V48:V52) -> 15875.26895 | W53: 10779.67072 | X53: 0
B54: Industrial AC | C54: =SUM('Indirect Emissions Calcs'!N94:N95) -> 16.56187733 | D54: =SUM('Baseline Calcs'!CW94:CW95) -> 35.02758198 | E54: =SUM('Indirect Emissions Calcs'!N271:N272) -> 23.01723171 | F54: =SUM('Indirect Emissions Calcs'!N448:N449) -> 12.3471575 | G54: =SUM('Indirect Emissions Calcs'!N625:N626) -> 3.200840739 | H54: =SUM('Indirect Emissions Calcs'!N802:N803) -> 0 | J54: South America | K54: =SUM(C82:C89) -> 176.6377542 | L54: 513.1217247 | M54: 285.6127005 | N54: 133.0173174 | O54: 21.32483054 | P54: 0
B55: Industrial Refrigeration | C55: =SUM('Indirect Emissions Calcs'!N9,'Indirect Emissions Calcs'!N14) -> 12.17641564 | D55: =SUM('Baseline Calcs'!CW9,'Baseline Calcs'!CW14) -> 22.50083476 | E55: =SUM('Indirect Emissions Calcs'!N186,'Indirect Emissions Calcs'!N191) -> 14.78568882 | F55: =SUM('Indirect Emissions Calcs'!N363,'Indirect Emissions Calcs'!N368) -> 7.9315024 | G55: =SUM('Indirect Emissions Calcs'!N540,'Indirect Emissions Calcs'!N545) -> 2.056139319 | H55: =SUM('Indirect Emissions Calcs'!N717,'Indirect Emissions Calcs'!N722) -> 0 | J55: Global | K55: =SUM(K50:K54) -> 5283.971101 | L55: =SUM(L50:L54) -> 14347.64303 | M55: =SUM(M50:M54) -> 9639.240633 | N55: 5522.823325 | O55: 1128.878548 | P55: 0 | T55: Energy Consumption (TWh / year)
B56: Transport AC | C56: =SUM('Indirect Emissions Calcs'!N124:N127) -> 73.6226141 | D56: =SUM('Baseline Calcs'!CW124:CW127) -> 228.7571759 | E56: =SUM('Indirect Emissions Calcs'!N301:N304) -> 195.0537943 | F56: =SUM('Indirect Emissions Calcs'!N478:N481) -> 112.9764552 | G56: =SUM('Indirect Emissions Calcs'!N655:N658) -> 20.74695822 | H56: =SUM('Indirect Emissions Calcs'!N832:N835) -> 0 | S56: Sector | T56: 2050 Baseline | U56: Low Effort | V56: Medium Effort | W56: High Effort | X56: Advanced User Pathway | Z56: Sector | AA56: 2020 Stock | AB56: 2050 Stock
B57: Transport Refrigeration | C57: =SUM('Indirect Emissions Calcs'!N104:N107) -> 5.207207876 | D57: =SUM('Baseline Calcs'!CW104:CW107) -> 41.35183765 | E57: =SUM('Indirect Emissions Calcs'!N281:N284) -> 31.3977191 | F57: =SUM('Indirect Emissions Calcs'!N458:N461) -> 25.20884679 | G57: =SUM('Indirect Emissions Calcs'!N635:N638) -> 5.840885327 | H57: =SUM('Indirect Emissions Calcs'!N812:N815) -> 0 | S57: Commercial AC | T57: =SUM(T3,T11,T19,T27,T35) -> 7336.655596 | U57: 6778.163887 | V57: 4252.240634 | W57: 2999.378107 | X57: 0 | Z57: Commercial AC | AA57: =SUM(AB3,AB11,AB19,AB27,AB35) -> 608448356 | AB57: =SUM(AC3,AC11,AC19,AC27,AC35) -> 1366671703
A58: Asia | B58: Commercial AC | C58: =SUM('Indirect Emissions Calcs'!N151:N157) -> 1200.670868 | D58: =SUM('Baseline Calcs'!CW151:CW157) -> 3027.250749 | E58: =SUM('Indirect Emissions Calcs'!N328:N334) -> 1954.293131 | F58: =SUM('Indirect Emissions Calcs'!N505:N511) -> 1075.526327 | G58: =SUM('Indirect Emissions Calcs'!N682:N688) -> 237.4690243 | H58: =SUM('Indirect Emissions Calcs'!N859:N865) -> 0 | S58: Commercial Refrigeration | T58: 1476.419702 | U58: 1363.186585 | V58: 856.241548 | W58: 606.8360789 | X58: 0 | Z58: Commercial Refrigeration | AA58: =SUM(AB4,AB12,AB20,AB28,AB36) -> 90600000 | AB58: 122000000
B59: Commercial Refrigeration | C59: =SUM('Indirect Emissions Calcs'!N82:N84) -> 425.112208 | D59: =SUM('Baseline Calcs'!CW82:CW84) -> 572.4469026 | E59: =SUM('Indirect Emissions Calcs'!N259:N261) -> 369.3651763 | F59: =SUM('Indirect Emissions Calcs'!N436:N438) -> 203.5762409 | G59: =SUM('Indirect Emissions Calcs'!N613:N615) -> 45.18358856 | H59: =SUM('Indirect Emissions Calcs'!N790:N792) -> 0 | K59: Indirect Emissions (Mt CO2e) | S59: Domestic AC | T59: 8987.048489 | U59: 7613.593391 | V59: 4919.288962 | W59: 3619.885387 | X59: 0 | Z59: Domestic AC | AA59: 917000000 | AB59: 3770000000
B60: Domestic AC | C60: =SUM('Indirect Emissions Calcs'!N31:N42) -> 389.8944505 | D60: =SUM('Baseline Calcs'!CW31:CW42) -> 3722.300517 | E60: =SUM('Indirect Emissions Calcs'!N208:N219) -> 2256.106614 | F60: =SUM('Indirect Emissions Calcs'!N385:N396) -> 1339.641199 | G60: =SUM('Indirect Emissions Calcs'!N562:N573) -> 308.5698713 | H60: =SUM('Indirect Emissions Calcs'!N739:N750) -> 0 | J60: Sector | K60: 2020 Baseline | L60: 2050 Baseline | M60: Low Effort | N60: Medium Effort | O60: High Effort | P60: Advanced User Pathway | S60: Domestic Refrigeration | T60: 1287.927264 | U60: 1178.453447 | V60: 912.281812 | W60: 461.5072696 | X60: 0 | Z60: Domestic Refrigeration | AA60: 1511370000 | AB60: 3075280000
B61: Domestic Refrigeration | C61: ='Indirect Emissions Calcs'!N5 -> 233.082034 | D61: ='Baseline Calcs'!CW5 -> 521.5430542 | E61: ='Indirect Emissions Calcs'!N182 -> 333.4560776 | F61: ='Indirect Emissions Calcs'!N359 -> 226.4544166 | G61: ='Indirect Emissions Calcs'!N536 -> 35.85938717 | H61: ='Indirect Emissions Calcs'!N713 -> 0 | J61: Commercial AC | K61: =SUM(C50,C58,C66,C74,C82) -> 1800.093332 | L61: 4187.877946 | M61: 2687.872787 | N61: 1446.144054 | O61: 310.9160088 | P61: 0 | S61: Industrial AC | T61: 842.422443 | U61: 791.8770964 | V61: 589.6957101 | W61: 421.2112215 | X61: 0 | Z61: Industrial AC | AA61: 5532660 | AB61: 6299360
B62: Industrial AC | C62: =SUM('Indirect Emissions Calcs'!N96:N97) -> 168.478571 | D62: =SUM('Baseline Calcs'!CW96:CW97) -> 299.9913687 | E62: =SUM('Indirect Emissions Calcs'!N273:N274) -> 197.0443518 | F62: =SUM('Indirect Emissions Calcs'!N450:N451) -> 128.7240659 | G62: =SUM('Indirect Emissions Calcs'!N627:N628) -> 28.78089212 | H62: =SUM('Indirect Emissions Calcs'!N804:N805) -> 0 | J62: Commercial Refrigeration | K62: 592.8401321 | L62: 798.3056967 | M62: 510.950118 | N62: 269.5889701 | O62: 59.82721151 | P62: 0 | S62: Industrial Refrigeration | T62: 635.05875 | U62: 596.955225 | V62: 444.541125 | W62: 317.529375 | X62: 0 | Z62: Industrial Refrigeration | AA62: 514327 | AB62: 572125
B63: Industrial Refrigeration | C63: =SUM('Indirect Emissions Calcs'!N10,'Indirect Emissions Calcs'!N15) -> 205.5435062 | D63: =SUM('Baseline Calcs'!CW10,'Baseline Calcs'!CW15) -> 217.8055497 | E63: =SUM('Indirect Emissions Calcs'!N187,'Indirect Emissions Calcs'!N192) -> 143.0619606 | F63: =SUM('Indirect Emissions Calcs'!N364,'Indirect Emissions Calcs'!N369) -> 93.45874206 | G63: =SUM('Indirect Emissions Calcs'!N541,'Indirect Emissions Calcs'!N546) -> 20.8960613 | H63: =SUM('Indirect Emissions Calcs'!N718,'Indirect Emissions Calcs'!N723) -> 0 | J63: Domestic AC | K63: 769.9755712 | L63: 4932.128983 | M63: 2981.036139 | N63: 1696.63206 | O63: 377.9479813 | P63: 0 | S63: Transport AC | T63: 6191.821474 | U63: 5595.62474 | V63: 3172.528783 | W63: 1833.001584 | X63: 0 | Z63: Transport AC | AA63: 1361544374 | AB63: 3074674309
B64: Transport AC | C64: =SUM('Indirect Emissions Calcs'!N128:N131) -> 560.2459225 | D64: =SUM('Baseline Calcs'!CW128:CW131) -> 1453.746975 | E64: =SUM('Indirect Emissions Calcs'!N305:N308) -> 1320.882752 | F64: =SUM('Indirect Emissions Calcs'!N482:N485) -> 813.5498755 | G64: =SUM('Indirect Emissions Calcs'!N659:N662) -> 145.349753 | H64: =SUM('Indirect Emissions Calcs'!N836:N839) -> 0 | J64: Domestic Refrigeration | K64: 334.3648519 | L64: 713.0230884 | M64: 452.6113856 | N64: 296.570396 | O64: 46.62525446 | P64: 0 | S64: Transport Refrigeration | T64: 1040.643396 | U64: 978.2047926 | V64: 728.4503775 | W64: 520.3216982 | X64: 0 | Z64: Transport Refrigeration | AA64: 6936462 | AB64: 31169490
B65: Transport Refrigeration | C65: =SUM('Indirect Emissions Calcs'!N108:N111) -> 54.26427001 | D65: =SUM('Baseline Calcs'!CW108:CW111) -> 352.4777859 | E65: =SUM('Indirect Emissions Calcs'!N285:N288) -> 331.2967065 | F65: =SUM('Indirect Emissions Calcs'!N462:N465) -> 247.9303261 | G65: =SUM('Indirect Emissions Calcs'!N639:N642) -> 58.51924708 | H65: =SUM('Indirect Emissions Calcs'!N816:N819) -> 0 | J65: Industrial AC | K65: 261.6084569 | L65: 451.2299987 | M65: 293.3581011 | N65: 187.7132294 | O65: 39.80708322 | P65: 0 | S65: Total | T65: =SUM(T57:T64) -> 27797.99711 | U65: =SUM(U57:U64) -> 24896.05916 | V65: =SUM(V57:V64) -> 15875.26895 | W65: 10779.67072 | X65: 0 | Z65: Total | AA65: =SUM(AA57:AA64) -> 4501946179 | AB65: =SUM(AB57:AB64) -> 1.144666699e+10
A66: Europe | B66: Commercial AC | C66: =SUM('Indirect Emissions Calcs'!N165:N171) -> 61.39378178 | D66: =SUM('Baseline Calcs'!CW165:CW171) -> 95.96061161 | E66: =SUM('Indirect Emissions Calcs'!N342:N348) -> 58.29746451 | F66: =SUM('Indirect Emissions Calcs'!N519:N525) -> 23.83612986 | G66: =SUM('Indirect Emissions Calcs'!N696:N702) -> 5.912931076 | H66: =SUM('Indirect Emissions Calcs'!N873:N879) -> 0 | J66: Industrial Refrigeration | K66: 302.117334 | L66: 333.3699469 | M66: 216.3139961 | N66: 136.1771043 | O66: 29.43595467 | P66: 0
B67: Commercial Refrigeration | C67: =SUM('Indirect Emissions Calcs'!N88:N90) -> 58.95623486 | D67: =SUM('Baseline Calcs'!CW88:CW90) -> 79.38919043 | E67: =SUM('Indirect Emissions Calcs'!N265:N267) -> 48.21028252 | F67: =SUM('Indirect Emissions Calcs'!N442:N444) -> 19.74502616 | G67: =SUM('Indirect Emissions Calcs'!N619:N621) -> 4.925767478 | H67: =SUM('Indirect Emissions Calcs'!N796:N798) -> 0 | J67: Transport AC | K67: 1149.253518 | L67: 2509.753657 | M67: 2117.070302 | N67: 1205.519306 | O67: 196.6231918 | P67: 0
B68: Domestic AC | C68: =SUM('Indirect Emissions Calcs'!N55:N66) -> 25.98426435 | D68: =SUM('Baseline Calcs'!CW55:CW66) -> 44.62297705 | E68: =SUM('Indirect Emissions Calcs'!N232:N243) -> 20.77242674 | F68: =SUM('Indirect Emissions Calcs'!N409:N420) -> 8.024340318 | G68: =SUM('Indirect Emissions Calcs'!N586:N597) -> 2.076612745 | H68: =SUM('Indirect Emissions Calcs'!N763:N774) -> 0 | J68: Transport Refrigeration | K68: 73.71790592 | L68: 421.9537105 | M68: 380.0278041 | N68: 284.4782048 | O68: 67.69586198 | P68: 0
B69: Domestic Refrigeration | C69: ='Indirect Emissions Calcs'!N6 -> 35.68474541 | D69: ='Baseline Calcs'!CW6 -> 54.76219827 | E69: ='Indirect Emissions Calcs'!N183 -> 32.94918631 | F69: ='Indirect Emissions Calcs'!N360 -> 16.62423187 | G69: ='Indirect Emissions Calcs'!N537 -> 2.957636571 | H69: ='Indirect Emissions Calcs'!N714 -> 0 | J69: Total | K69: =SUM(K61:K68) -> 5283.971101 | L69: =SUM(L61:L68) -> 14347.64303 | M69: =SUM(M61:M68) -> 9639.240633 | N69: 5522.823325 | O69: 1128.878548 | P69: 0
B70: Industrial AC | C70: =SUM('Indirect Emissions Calcs'!N100:N101) -> 17.99562186 | D70: =SUM('Baseline Calcs'!CW100:CW101) -> 26.16462327 | E70: =SUM('Indirect Emissions Calcs'!N277:N278) -> 16.17279443 | F70: =SUM('Indirect Emissions Calcs'!N454:N455) -> 7.84938373 | G70: =SUM('Indirect Emissions Calcs'!N631:N632) -> 1.971792521 | H70: =SUM('Indirect Emissions Calcs'!N808:N809) -> 0
B71: Industrial Refrigeration | C71: =SUM('Indirect Emissions Calcs'!N12,'Indirect Emissions Calcs'!N17) -> 46.39448709 | D71: =SUM('Baseline Calcs'!CW12,'Baseline Calcs'!CW17) -> 47.17451136 | E71: =SUM('Indirect Emissions Calcs'!N189,'Indirect Emissions Calcs'!N194) -> 25.4422712 | F71: =SUM('Indirect Emissions Calcs'!N366,'Indirect Emissions Calcs'!N371) -> 12.34827726 | G71: =SUM('Indirect Emissions Calcs'!N543,'Indirect Emissions Calcs'!N548) -> 3.101930239 | H71: =SUM('Indirect Emissions Calcs'!N720,'Indirect Emissions Calcs'!N725) -> 0
B72: Transport AC | C72: =SUM('Indirect Emissions Calcs'!N136:N139) -> 246.1811759 | D72: =SUM('Baseline Calcs'!CW136:CW139) -> 349.5032621 | E72: =SUM('Indirect Emissions Calcs'!N313:N316) -> 275.9383901 | F72: =SUM('Indirect Emissions Calcs'!N490:N493) -> 131.0126519 | G72: =SUM('Indirect Emissions Calcs'!N667:N670) -> 14.20698616 | H72: =SUM('Indirect Emissions Calcs'!N844:N847) -> 0
B73: Transport Refrigeration | C73: =SUM('Indirect Emissions Calcs'!N116:N119) -> 5.006246229 | D73: =SUM('Baseline Calcs'!CW116:CW119) -> 8.288690736 | E73: =SUM('Indirect Emissions Calcs'!N293:N296) -> 4.6948251 | F73: =SUM('Indirect Emissions Calcs'!N470:N473) -> 3.406242119 | G73: =SUM('Indirect Emissions Calcs'!N647:N650) -> 0.9927022713 | H73: =SUM('Indirect Emissions Calcs'!N824:N827) -> 0
A74: North America | B74: Commercial AC | C74: =SUM('Indirect Emissions Calcs'!N158:N164) -> 284.7890959 | D74: =SUM('Baseline Calcs'!CW158:CW164) -> 505.8348597 | E74: =SUM('Indirect Emissions Calcs'!N335:N340) -> 314.757115 | F74: =SUM('Indirect Emissions Calcs'!N512:N518) -> 181.6204618 | G74: =SUM('Indirect Emissions Calcs'!N689:N695) -> 26.55075592 | H74: =SUM('Indirect Emissions Calcs'!N866:N872) -> 0
B75: Commercial Refrigeration | C75: =SUM('Indirect Emissions Calcs'!N85:N87) -> 29.0410637 | D75: =SUM('Baseline Calcs'!CW85:CW87) -> 39.10606812 | E75: =SUM('Indirect Emissions Calcs'!N262:N264) -> 24.3238657 | F75: =SUM('Indirect Emissions Calcs'!N439:N441) -> 14.05897884 | G75: =SUM('Indirect Emissions Calcs'!N616:N618) -> 2.066878804 | H75: =SUM('Indirect Emissions Calcs'!N793:N795) -> 0
B76: Domestic AC | C76: =SUM('Indirect Emissions Calcs'!N43:N54) -> 276.0620741 | D76: =SUM('Baseline Calcs'!CW43:CW54) -> 588.5198039 | E76: =SUM('Indirect Emissions Calcs'!N220:N231) -> 368.5905051 | F76: =SUM('Indirect Emissions Calcs'!N397:N408) -> 200.9413845 | G76: =SUM('Indirect Emissions Calcs'!N574:N585) -> 30.64506925 | H76: =SUM('Indirect Emissions Calcs'!N751:N762) -> 0
B77: Domestic Refrigeration | C77: ='Indirect Emissions Calcs'!N7 -> 38.98369281 | D77: ='Baseline Calcs'!CW7 -> 48.09263018 | E77: ='Indirect Emissions Calcs'!N184 -> 29.6382455 | F77: ='Indirect Emissions Calcs'!N361 -> 21.10340474 | G77: ='Indirect Emissions Calcs'!N538 -> 2.212589203 | H77: ='Indirect Emissions Calcs'!N715 -> 0
B78: Industrial AC | C78: =SUM('Indirect Emissions Calcs'!N98:N99) -> 54.49060297 | D78: =SUM('Baseline Calcs'!CW98:CW99) -> 83.35908704 | E78: =SUM('Indirect Emissions Calcs'!N275:N276) -> 52.77565972 | F78: =SUM('Indirect Emissions Calcs'!N452:N453) -> 36.14825265 | G78: =SUM('Indirect Emissions Calcs'!N629:N630) -> 5.351284047 | H78: =SUM('Indirect Emissions Calcs'!N806:N807) -> 0
B79: Industrial Refrigeration | C79: =SUM('Indirect Emissions Calcs'!N11,'Indirect Emissions Calcs'!N16) -> 35.10960229 | D79: =SUM('Baseline Calcs'!CW11,'Baseline Calcs'!CW16) -> 42.26320225 | E79: =SUM('Indirect Emissions Calcs'!N188,'Indirect Emissions Calcs'!N193) -> 30.66657218 | F79: =SUM('Indirect Emissions Calcs'!N365,'Indirect Emissions Calcs'!N370) -> 21.00481557 | G79: =SUM('Indirect Emissions Calcs'!N542,'Indirect Emissions Calcs'!N547) -> 3.109492886 | H79: =SUM('Indirect Emissions Calcs'!N719,'Indirect Emissions Calcs'!N724) -> 0
B80: Transport AC | C80: =SUM('Indirect Emissions Calcs'!N132:N135) -> 183.1148759 | D80: =SUM('Baseline Calcs'!CW132:CW135) -> 238.8731223 | E80: =SUM('Indirect Emissions Calcs'!N309:N312) -> 198.9425561 | F80: =SUM('Indirect Emissions Calcs'!N486:N489) -> 96.55601021 | G80: =SUM('Indirect Emissions Calcs'!N663:N666) -> 10.67192607 | H80: =SUM('Indirect Emissions Calcs'!N840:N843) -> 0
B81: Transport Refrigeration | C81: =SUM('Indirect Emissions Calcs'!N112:N115) -> 7.377805963 | D81: =SUM('Baseline Calcs'!CW112:CW115) -> 12.19602515 | E81: =SUM('Indirect Emissions Calcs'!N289:N292) -> 8.554821817 | F81: =SUM('Indirect Emissions Calcs'!N466:N469) -> 5.553521836 | G81: =SUM('Indirect Emissions Calcs'!N643:N646) -> 1.490095453 | H81: =SUM('Indirect Emissions Calcs'!N820:N823) -> 0
A82: South and Central America | B82: Commercial AC | C82: =SUM('Indirect Emissions Calcs'!N172:N178) -> 25.79587347 | D82: =SUM('Baseline Calcs'!CW172:CW178) -> 57.92548924 | E82: =SUM('Indirect Emissions Calcs'!N349:N355) -> 37.01676064 | F82: =SUM('Indirect Emissions Calcs'!N526:N532) -> 18.96532399 | G82: =SUM('Indirect Emissions Calcs'!N703:N709) -> 3.557296384 | H82: =SUM('Indirect Emissions Calcs'!N880:N886) -> 0
B83: Commercial Refrigeration | C83: =SUM('Indirect Emissions Calcs'!N91:N93) -> 19.78694806 | D83: =SUM('Baseline Calcs'!CW91:CW93) -> 26.6446762 | E83: =SUM('Indirect Emissions Calcs'!N268:N270) -> 17.0200484 | F83: =SUM('Indirect Emissions Calcs'!N445:N447) -> 8.734833021 | G83: =SUM('Indirect Emissions Calcs'!N622:N624) -> 1.647644494 | H83: =SUM('Indirect Emissions Calcs'!N799:N801) -> 0
B84: Domestic AC | C84: =SUM('Indirect Emissions Calcs'!N67:N78) -> 27.71422692 | D84: =SUM('Baseline Calcs'!CW67:CW78) -> 153.8581487 | E84: =SUM('Indirect Emissions Calcs'!N244:N255) -> 83.22527631 | F84: =SUM('Indirect Emissions Calcs'!N421:N432) -> 40.28590539 | G84: =SUM('Indirect Emissions Calcs'!N598:N609) -> 7.88300887 | H84: =SUM('Indirect Emissions Calcs'!N775:N786) -> 0
B85: Domestic Refrigeration | C85: ='Indirect Emissions Calcs'!N8 -> 8.414294217 | D85: ='Baseline Calcs'!CW8 -> 17.86773078 | E85: ='Indirect Emissions Calcs'!N185 -> 11.30850675 | F85: ='Indirect Emissions Calcs'!N362 -> 7.149537276 | G85: ='Indirect Emissions Calcs'!N539 -> 0.9617758445 | H85: ='Indirect Emissions Calcs'!N716 -> 0
B86: Industrial AC | C86: =SUM('Indirect Emissions Calcs'!N102:N103) -> 4.08178367 | D86: =SUM('Baseline Calcs'!CW102:CW103) -> 6.687337689 | E86: =SUM('Indirect Emissions Calcs'!N279:N280) -> 4.348063471 | F86: =SUM('Indirect Emissions Calcs'!N456:N457) -> 2.64436956 | G86: =SUM('Indirect Emissions Calcs'!N633:N634) -> 0.5022737878 | H86: =SUM('Indirect Emissions Calcs'!N810:N811) -> 0
B87: Industrial Refrigeration | C87: =SUM('Indirect Emissions Calcs'!N13,'Indirect Emissions Calcs'!N18) -> 2.893322767 | D87: =SUM('Baseline Calcs'!CW13,'Baseline Calcs'!CW18) -> 3.62584881 | E87: =SUM('Indirect Emissions Calcs'!N190,'Indirect Emissions Calcs'!N195) -> 2.357503314 | F87: =SUM('Indirect Emissions Calcs'!N367,'Indirect Emissions Calcs'!N372) -> 1.433767019 | G87: =SUM('Indirect Emissions Calcs'!N544,'Indirect Emissions Calcs'!N549) -> 0.2723309186 | H87: =SUM('Indirect Emissions Calcs'!N721,'Indirect Emissions Calcs'!N726) -> 0
B88: Transport AC | C88: =SUM('Indirect Emissions Calcs'!N140:N143) -> 86.08892929 | D88: =SUM('Baseline Calcs'!CW132:CW135) -> 238.8731223 | E88: =SUM('Indirect Emissions Calcs'!N317:N320) -> 126.25281 | F88: =SUM('Indirect Emissions Calcs'!N494:N497) -> 51.42431327 | G88: =SUM('Indirect Emissions Calcs'!N671:N674) -> 5.647568386 | H88: =SUM('Indirect Emissions Calcs'!N848:N851) -> 0
B89: Transport Refrigeration | C89: =SUM('Indirect Emissions Calcs'!N120:N123) -> 1.862375851 | D89: =SUM('Baseline Calcs'!CW120:CW123) -> 7.639370986 | E89: =SUM('Indirect Emissions Calcs'!N297:N300) -> 4.083731598 | F89: =SUM('Indirect Emissions Calcs'!N474:N477) -> 2.379267906 | G89: =SUM('Indirect Emissions Calcs'!N651:N654) -> 0.8529318512 | H89: =SUM('Indirect Emissions Calcs'!N828:N831) -> 0
C93: Total Emissions (Mt CO2e) | K93: Total Emissions (Mt CO2e)
A94: Region | B94: Sector | C94: 2020 Baseline | D94: 2050 Baseline | E94: Low Effort | F94: Medium Effort | G94: High Effort | H94: Advanced User Pathway | J94: Region | K94: 2020 Baseline | L94: 2050 Baseline | M94: Low Effort | N94: Medium Effort | O94: High Effort | P94: Advanced User Pathway
A95: Africa | B95: Commercial AC | C95: =SUM(C5,C50) -> 265.4692196 | D95: 546.09584 | E95: 354.2372468 | F95: 149.8109794 | G95: 37.43571363 | H95: 0 | J95: Africa | K95: =SUM(C95:C102) -> 550.7764135 | L95: 1559.770813 | M95: 1039.53149 | N95: 473.4277528 | O95: 108.7036795 | P95: 0
B96: Commercial Refrigeration | C96: =SUM(C6,C51) -> 89.30585533 | D96: =SUM(D6,D51) -> 120.2573328 | E96: 78.21743317 | F96: 26.60981746 | G96: 6.007628563 | H96: 0 | J96: Asia | K96: =SUM(C103:C110) -> 3746.835898 | L96: 11155.5173 | M96: 7552.235325 | N96: 4206.461805 | O96: 880.7612464 | P96: 0
B97: Domestic AC | C97: 52.45164835 | D97: 442.8539964 | E97: 265.1782094 | F97: 109.2791166 | G97: 28.7751991 | H97: 0 | J97: Europe | K97: =SUM(C111:C118) -> 603.8534886 | L97: 841.8656662 | M97: 572.1880367 | N97: 233.7023062 | O97: 36.16586776 | P97: 0
B98: Domestic Refrigeration | C98: 18.51926409 | D98: 71.99836347 | E98: 46.10515896 | F98: 25.33807654 | G98: 4.633999018 | H98: 0 | J98: North America | K98: =SUM(C119:C126) -> 1031.761706 | L98: 1718.410716 | M98: 1132.783738 | N98: 589.5811442 | O98: 82.12678487 | P98: 0
B99: Industrial AC | C99: 20.95510308 | D99: 43.148108 | E99: 28.5391894 | F99: 12.99679958 | G99: 3.201976477 | H99: 0 | J99: South America | K99: =SUM(C127:C134) -> 225.3609632 | L99: 594.0283673 | M99: 338.749569 | N99: 139.4012249 | O99: 21.33544777 | P99: 0
B100: Industrial Refrigeration | C100: 16.88829766 | D100: 31.20793559 | E100: 20.4215059 | F100: 8.628070466 | G100: 2.057016108 | H100: 0 | J100: Global | K100: =SUM(K95:K99) -> 6158.588469 | L100: =SUM(L95:L99) -> 15869.59286 | M100: =SUM(M95:M99) -> 10635.48816 | N100: 5642.574233 | O100: 1129.093026 | P100: 0
B101: Transport AC | C101: 80.49657663 | D101: 250.1156712 | E101: 208.3741051 | F101: 114.7233603 | G101: 20.75001225 | H101: 0
B102: Transport Refrigeration | C102: 6.690448748 | D102: 54.09356517 | E102: 38.45864087 | F102: 26.04153246 | G102: 5.842134356 | H102: 0
A103: Asia | B103: Commercial AC | C103: 1341.516036 | D103: 3253.802123 | E103: 2108.348065 | F103: 1093.650437 | G103: 237.5177162 | H103: 0
B104: Commercial Refrigeration | C104: 553.7134458 | D104: 745.6185473 | E104: 487.5075779 | F104: 217.2649696 | G104: 45.2024203 | H104: 0 | K104: Total Emissions (Mt CO2e)
B105: Domestic AC | C105: 424.2227403 | D105: 3963.726907 | E105: 2404.625155 | F105: 1357.448188 | G105: 308.5909588 | H105: 0 | J105: Sector | K105: 2020 Baseline | L105: 2050 Baseline | M105: Low Effort | N105: Medium Effort | O105: High Effort | P105: Advanced User Pathway
B106: Domestic Refrigeration | C106: 236.4728594 | D106: =SUM(D16,D61) -> 529.1303459 | E106: 338.6275757 | F106: 227.0613999 | G106: 35.86020253 | H106: 0 | J106: Commercial AC | K106: =SUM(C95,C103,C111,C119,C127) -> 2044.030438 | L106: 4523.850828 | M106: 2916.334347 | N106: 1473.021885 | O106: 310.9948624 | P106: 0
B107: Industrial AC | C107: 245.7094561 | D107: 380.655182 | E107: 251.8957448 | F107: 135.177171 | G107: 28.79217377 | H107: 0 | J107: Commercial Refrigeration | K107: 820.3137492 | L107: 1104.616748 | M107: 718.8925028 | N107: 293.7925454 | O107: 59.86046358 | P107: 0
B108: Industrial Refrigeration | C108: 271.523902 | D108: 287.7221171 | E108: 188.3166317 | F108: 99.05206745 | G108: 20.90310178 | H108: 0 | J108: Domestic AC | K108: 831.896104 | L108: 5256.412558 | M108: 3181.467744 | N108: 1720.660682 | O108: 377.9763563 | P108: 0
B109: Transport AC | C109: 611.1470766 | D109: 1585.827184 | E109: 1403.255101 | F109: 824.3526774 | G109: 145.368639 | H109: 0 | J109: Domestic Refrigeration | K109: 339.9790956 | L109: 724.7953466 | M109: 460.6181193 | N109: 297.5121766 | O109: 46.62665811 | P109: 0
B110: Transport Refrigeration | C110: 62.53038125 | D110: 409.03489 | E110: 369.6594746 | F110: 252.4548944 | G110: 58.52603393 | H110: 0 | J110: Industrial AC | K110: 372.3910993 | L110: 575.7430261 | M110: 377.8506198 | N110: 197.6742716 | O110: 39.82463645 | P110: 0
A111: Europe | B111: Commercial AC | C111: 71.91217801 | D111: 104.8403755 | E111: 64.33570397 | F111: 24.54651097 | G111: 5.916026149 | H111: 0 | J111: Industrial Refrigeration | K111: 404.7286558 | L111: 447.6856859 | M111: 290.3067759 | N111: 145.3223634 | O111: 29.44967173 | P111: 0
B112: Commercial Refrigeration | C112: 94.24783692 | D112: 126.9120983 | E112: 80.46514472 | F112: 23.48778956 | G112: 4.930899541 | H112: 0 | J112: Transport AC | K112: 1254.652083 | L112: 2732.503672 | M112: 2255.953895 | N112: 1223.736255 | O112: 196.6550396 | P112: 0
B113: Domestic AC | C113: 29.46946202 | D113: 51.08523567 | E113: 24.93376961 | F113: 8.519889563 | G113: 2.077162858 | H113: 0 | J113: Transport Refrigeration | K113: 90.59724397 | L113: 503.9849928 | M113: 434.0641555 | N113: 290.8540548 | O113: 67.70533804 | P113: 0
B114: Domestic Refrigeration | C114: 36.44989365 | D114: 55.93640308 | E114: 33.73976501 | F114: 16.71816826 | G114: 2.957841207 | H114: 0 | J114: Total | K114: =SUM(K106:K113) -> 6158.588469 | L114: =SUM(L106:L113) -> 15869.59286 | M114: =SUM(M106:M113) -> 10635.48816 | N114: 5642.574233 | O114: 1129.093026 | P114: 0
B115: Industrial AC | C115: 32.06290472 | D115: 43.57146501 | E115: 27.91380482 | F115: 9.241931069 | G115: 1.974302339 | H115: 0
B116: Industrial Refrigeration | C116: 61.82298406 | D116: =SUM(D26,D71) -> 62.86240557 | E116: 35.5965239 | F116: 13.60330879 | G116: 3.104598248 | H116: 0
B117: Transport AC | C117: 268.8380672 | D117: 381.6692365 | E117: 295.97791 | F117: 133.6424854 | G117: 14.21158377 | H117: 0
B118: Transport Refrigeration | C118: 9.050162012 | D118: 14.98844648 | E118: 9.225414644 | F118: 3.942222578 | G118: 0.9934536458 | H118: 0
A119: North America | B119: Commercial AC | C119: 327.3613244 | D119: 546.6757362 | E119: 342.5289111 | F119: 184.8877319 | G119: 26.56499115 | H119: 0
B120: Commercial Refrigeration | C120: 44.20919362 | D120: 59.53114372 | E120: 38.18682209 | F120: 15.66759727 | G120: 2.069084535 | H120: 0
B121: Domestic AC | C121: 295.1045796 | D121: 629.0716459 | E121: 393.7084602 | F121: 203.9529625 | G121: 30.64863564 | H121: 0
B122: Domestic Refrigeration | C122: 39.71302242 | D122: 48.99237509 | E122: 30.24403348 | F122: 21.17538433 | G122: 2.212746008 | H122: 0
B123: Industrial AC | C123: 66.68378168 | D123: 98.04610976 | E123: 62.68213724 | F123: 37.32321446 | G123: 5.353401706 | H123: 0
B124: Industrial Refrigeration | C124: 48.49111665 | D124: 58.37120721 | E124: 41.09274861 | F124: 22.29345596 | G124: 3.112232343 | H124: 0
B125: Transport AC | C125: 200.1175244 | D125: 261.0530557 | E125: 212.7607359 | F125: 98.36940257 | G125: 10.67509634 | H125: 0
B126: Transport Refrigeration | C126: 10.08116332 | D126: =SUM(D36,D81) -> 16.66944214 | E126: 11.57988975 | F126: 5.911395196 | G126: 1.490597144 | H126: 0
A127: South and Central America | B127: Commercial AC | C127: 37.77167968 | D127: 72.43675356 | E127: 46.88442037 | F127: 20.12622514 | G127: 3.560415241 | H127: 0
B128: Commercial Refrigeration | C128: 38.83741755 | D128: 52.29762629 | E128: 34.51552499 | F128: 10.7623715 | G128: 1.650430638 | H128: 0
B129: Domestic AC | C129: 30.64767369 | D129: 169.6747736 | E129: 93.02214998 | F129: 41.46052524 | G129: 7.884399886 | H129: 0
B130: Domestic Refrigeration | C130: 8.824056094 | D130: 18.73785901 | E130: 11.90158615 | F130: 7.219147534 | G130: 0.9618693514 | H130: 0
B131: Industrial AC | C131: 6.979853748 | D131: 10.32216137 | E131: 6.819743576 | F131: 2.935155454 | G131: 0.5027821547 | H131: 0
B132: Industrial Refrigeration | C132: 6.002355381 | D132: 7.522020482 | E132: 4.87936579 | F132: 1.745460753 | G132: 0.272723256 | H132: 0
B133: Transport AC | C133: 94.05283844 | D133: 253.8385241 | E133: 135.5860425 | F133: 52.64832913 | G133: 5.649708274 | H133: 0
B134: Transport Refrigeration | C134: 2.245088638 | D134: 9.198648952 | E134: 5.140735594 | F134: 2.504010143 | G134: 0.8531189645 | H134: 0

Sheet Direct Emissions Calcs (hidden)
B3: Mod | C3: Region | D3: Year | E3: Decom. Rate (%) | F3: Stock | G3: R22 (% stock) | H3: R22 (stock) | I3: R410a (% stock) | J3: R410a (stock) | K3: HC290 (% stock) | L3: HC290 (stock) | M3: HFC32 (% stock) | N3: HFC32 (stock) | O3: R134 (% stock) | P3: R134 (stock) | Q3: R600 (% stock) | R3: R600 (stock) | S3: Ammonia (% stock) | T3: Ammonia (stock) | U3: R404a (% stock) | V3: R404a (stock) | W3: R507 (% stock) | X3: R507 (stock) | Y3: R22 (unit charge kg) | Z3: R22 (total charge kg) | AA3: R22 CO2 stored (kg) | AB3: R22 Op.Leakage CO2 (kg) | AC3: R22 EoL Leakage CO2 (kg) | AD3: R410a (unit charge kg) | AE3: R410a (total charge kg) | AF3: R410a CO2 stored (kg) | AG3: R410a Op.Leakage CO2 (kg) | AH3: R410a EoL Leakage CO2 (kg) | AI3: HC290 (unit charge kg) | AJ3: HC290 (total charge kg) | AK3: HC290 CO2 stored (kg) | AL3: HC290 Op.Leakage CO2 (kg) | AM3: HC290 EoL Leakage CO2 (kg) | AN3: HFC32 (unit charge kg) | AO3: HFC32 (total charge kg) | AP3: HFC32 CO2 stored (kg) | AQ3: HFC32 Op.Leakage CO2 (kg) | AR3: HFC32 EoL Leakage CO2 (kg) | AS3: R134 (unit charge kg) | AT3: R134 (total charge kg) | AU3: R134 CO2 stored (kg) | AV3: R134 Op.Leakage CO2 (kg) | AW3: R134 EoL Leakage CO2 (kg) | AX3: R600 (unit charge kg) | AY3: R600 (total charge kg) | AZ3: R600 CO2 stored (kg) | BA3: R600 Op.Leakage CO2 (kg) | BB3: R600 EoL Leakage CO2 (kg) | BC3: Ammonia (unit charge kg) | BD3: Ammonia (total charge kg) | BE3: Ammonia CO2 stored (kg) | BF3: Ammonia Op.Leakage CO2 (kg) | BG3: Ammonia EoL Leakage CO2 (kg) | BH3: R404a (unit charge kg) | BI3: R404a (total charge kg) | BJ3: R404a CO2 stored (kg) | BK3: R404a Op.Leakage CO2 (kg) | BL3: R404a EoL Leakage CO2 (kg) | BM3: R507 (unit charge kg) | BN3: R507 (total charge kg) | BO3: R507 CO2 stored (kg) | BP3: R507 Op.Leakage CO2 (kg) | BQ3: R507 EoL Leakage CO2 (kg) | BR3: Total Direct Emissions (kg CO2e) | BS3: Total Direct Emissions (Mt CO2e) | BT3: Average GWP | BW3: Refrigerant | BX3: GWP
B4: domRef | C4: Africa | D4: 2020 | E4: 0.05 | F4: ='Size Summary-Base'!H4 -> 78400000 | G4: 0 | H4: =F4*G4 -> 0 | I4: 0 | J4: =F4*I4 -> 0 | K4: 0 | L4: =F4*K4 -> 0 | M4: 0 | N4: =F4*M4 -> 0 | O4: 0.65 | P4: =F4*O4 -> 50960000 | Q4: 0.35 | R4: =F4*Q4 -> 27440000 | S4: 0 | T4: =F4*S4 -> 0 | U4: 0 | V4: =F4*U4 -> 0 | W4: 0 | X4: =F4*W4 -> 0 | Y4: 0 | Z4: =H4*Y4 -> 0 | AA4: =Z4*$BX$6 -> 0 | AB4: ='Direct Emissions Calcs'!AA4*SUM('Op. Leakage assumptions2020'!$G$3*'Op. Leakage assumptions2020'!G4,'Op. Leakage assumptions2020'!$H$3*'Op. Leakage assumptions2020'!H4,'Op. Leakage assumptions2020'!$I$3*'Op. Leakage assumptions2020'!I4,'Op. Leakage assumptions2020'!$J$3*'Op. Leakage assumptions2020'!J4,'Op. Leakage assumptions2020'!$K$3*'Op. Leakage assumptions2020'!K4,'Op. Leakage assumptions2020'!$L$3*'Op. Leakage assumptions2020'!L4,'Op. Leakage assumptions2020'!$M$3*'Op. Leakage assumptions2020'!M4,'Op. Leakage assumptions2020'!$N$3*'Op. Leakage assumptions2020'!N4,'Op. Leakage assumptions2020'!$O$3*'Op. Leakage assumptions2020'!O4,'Op. Leakage assumptions2020'!$P$3*'Op. Leakage assumptions2020'!P4,'Op. Leakage assumptions2020'!$Q$3*'Op. Leakage assumptions2020'!Q4,'Op. Leakage assumptions2020'!$R$3*'Op. Leakage assumptions2020'!R4,'Op. Leakage assumptions2020'!$S$3*'Op. Leakage assumptions2020'!S4) -> 0 | AC4: =E4*AA4*SUM('EoL Leakage assumptions2020'!$G$3*'EoL Leakage assumptions2020'!G4,'EoL Leakage assumptions2020'!$H$3*'EoL Leakage assumptions2020'!H4,'EoL Leakage assumptions2020'!$I$3*'EoL Leakage assumptions2020'!I4,'EoL Leakage assumptions2020'!$J$3*'EoL Leakage assumptions2020'!J4,'EoL Leakage assumptions2020'!$K$3*'EoL Leakage assumptions2020'!K4,'EoL Leakage assumptions2020'!$L$3*'EoL Leakage assumptions2020'!L4,'EoL Leakage assumptions2020'!$M$3*'EoL Leakage assumptions2020'!M4,'EoL Leakage assumptions2020'!$N$3*'EoL Leakage assumptions2020'!N4) -> 0 | AD4: 0 | AE4: =J4*AD4 -> 0 | AF4: =AE4*$BX$8 -> 0 | AG4: ='Direct Emissions Calcs'!AF4*SUM('Op. Leakage assumptions2020'!$G$3*'Op. Leakage assumptions2020'!G4,'Op. Leakage assumptions2020'!$H$3*'Op. Leakage assumptions2020'!H4,'Op. Leakage assumptions2020'!$I$3*'Op. Leakage assumptions2020'!I4,'Op. Leakage assumptions2020'!$J$3*'Op. Leakage assumptions2020'!J4,'Op. Leakage assumptions2020'!$K$3*'Op. Leakage assumptions2020'!K4,'Op. Leakage assumptions2020'!$L$3*'Op. Leakage assumptions2020'!L4,'Op. Leakage assumptions2020'!$M$3*'Op. Leakage assumptions2020'!M4,'Op. Leakage assumptions2020'!$N$3*'Op. Leakage assumptions2020'!N4,'Op. Leakage assumptions2020'!$O$3*'Op. Leakage assumptions2020'!O4,'Op. Leakage assumptions2020'!$P$3*'Op. Leakage assumptions2020'!P4,'Op. Leakage assumptions2020'!$Q$3*'Op. Leakage assumptions2020'!Q4,'Op. Leakage assumptions2020'!$R$3*'Op. Leakage assumptions2020'!R4,'Op. Leakage assumptions2020'!$S$3*'Op. Leakage assumptions2020'!S4) -> 0 | AH4: =E4*AF4*SUM('EoL Leakage assumptions2020'!$G$3*'EoL Leakage assumptions2020'!G4,'EoL Leakage assumptions2020'!$H$3*'EoL Leakage assumptions2020'!H4,'EoL Leakage assumptions2020'!$I$3*'EoL Leakage assumptions2020'!I4,'EoL Leakage assumptions2020'!$J$3*'EoL Leakage assumptions2020'!J4,'EoL Leakage assumptions2020'!$K$3*'EoL Leakage assumptions2020'!K4,'EoL Leakage assumptions2020'!$L$3*'EoL Leakage assumptions2020'!L4,'EoL Leakage assumptions2020'!$M$3*'EoL Leakage assumptions2020'!M4,'EoL Leakage assumptions2020'!$N$3*'EoL Leakage assumptions2020'!N4) -> 0 | AI4: 0 | AJ4: =L4*AI4 -> 0 | AK4: =AJ4*$BX$9 -> 0 | AL4: ='Direct Emissions Calcs'!AK4*SUM('Op. Leakage assumptions2020'!$G$3*'Op. Leakage assumptions2020'!G4,'Op. Leakage assumptions2020'!$H$3*'Op. Leakage assumptions2020'!H4,'Op. Leakage assumptions2020'!$I$3*'Op. Leakage assumptions2020'!I4,'Op. Leakage assumptions2020'!$J$3*'Op. Leakage assumptions2020'!J4,'Op. Leakage assumptions2020'!$K$3*'Op. Leakage assumptions2020'!K4,'Op. Leakage assumptions2020'!$L$3*'Op. Leakage assumptions2020'!L4,'Op. Leakage assumptions2020'!$M$3*'Op. Leakage assumptions2020'!M4,'Op. Leakage assumptions2020'!$N$3*'Op. Leakage assumptions2020'!N4,'Op. Leakage assumptions2020'!$O$3*'Op. Leakage assumptions2020'!O4,'Op. Leakage assumptions2020'!$P$3*'Op. Leakage assumptions2020'!P4,'Op. Leakage assumptions2020'!$Q$3*'Op. Leakage assumptions2020'!Q4,'Op. Leakage assumptions2020'!$R$3*'Op. Leakage assumptions2020'!R4,'Op. Leakage assumptions2020'!$S$3*'Op. Leakage assumptions2020'!S4) -> 0 | AM4: =E4*AK4*SUM('EoL Leakage assumptions2020'!$G$3*'EoL Leakage assumptions2020'!G4,'EoL Leakage assumptions2020'!$H$3*'EoL Leakage assumptions2020'!H4,'EoL Leakage assumptions2020'!$I$3*'EoL Leakage assumptions2020'!I4,'EoL Leakage assumptions2020'!$J$3*'EoL Leakage assumptions2020'!J4,'EoL Leakage assumptions2020'!$K$3*'EoL Leakage assumptions2020'!K4,'EoL Leakage assumptions2020'!$L$3*'EoL Leakage assumptions2020'!L4,'EoL Leakage assumptions2020'!$M$3*'EoL Leakage assumptions2020'!M4,'EoL Leakage assumptions2020'!$N$3*'EoL Leakage assumptions2020'!N4) -> 0 | AN4: 0 | AO4: =N4*AN4 -> 0 | AP4: =AO4*$BX$7 -> 0 | AQ4: ='Direct Emissions Calcs'!AP4*SUM('Op. Leakage assumptions2020'!$G$3*'Op. Leakage assumptions2020'!G4,'Op. Leakage assumptions2020'!$H$3*'Op. Leakage assumptions2020'!H4,'Op. Leakage assumptions2020'!$I$3*'Op. Leakage assumptions2020'!I4,'Op. Leakage assumptions2020'!$J$3*'Op. Leakage assumptions2020'!J4,'Op. Leakage assumptions2020'!$K$3*'Op. Leakage assumptions2020'!K4,'Op. Leakage assumptions2020'!$L$3*'Op. Leakage assumptions2020'!L4,'Op. Leakage assumptions2020'!$M$3*'Op. Leakage assumptions2020'!M4,'Op. Leakage assumptions2020'!$N$3*'Op. Leakage assumptions2020'!N4,'Op. Leakage assumptions2020'!$O$3*'Op. Leakage assumptions2020'!O4,'Op. Leakage assumptions2020'!$P$3*'Op. Leakage assumptions2020'!P4,'Op. Leakage assumptions2020'!$Q$3*'Op. Leakage assumptions2020'!Q4,'Op. Leakage assumptions2020'!$R$3*'Op. Leakage assumptions2020'!R4,'Op. Leakage assumptions2020'!$S$3*'Op. Leakage assumptions2020'!S4) -> 0 | AR4: =E4*AP4*SUM('EoL Leakage assumptions2020'!$G$3*'EoL Leakage assumptions2020'!G4,'EoL Leakage assumptions2020'!$H$3*'EoL Leakage assumptions2020'!H4,'EoL Leakage assumptions2020'!$I$3*'EoL Leakage assumptions2020'!I4,'EoL Leakage assumptions2020'!$J$3*'EoL Leakage assumptions2020'!J4,'EoL Leakage assumptions2020'!$K$3*'EoL Leakage assumptions2020'!K4,'EoL Leakage assumptions2020'!$L$3*'EoL Leakage assumptions2020'!L4,'EoL Leakage assumptions2020'!$M$3*'EoL Leakage assumptions2020'!M4,'EoL Leakage assumptions2020'!$N$3*'EoL Leakage assumptions2020'!N4) -> 0 | AS4: 0.175 | AT4: =P4*AS4 -> 8918000 | AU4: =AT4*$BX$10 -> 12752740000 | AV4: ='Direct Emissions Calcs'!AU4*SUM('Op. Leakage assumptions2020'!$G$3*'Op. Leakage assumptions2020'!G4,'Op. Leakage assumptions2020'!$H$3*'Op. Leakage assumptions2020'!H4,'Op. Leakage assumptions2020'!$I$3*'Op. Leakage assumptions2020'!I4,'Op. Leakage assumptions2020'!$J$3*'Op. Leakage assumptions2020'!J4,'Op. Leakage assumptions2020'!$K$3*'Op. Leakage assumptions2020'!K4,'Op. Leakage assumptions2020'!$L$3*'Op. Leakage assumptions2020'!L4,'Op. Leakage assumptions2020'!$M$3*'Op. Leakage assumptions2020'!M4,'Op. Leakage assumptions2020'!$N$3*'Op. Leakage assumptions2020'!N4,'Op. Leakage assumptions2020'!$O$3*'Op. Leakage assumptions2020'!O4,'Op. Leakage assumptions2020'!$P$3*'Op. Leakage assumptions2020'!P4,'Op. Leakage assumptions2020'!$Q$3*'Op. Leakage assumptions2020'!Q4,'Op. Leakage assumptions2020'!$R$3*'Op. Leakage assumptions2020'!R4,'Op. Leakage assumptions2020'!$S$3*'Op. Leakage assumptions2020'!S4) -> 63763700 | AW4: =E4*AU4*SUM('EoL Leakage assumptions2020'!$G$3*'EoL Leakage assumptions2020'!G4,'EoL Leakage assumptions2020'!$H$3*'EoL Leakage assumptions2020'!H4,'EoL Leakage assumptions2020'!$I$3*'EoL Leakage assumptions2020'!I4,'EoL Leakage assumptions2020'!$J$3*'EoL Leakage assumptions2020'!J4,'EoL Leakage assumptions2020'!$K$3*'EoL Leakage assumptions2020'!K4,'EoL Leakage assumptions2020'!$L$3*'EoL Leakage assumptions2020'!L4,'EoL Leakage assumptions2020'!$M$3*'EoL Leakage assumptions2020'!M4,'EoL Leakage assumptions2020'!$N$3*'EoL Leakage assumptions2020'!N4) -> 255054800 | AX4: 0.175 | AY4: =R4*AX4 -> 4802000 | AZ4: =AY4*$BX$5 -> 14406000 | BA4: ='Direct Emissions Calcs'!AZ4*SUM('Op. Leakage assumptions2020'!$G$3*'Op. Leakage assumptions2020'!G4,'Op. Leakage assumptions2020'!$H$3*'Op. Leakage assumptions2020'!H4,'Op. Leakage assumptions2020'!$I$3*'Op. Leakage assumptions2020'!I4,'Op. Leakage assumptions2020'!$J$3*'Op. Leakage assumptions2020'!J4,'Op. Leakage assumptions2020'!$K$3*'Op. Leakage assumptions2020'!K4,'Op. Leakage assumptions2020'!$L$3*'Op. Leakage assumptions2020'!L4,'Op. Leakage assumptions2020'!$M$3*'Op. Leakage assumptions2020'!M4,'Op. Leakage assumptions2020'!$N$3*'Op. Leakage assumptions2020'!N4,'Op. Leakage assumptions2020'!$O$3*'Op. Leakage assumptions2020'!O4,'Op. Leakage assumptions2020'!$P$3*'Op. Leakage assumptions2020'!P4,'Op. Leakage assumptions2020'!$Q$3*'Op. Leakage assumptions2020'!Q4,'Op. Leakage assumptions2020'!$R$3*'Op. Leakage assumptions2020'!R4,'Op. Leakage assumptions2020'!$S$3*'Op. Leakage assumptions2020'!S4) -> 72030 | BB4: =E4*AZ4*SUM('EoL Leakage assumptions2020'!$G$3*'EoL Leakage assumptions2020'!G4,'EoL Leakage assumptions2020'!$H$3*'EoL Leakage assumptions2020'!H4,'EoL Leakage assumptions2020'!$I$3*'EoL Leakage assumptions2020'!I4,'EoL Leakage assumptions2020'!$J$3*'EoL Leakage assumptions2020'!J4,'EoL Leakage assumptions2020'!$K$3*'EoL Leakage assumptions2020'!K4,'EoL Leakage assumptions2020'!$L$3*'EoL Leakage assumptions2020'!L4,'EoL Leakage assumptions2020'!$M$3*'EoL Leakage assumptions2020'!M4,'EoL Leakage assumptions2020'!$N$3*'EoL Leakage assumptions2020'!N4) -> 288120 | BC4: 0 | BD4: =T4*BC4 -> 0 | BE4: =BD4*$BX$4 -> 0 | BF4: ='Direct Emissions Calcs'!BE4*SUM('Op. Leakage assumptions2020'!$G$3*'Op. Leakage assumptions2020'!G4,'Op. Leakage assumptions2020'!$H$3*'Op. Leakage assumptions2020'!H4,'Op. Leakage assumptions2020'!$I$3*'Op. Leakage assumptions2020'!I4,'Op. Leakage assumptions2020'!$J$3*'Op. Leakage assumptions2020'!J4,'Op. Leakage assumptions2020'!$K$3*'Op. Leakage assumptions2020'!K4,'Op. Leakage assumptions2020'!$L$3*'Op. Leakage assumptions2020'!L4,'Op. Leakage assumptions2020'!$M$3*'Op. Leakage assumptions2020'!M4,'Op. Leakage assumptions2020'!$N$3*'Op. Leakage assumptions2020'!N4,'Op. Leakage assumptions2020'!$O$3*'Op. Leakage assumptions2020'!O4,'Op. Leakage assumptions2020'!$P$3*'Op. Leakage assumptions2020'!P4,'Op. Leakage assumptions2020'!$Q$3*'Op. Leakage assumptions2020'!Q4,'Op. Leakage assumptions2020'!$R$3*'Op. Leakage assumptions2020'!R4,'Op. Leakage assumptions2020'!$S$3*'Op. Leakage assumptions2020'!S4) -> 0 | BG4: =E4*BE4*SUM('EoL Leakage assumptions2020'!$G$3*'EoL Leakage assumptions2020'!G4,'EoL Leakage assumptions2020'!$H$3*'EoL Leakage assumptions2020'!H4,'EoL Leakage assumptions2020'!$I$3*'EoL Leakage assumptions2020'!I4,'EoL Leakage assumptions2020'!$J$3*'EoL Leakage assumptions2020'!J4,'EoL Leakage assumptions2020'!$K$3*'EoL Leakage assumptions2020'!K4,'EoL Leakage assumptions2020'!$L$3*'EoL Leakage assumptions2020'!L4,'EoL Leakage assumptions2020'!$M$3*'EoL Leakage assumptions2020'!M4,'EoL Leakage assumptions2020'!$N$3*'EoL Leakage assumptions2020'!N4) -> 0 | BH4: 0 | BI4: =V4*BH4 -> 0 | BJ4: =BI4*$BX$11 -> 0 | BK4: ='Direct Emissions Calcs'!BJ4*SUM('Op. Leakage assumptions2020'!$G$3*'Op. Leakage assumptions2020'!G4,'Op. Leakage assumptions2020'!$H$3*'Op. Leakage assumptions2020'!H4,'Op. Leakage assumptions2020'!$I$3*'Op. Leakage assumptions2020'!I4,'Op. Leakage assumptions2020'!$J$3*'Op. Leakage assumptions2020'!J4,'Op. Leakage assumptions2020'!$K$3*'Op. Leakage assumptions2020'!K4,'Op. Leakage assumptions2020'!$L$3*'Op. Leakage assumptions2020'!L4,'Op. Leakage assumptions2020'!$M$3*'Op. Leakage assumptions2020'!M4,'Op. Leakage assumptions2020'!$N$3*'Op. Leakage assumptions2020'!N4,'Op. Leakage assumptions2020'!$O$3*'Op. Leakage assumptions2020'!O4,'Op. Leakage assumptions2020'!$P$3*'Op. Leakage assumptions2020'!P4,'Op. Leakage assumptions2020'!$Q$3*'Op. Leakage assumptions2020'!Q4,'Op. Leakage assumptions2020'!$R$3*'Op. Leakage assumptions2020'!R4,'Op. Leakage assumptions2020'!$S$3*'Op. Leakage assumptions2020'!S4) -> 0 | BL4: =E4*BJ4*SUM('EoL Leakage assumptions2020'!$G$3*'EoL Leakage assumptions2020'!G4,'EoL Leakage assumptions2020'!$H$3*'EoL Leakage assumptions2020'!H4,'EoL Leakage assumptions2020'!$I$3*'EoL Leakage assumptions2020'!I4,'EoL Leakage assumptions2020'!$J$3*'EoL Leakage assumptions2020'!J4,'EoL Leakage assumptions2020'!$K$3*'EoL Leakage assumptions2020'!K4,'EoL Leakage assumptions2020'!$L$3*'EoL Leakage assumptions2020'!L4,'EoL Leakage assumptions2020'!$M$3*'EoL Leakage assumptions2020'!M4,'EoL Leakage assumptions2020'!$N$3*'EoL Leakage assumptions2020'!N4) -> 0 | BM4: 0 | BN4: =X4*BM4 -> 0 | BO4: =BN4*$BX$12 -> 0 | BP4: ='Direct Emissions Calcs'!BO4*SUM('Op. Leakage assumptions2020'!$G$3*'Op. Leakage assumptions2020'!G4,'Op. Leakage assumptions2020'!$H$3*'Op. Leakage assumptions2020'!H4,'Op. Leakage assumptions2020'!$I$3*'Op. Leakage assumptions2020'!I4,'Op. Leakage assumptions2020'!$J$3*'Op. Leakage assumptions2020'!J4,'Op. Leakage assumptions2020'!$K$3*'Op. Leakage assumptions2020'!K4,'Op. Leakage assumptions2020'!$L$3*'Op. Leakage assumptions2020'!L4,'Op. Leakage assumptions2020'!$M$3*'Op. Leakage assumptions2020'!M4,'Op. Leakage assumptions2020'!$N$3*'Op. Leakage assumptions2020'!N4,'Op. Leakage assumptions2020'!$O$3*'Op. Leakage assumptions2020'!O4,'Op. Leakage assumptions2020'!$P$3*'Op. Leakage assumptions2020'!P4,'Op. Leakage assumptions2020'!$Q$3*'Op. Leakage assumptions2020'!Q4,'Op. Leakage assumptions2020'!$R$3*'Op. Leakage assumptions2020'!R4,'Op. Leakage assumptions2020'!$S$3*'Op. Leakage assumptions2020'!S4) -> 0 | BQ4: =E4*BO4*SUM('EoL Leakage assumptions2020'!$G$3*'EoL Leakage assumptions2020'!G4,'EoL Leakage assumptions2020'!$H$3*'EoL Leakage assumptions2020'!H4,'EoL Leakage assumptions2020'!$I$3*'EoL Leakage assumptions2020'!I4,'EoL Leakage assumptions2020'!$J$3*'EoL Leakage assumptions2020'!J4,'EoL Leakage assumptions2020'!$K$3*'EoL Leakage assumptions2020'!K4,'EoL Leakage assumptions2020'!$L$3*'EoL Leakage assumptions2020'!L4,'EoL Leakage assumptions2020'!$M$3*'EoL Leakage assumptions2020'!M4,'EoL Leakage assumptions2020'!$N$3*'EoL Leakage assumptions2020'!N4) -> 0 | BR4: =SUM(AB4,AC4,AG4,AH4,AL4,AM4,AQ4,AR4,AV4,AW4,BA4,BB4,BF4,BG4,BK4,BL4,BP4,BQ4) -> 319178650 | BS4: =BR4/10^9 -> 0.31917865 | BT4: =G4*$BX$6+K4*$BX$9+O4*$BX$10+M4*$BX$7+Q4*$BX$5 + S4*$BX$4 + U4*$BX$11 + W4*$BX$12 + I4*$BX$8 -> 930.55 | BW4: Ammonia | BX4: 0
B5: domRef | C5: Asia | D5: 2020 | E5: 0.05 | F5: ='Size Summary-Base'!H5 -> 832890000 | G5: 0 | H5: =F5*G5 -> 0 | I5: 0 | J5: =F5*I5 -> 0 | K5: 0 | L5: =F5*K5 -> 0 | M5: 0 | N5: =F5*M5 -> 0 | O5: 0.65 | P5: =F5*O5 -> 541378500 | Q5: 0.35 | R5: =F5*Q5 -> 291511500 | S5: 0 | T5: =F5*S5 -> 0 | U5: 0 | V5: =F5*U5 -> 0 | W5: 0 | X5: =F5*W5 -> 0 | Y5: 0 | Z5: =H5*Y5 -> 0 | AA5: 0 | AB5: ='Direct Emissions Calcs'!AA5*SUM('Op. Leakage assumptions2020'!$G$3*'Op. Leakage assumptions2020'!G5,'Op. Leakage assumptions2020'!$H$3*'Op. Leakage assumptions2020'!H5,'Op. Leakage assumptions2020'!$I$3*'Op. Leakage assumptions2020'!I5,'Op. Leakage assumptions2020'!$J$3*'Op. Leakage assumptions2020'!J5,'Op. Leakage assumptions2020'!$K$3*'Op. Leakage assumptions2020'!K5,'Op. Leakage assumptions2020'!$L$3*'Op. Leakage assumptions2020'!L5,'Op. Leakage assumptions2020'!$M$3*'Op. Leakage assumptions2020'!M5,'Op. Leakage assumptions2020'!$N$3*'Op. Leakage assumptions2020'!N5,'Op. Leakage assumptions2020'!$O$3*'Op. Leakage assumptions2020'!O5,'Op. Leakage assumptions2020'!$P$3*'Op. Leakage assumptions2020'!P5,'Op. Leakage assumptions2020'!$Q$3*'Op. Leakage assumptions2020'!Q5,'Op. Leakage assumptions2020'!$R$3*'Op. Leakage assumptions2020'!R5,'Op. Leakage assumptions2020'!$S$3*'Op. Leakage assumptions2020'!S5) -> 0 | AC5: =E5*AA5*SUM('EoL Leakage assumptions2020'!$G$3*'EoL Leakage assumptions2020'!G5,'EoL Leakage assumptions2020'!$H$3*'EoL Leakage assumptions2020'!H5,'EoL Leakage assumptions2020'!$I$3*'EoL Leakage assumptions2020'!I5,'EoL Leakage assumptions2020'!$J$3*'EoL Leakage assumptions2020'!J5,'EoL Leakage assumptions2020'!$K$3*'EoL Leakage assumptions2020'!K5,'EoL Leakage assumptions2020'!$L$3*'EoL Leakage assumptions2020'!L5,'EoL Leakage assumptions2020'!$M$3*'EoL Leakage assumptions2020'!M5,'EoL Leakage assumptions2020'!$N$3*'EoL Leakage assumptions2020'!N5) -> 0 | AD5: 0 | AE5: =J5*AD5 -> 0 | AF5: 0 | AG5: ='Direct Emissions Calcs'!AF5*SUM('Op. Leakage assumptions2020'!$G$3*'Op. Leakage assumptions2020'!G5,'Op. Leakage assumptions2020'!$H$3*'Op. Leakage assumptions2020'!H5,'Op. Leakage assumptions2020'!$I$3*'Op. Leakage assumptions2020'!I5,'Op. Leakage assumptions2020'!$J$3*'Op. Leakage assumptions2020'!J5,'Op. Leakage assumptions2020'!$K$3*'Op. Leakage assumptions2020'!K5,'Op. Leakage assumptions2020'!$L$3*'Op. Leakage assumptions2020'!L5,'Op. Leakage assumptions2020'!$M$3*'Op. Leakage assumptions2020'!M5,'Op. Leakage assumptions2020'!$N$3*'Op. Leakage assumptions2020'!N5,'Op. Leakage assumptions2020'!$O$3*'Op. Leakage assumptions2020'!O5,'Op. Leakage assumptions2020'!$P$3*'Op. Leakage assumptions2020'!P5,'Op. Leakage assumptions2020'!$Q$3*'Op. Leakage assumptions2020'!Q5,'Op. Leakage assumptions2020'!$R$3*'Op. Leakage assumptions2020'!R5,'Op. Leakage assumptions2020'!$S$3*'Op. Leakage assumptions2020'!S5) -> 0 | AH5: =E5*AF5*SUM('EoL Leakage assumptions2020'!$G$3*'EoL Leakage assumptions2020'!G5,'EoL Leakage assumptions2020'!$H$3*'EoL Leakage assumptions2020'!H5,'EoL Leakage assumptions2020'!$I$3*'EoL Leakage assumptions2020'!I5,'EoL Leakage assumptions2020'!$J$3*'EoL Leakage assumptions2020'!J5,'EoL Leakage assumptions2020'!$K$3*'EoL Leakage assumptions2020'!K5,'EoL Leakage assumptions2020'!$L$3*'EoL Leakage assumptions2020'!L5,'EoL Leakage assumptions2020'!$M$3*'EoL Leakage assumptions2020'!M5,'EoL Leakage assumptions2020'!$N$3*'EoL Leakage assumptions2020'!N5) -> 0 | AI5: 0 | AJ5: =L5*AI5 -> 0 | AK5: 0 | AL5: ='Direct Emissions Calcs'!AK5*SUM('Op. Leakage assumptions2020'!$G$3*'Op. Leakage assumptions2020'!G5,'Op. Leakage assumptions2020'!$H$3*'Op. Leakage assumptions2020'!H5,'Op. Leakage assumptions2020'!$I$3*'Op. Leakage assumptions2020'!I5,'Op. Leakage assumptions2020'!$J$3*'Op. Leakage assumptions2020'!J5,'Op. Leakage assumptions2020'!$K$3*'Op. Leakage assumptions2020'!K5,'Op. Leakage assumptions2020'!$L$3*'Op. Leakage assumptions2020'!L5,'Op. Leakage assumptions2020'!$M$3*'Op. Leakage assumptions2020'!M5,'Op. Leakage assumptions2020'!$N$3*'Op. Leakage assumptions2020'!N5,'Op. Leakage assumptions2020'!$O$3*'Op. Leakage assumptions2020'!O5,'Op. Leakage assumptions2020'!$P$3*'Op. Leakage assumptions2020'!P5,'Op. Leakage assumptions2020'!$Q$3*'Op. Leakage assumptions2020'!Q5,'Op. Leakage assumptions2020'!$R$3*'Op. Leakage assumptions2020'!R5,'Op. Leakage assumptions2020'!$S$3*'Op. Leakage assumptions2020'!S5) -> 0 | AM5: =E5*AK5*SUM('EoL Leakage assumptions2020'!$G$3*'EoL Leakage assumptions2020'!G5,'EoL Leakage assumptions2020'!$H$3*'EoL Leakage assumptions2020'!H5,'EoL Leakage assumptions2020'!$I$3*'EoL Leakage assumptions2020'!I5,'EoL Leakage assumptions2020'!$J$3*'EoL Leakage assumptions2020'!J5,'EoL Leakage assumptions2020'!$K$3*'EoL Leakage assumptions2020'!K5,'EoL Leakage assumptions2020'!$L$3*'EoL Leakage assumptions2020'!L5,'EoL Leakage assumptions2020'!$M$3*'EoL Leakage assumptions2020'!M5,'EoL Leakage assumptions2020'!$N$3*'EoL Leakage assumptions2020'!N5) -> 0 | AN5: 0 | AO5: =N5*AN5 -> 0 | AP5: 0 | AQ5: ='Direct Emissions Calcs'!AP5*SUM('Op. Leakage assumptions2020'!$G$3*'Op. Leakage assumptions2020'!G5,'Op. Leakage assumptions2020'!$H$3*'Op. Leakage assumptions2020'!H5,'Op. Leakage assumptions2020'!$I$3*'Op. Leakage assumptions2020'!I5,'Op. Leakage assumptions2020'!$J$3*'Op. Leakage assumptions2020'!J5,'Op. Leakage assumptions2020'!$K$3*'Op. Leakage assumptions2020'!K5,'Op. Leakage assumptions2020'!$L$3*'Op. Leakage assumptions2020'!L5,'Op. Leakage assumptions2020'!$M$3*'Op. Leakage assumptions2020'!M5,'Op. Leakage assumptions2020'!$N$3*'Op. Leakage assumptions2020'!N5,'Op. Leakage assumptions2020'!$O$3*'Op. Leakage assumptions2020'!O5,'Op. Leakage assumptions2020'!$P$3*'Op. Leakage assumptions2020'!P5,'Op. Leakage assumptions2020'!$Q$3*'Op. Leakage assumptions2020'!Q5,'Op. Leakage assumptions2020'!$R$3*'Op. Leakage assumptions2020'!R5,'Op. Leakage assumptions2020'!$S$3*'Op. Leakage assumptions2020'!S5) -> 0 | AR5: =E5*AP5*SUM('EoL Leakage assumptions2020'!$G$3*'EoL Leakage assumptions2020'!G5,'EoL Leakage assumptions2020'!$H$3*'EoL Leakage assumptions2020'!H5,'EoL Leakage assumptions2020'!$I$3*'EoL Leakage assumptions2020'!I5,'EoL Leakage assumptions2020'!$J$3*'EoL Leakage assumptions2020'!J5,'EoL Leakage assumptions2020'!$K$3*'EoL Leakage assumptions2020'!K5,'EoL Leakage assumptions2020'!$L$3*'EoL Leakage assumptions2020'!L5,'EoL Leakage assumptions2020'!$M$3*'EoL Leakage assumptions2020'!M5,'EoL Leakage assumptions2020'!$N$3*'EoL Leakage assumptions2020'!N5) -> 0 | AS5: 0.175 | AT5: =P5*AS5 -> 94741237.5 | AU5: 135479969625 | AV5: ='Direct Emissions Calcs'!AU5*SUM('Op. Leakage assumptions2020'!$G$3*'Op. Leakage assumptions2020'!G5,'Op. Leakage assumptions2020'!$H$3*'Op. Leakage assumptions2020'!H5,'Op. Leakage assumptions2020'!$I$3*'Op. Leakage assumptions2020'!I5,'Op. Leakage assumptions2020'!$J$3*'Op. Leakage assumptions2020'!J5,'Op. Leakage assumptions2020'!$K$3*'Op. Leakage assumptions2020'!K5,'Op. Leakage assumptions2020'!$L$3*'Op. Leakage assumptions2020'!L5,'Op. Leakage assumptions2020'!$M$3*'Op. Leakage assumptions2020'!M5,'Op. Leakage assumptions2020'!$N$3*'Op. Leakage assumptions2020'!N5,'Op. Leakage assumptions2020'!$O$3*'Op. Leakage assumptions2020'!O5,'Op. Leakage assumptions2020'!$P$3*'Op. Leakage assumptions2020'!P5,'Op. Leakage assumptions2020'!$Q$3*'Op. Leakage assumptions2020'!Q5,'Op. Leakage assumptions2020'!$R$3*'Op. Leakage assumptions2020'!R5,'Op. Leakage assumptions2020'!$S$3*'Op. Leakage assumptions2020'!S5) -> 677399848.1 | AW5: =E5*AU5*SUM('EoL Leakage assumptions2020'!$G$3*'EoL Leakage assumptions2020'!G5,'EoL Leakage assumptions2020'!$H$3*'EoL Leakage assumptions2020'!H5,'EoL Leakage assumptions2020'!$I$3*'EoL Leakage assumptions2020'!I5,'EoL Leakage assumptions2020'!$J$3*'EoL Leakage assumptions2020'!J5,'EoL Leakage assumptions2020'!$K$3*'EoL Leakage assumptions2020'!K5,'EoL Leakage assumptions2020'!$L$3*'EoL Leakage assumptions2020'!L5,'EoL Leakage assumptions2020'!$M$3*'EoL Leakage assumptions2020'!M5,'EoL Leakage assumptions2020'!$N$3*'EoL Leakage assumptions2020'!N5) -> 2709599392 | AX5: 0.175 | AY5: =R5*AX5 -> 51014512.5 | AZ5: 153043537.5 | BA5: ='Direct Emissions Calcs'!AZ5*SUM('Op. Leakage assumptions2020'!$G$3*'Op. Leakage assumptions2020'!G5,'Op. Leakage assumptions2020'!$H$3*'Op. Leakage assumptions2020'!H5,'Op. Leakage assumptions2020'!$I$3*'Op. Leakage assumptions2020'!I5,'Op. Leakage assumptions2020'!$J$3*'Op. Leakage assumptions2020'!J5,'Op. Leakage assumptions2020'!$K$3*'Op. Leakage assumptions2020'!K5,'Op. Leakage assumptions2020'!$L$3*'Op. Leakage assumptions2020'!L5,'Op. Leakage assumptions2020'!$M$3*'Op. Leakage assumptions2020'!M5,'Op. Leakage assumptions2020'!$N$3*'Op. Leakage assumptions2020'!N5,'Op. Leakage assumptions2020'!$O$3*'Op. Leakage assumptions2020'!O5,'Op. Leakage assumptions2020'!$P$3*'Op. Leakage assumptions2020'!P5,'Op. Leakage assumptions2020'!$Q$3*'Op. Leakage assumptions2020'!Q5,'Op. Leakage assumptions2020'!$R$3*'Op. Leakage assumptions2020'!R5,'Op. Leakage assumptions2020'!$S$3*'Op. Leakage assumptions2020'!S5) -> 765217.6875 | BB5: =E5*AZ5*SUM('EoL Leakage assumptions2020'!$G$3*'EoL Leakage assumptions2020'!G5,'EoL Leakage assumptions2020'!$H$3*'EoL Leakage assumptions2020'!H5,'EoL Leakage assumptions2020'!$I$3*'EoL Leakage assumptions2020'!I5,'EoL Leakage assumptions2020'!$J$3*'EoL Leakage assumptions2020'!J5,'EoL Leakage assumptions2020'!$K$3*'EoL Leakage assumptions2020'!K5,'EoL Leakage assumptions2020'!$L$3*'EoL Leakage assumptions2020'!L5,'EoL Leakage assumptions2020'!$M$3*'EoL Leakage assumptions2020'!M5,'EoL Leakage assumptions2020'!$N$3*'EoL Leakage assumptions2020'!N5) -> 3060870.75 | BC5: 0 | BD5: =T5*BC5 -> 0 | BE5: 0 | BF5: ='Direct Emissions Calcs'!BE5*SUM('Op. Leakage assumptions2020'!$G$3*'Op. Leakage assumptions2020'!G5,'Op. Leakage assumptions2020'!$H$3*'Op. Leakage assumptions2020'!H5,'Op. Leakage assumptions2020'!$I$3*'Op. Leakage assumptions2020'!I5,'Op. Leakage assumptions2020'!$J$3*'Op. Leakage assumptions2020'!J5,'Op. Leakage assumptions2020'!$K$3*'Op. Leakage assumptions2020'!K5,'Op. Leakage assumptions2020'!$L$3*'Op. Leakage assumptions2020'!L5,'Op. Leakage assumptions2020'!$M$3*'Op. Leakage assumptions2020'!M5,'Op. Leakage assumptions2020'!$N$3*'Op. Leakage assumptions2020'!N5,'Op. Leakage assumptions2020'!$O$3*'Op. Leakage assumptions2020'!O5,'Op. Leakage assumptions2020'!$P$3*'Op. Leakage assumptions2020'!P5,'Op. Leakage assumptions2020'!$Q$3*'Op. Leakage assumptions2020'!Q5,'Op. Leakage assumptions2020'!$R$3*'Op. Leakage assumptions2020'!R5,'Op. Leakage assumptions2020'!$S$3*'Op. Leakage assumptions2020'!S5) -> 0 | BG5: =E5*BE5*SUM('EoL Leakage assumptions2020'!$G$3*'EoL Leakage assumptions2020'!G5,'EoL Leakage assumptions2020'!$H$3*'EoL Leakage assumptions2020'!H5,'EoL Leakage assumptions2020'!$I$3*'EoL Leakage assumptions2020'!I5,'EoL Leakage assumptions2020'!$J$3*'EoL Leakage assumptions2020'!J5,'EoL Leakage assumptions2020'!$K$3*'EoL Leakage assumptions2020'!K5,'EoL Leakage assumptions2020'!$L$3*'EoL Leakage assumptions2020'!L5,'EoL Leakage assumptions2020'!$M$3*'EoL Leakage assumptions2020'!M5,'EoL Leakage assumptions2020'!$N$3*'EoL Leakage assumptions2020'!N5) -> 0 | BH5: 0 | BI5: =V5*BH5 -> 0 | BJ5: 0 | BK5: ='Direct Emissions Calcs'!BJ5*SUM('Op. Leakage assumptions2020'!$G$3*'Op. Leakage assumptions2020'!G5,'Op. Leakage assumptions2020'!$H$3*'Op. Leakage assumptions2020'!H5,'Op. Leakage assumptions2020'!$I$3*'Op. Leakage assumptions2020'!I5,'Op. Leakage assumptions2020'!$J$3*'Op. Leakage assumptions2020'!J5,'Op. Leakage assumptions2020'!$K$3*'Op. Leakage assumptions2020'!K5,'Op. Leakage assumptions2020'!$L$3*'Op. Leakage assumptions2020'!L5,'Op. Leakage assumptions2020'!$M$3*'Op. Leakage assumptions2020'!M5,'Op. Leakage assumptions2020'!$N$3*'Op. Leakage assumptions2020'!N5,'Op. Leakage assumptions2020'!$O$3*'Op. Leakage assumptions2020'!O5,'Op. Leakage assumptions2020'!$P$3*'Op. Leakage assumptions2020'!P5,'Op. Leakage assumptions2020'!$Q$3*'Op. Leakage assumptions2020'!Q5,'Op. Leakage assumptions2020'!$R$3*'Op. Leakage assumptions2020'!R5,'Op. Leakage assumptions2020'!$S$3*'Op. Leakage assumptions2020'!S5) -> 0 | BL5: =E5*BJ5*SUM('EoL Leakage assumptions2020'!$G$3*'EoL Leakage assumptions2020'!G5,'EoL Leakage assumptions2020'!$H$3*'EoL Leakage assumptions2020'!H5,'EoL Leakage assumptions2020'!$I$3*'EoL Leakage assumptions2020'!I5,'EoL Leakage assumptions2020'!$J$3*'EoL Leakage assumptions2020'!J5,'EoL Leakage assumptions2020'!$K$3*'EoL Leakage assumptions2020'!K5,'EoL Leakage assumptions2020'!$L$3*'EoL Leakage assumptions2020'!L5,'EoL Leakage assumptions2020'!$M$3*'EoL Leakage assumptions2020'!M5,'EoL Leakage assumptions2020'!$N$3*'EoL Leakage assumptions2020'!N5) -> 0 | BM5: 0 | BN5: =X5*BM5 -> 0 | BO5: 0 | BP5: ='Direct Emissions Calcs'!BO5*SUM('Op. Leakage assumptions2020'!$G$3*'Op. Leakage assumptions2020'!G5,'Op. Leakage assumptions2020'!$H$3*'Op. Leakage assumptions2020'!H5,'Op. Leakage assumptions2020'!$I$3*'Op. Leakage assumptions2020'!I5,'Op. Leakage assumptions2020'!$J$3*'Op. Leakage assumptions2020'!J5,'Op. Leakage assumptions2020'!$K$3*'Op. Leakage assumptions2020'!K5,'Op. Leakage assumptions2020'!$L$3*'Op. Leakage assumptions2020'!L5,'Op. Leakage assumptions2020'!$M$3*'Op. Leakage assumptions2020'!M5,'Op. Leakage assumptions2020'!$N$3*'Op. Leakage assumptions2020'!N5,'Op. Leakage assumptions2020'!$O$3*'Op. Leakage assumptions2020'!O5,'Op. Leakage assumptions2020'!$P$3*'Op. Leakage assumptions2020'!P5,'Op. Leakage assumptions2020'!$Q$3*'Op. Leakage assumptions2020'!Q5,'Op. Leakage assumptions2020'!$R$3*'Op. Leakage assumptions2020'!R5,'Op. Leakage assumptions2020'!$S$3*'Op. Leakage assumptions2020'!S5) -> 0 | BQ5: =E5*BO5*SUM('EoL Leakage assumptions2020'!$G$3*'EoL Leakage assumptions2020'!G5,'EoL Leakage assumptions2020'!$H$3*'EoL Leakage assumptions2020'!H5,'EoL Leakage assumptions2020'!$I$3*'EoL Leakage assumptions2020'!I5,'EoL Leakage assumptions2020'!$J$3*'EoL Leakage assumptions2020'!J5,'EoL Leakage assumptions2020'!$K$3*'EoL Leakage assumptions2020'!K5,'EoL Leakage assumptions2020'!$L$3*'EoL Leakage assumptions2020'!L5,'EoL Leakage assumptions2020'!$M$3*'EoL Leakage assumptions2020'!M5,'EoL Leakage assumptions2020'!$N$3*'EoL Leakage assumptions2020'!N5) -> 0 | BR5: =SUM(AB5,AC5,AG5,AH5,AL5,AM5,AQ5,AR5,AV5,AW5,BA5,BB5,BF5,BG5,BK5,BL5,BP5,BQ5) -> 3390825329 | BS5: =BR5/10^9 -> 3.390825329 | BT5: =G5*$BX$6+K5*$BX$9+O5*$BX$10+M5*$BX$7+Q5*$BX$5 + S5*$BX$4 + U5*$BX$11 + W5*$BX$12 + I5*$BX$8 -> 930.55 | BW5: R600a | BX5: 3
B6: domRef | C6: Eur | D6: 2020 | E6: 0.067 | F6: ='Size Summary-Base'!H6 -> 255700000 | G6: 0 | H6: 0 | I6: 0 | J6: 0 | K6: 0 | L6: 0 | M6: 0 | N6: 0 | O6: 0.4 | P6: 102280000 | Q6: 0.6 | R6: 153420000 | S6: 0 | T6: 0 | U6: 0 | V6: 0 | W6: 0 | X6: 0 | Y6: 0 | Z6: 0 | AA6: 0 | AB6: ='Direct Emissions Calcs'!AA6*SUM('Op. Leakage assumptions2020'!$G$3*'Op. Leakage assumptions2020'!G6,'Op. Leakage assumptions2020'!$H$3*'Op. Leakage assumptions2020'!H6,'Op. Leakage assumptions2020'!$I$3*'Op. Leakage assumptions2020'!I6,'Op. Leakage assumptions2020'!$J$3*'Op. Leakage assumptions2020'!J6,'Op. Leakage assumptions2020'!$K$3*'Op. Leakage assumptions2020'!K6,'Op. Leakage assumptions2020'!$L$3*'Op. Leakage assumptions2020'!L6,'Op. Leakage assumptions2020'!$M$3*'Op. Leakage assumptions2020'!M6,'Op. Leakage assumptions2020'!$N$3*'Op. Leakage assumptions2020'!N6,'Op. Leakage assumptions2020'!$O$3*'Op. Leakage assumptions2020'!O6,'Op. Leakage assumptions2020'!$P$3*'Op. Leakage assumptions2020'!P6,'Op. Leakage assumptions2020'!$Q$3*'Op. Leakage assumptions2020'!Q6,'Op. Leakage assumptions2020'!$R$3*'Op. Leakage assumptions2020'!R6,'Op. Leakage assumptions2020'!$S$3*'Op. Leakage assumptions2020'!S6) -> 0 | AC6: =E6*AA6*SUM('EoL Leakage assumptions2020'!$G$3*'EoL Leakage assumptions2020'!G6,'EoL Leakage assumptions2020'!$H$3*'EoL Leakage assumptions2020'!H6,'EoL Leakage assumptions2020'!$I$3*'EoL Leakage assumptions2020'!I6,'EoL Leakage assumptions2020'!$J$3*'EoL Leakage assumptions2020'!J6,'EoL Leakage assumptions2020'!$K$3*'EoL Leakage assumptions2020'!K6,'EoL Leakage assumptions2020'!$L$3*'EoL Leakage assumptions2020'!L6,'EoL Leakage assumptions2020'!$M$3*'EoL Leakage assumptions2020'!M6,'EoL Leakage assumptions2020'!$N$3*'EoL Leakage assumptions2020'!N6) -> 0 | AD6: 0 | AE6: 0 | AF6: 0 | AG6: ='Direct Emissions Calcs'!AF6*SUM('Op. Leakage assumptions2020'!$G$3*'Op. Leakage assumptions2020'!G6,'Op. Leakage assumptions2020'!$H$3*'Op. Leakage assumptions2020'!H6,'Op. Leakage assumptions2020'!$I$3*'Op. Leakage assumptions2020'!I6,'Op. Leakage assumptions2020'!$J$3*'Op. Leakage assumptions2020'!J6,'Op. Leakage assumptions2020'!$K$3*'Op. Leakage assumptions2020'!K6,'Op. Leakage assumptions2020'!$L$3*'Op. Leakage assumptions2020'!L6,'Op. Leakage assumptions2020'!$M$3*'Op. Leakage assumptions2020'!M6,'Op. Leakage assumptions2020'!$N$3*'Op. Leakage assumptions2020'!N6,'Op. Leakage assumptions2020'!$O$3*'Op. Leakage assumptions2020'!O6,'Op. Leakage assumptions2020'!$P$3*'Op. Leakage assumptions2020'!P6,'Op. Leakage assumptions2020'!$Q$3*'Op. Leakage assumptions2020'!Q6,'Op. Leakage assumptions2020'!$R$3*'Op. Leakage assumptions2020'!R6,'Op. Leakage assumptions2020'!$S$3*'Op. Leakage assumptions2020'!S6) -> 0 | AH6: =E6*AF6*SUM('EoL Leakage assumptions2020'!$G$3*'EoL Leakage assumptions2020'!G6,'EoL Leakage assumptions2020'!$H$3*'EoL Leakage assumptions2020'!H6,'EoL Leakage assumptions2020'!$I$3*'EoL Leakage assumptions2020'!I6,'EoL Leakage assumptions2020'!$J$3*'EoL Leakage assumptions2020'!J6,'EoL Leakage assumptions2020'!$K$3*'EoL Leakage assumptions2020'!K6,'EoL Leakage assumptions2020'!$L$3*'EoL Leakage assumptions2020'!L6,'EoL Leakage assumptions2020'!$M$3*'EoL Leakage assumptions2020'!M6,'EoL Leakage assumptions2020'!$N$3*'EoL Leakage assumptions2020'!N6) -> 0 | AI6: 0 | AJ6: 0 | AK6: 0 | AL6: ='Direct Emissions Calcs'!AK6*SUM('Op. Leakage assumptions2020'!$G$3*'Op. Leakage assumptions2020'!G6,'Op. Leakage assumptions2020'!$H$3*'Op. Leakage assumptions2020'!H6,'Op. Leakage assumptions2020'!$I$3*'Op. Leakage assumptions2020'!I6,'Op. Leakage assumptions2020'!$J$3*'Op. Leakage assumptions2020'!J6,'Op. Leakage assumptions2020'!$K$3*'Op. Leakage assumptions2020'!K6,'Op. Leakage assumptions2020'!$L$3*'Op. Leakage assumptions2020'!L6,'Op. Leakage assumptions2020'!$M$3*'Op. Leakage assumptions2020'!M6,'Op. Leakage assumptions2020'!$N$3*'Op. Leakage assumptions2020'!N6,'Op. Leakage assumptions2020'!$O$3*'Op. Leakage assumptions2020'!O6,'Op. Leakage assumptions2020'!$P$3*'Op. Leakage assumptions2020'!P6,'Op. Leakage assumptions2020'!$Q$3*'Op. Leakage assumptions2020'!Q6,'Op. Leakage assumptions2020'!$R$3*'Op. Leakage assumptions2020'!R6,'Op. Leakage assumptions2020'!$S$3*'Op. Leakage assumptions2020'!S6) -> 0 | AM6: =E6*AK6*SUM('EoL Leakage assumptions2020'!$G$3*'EoL Leakage assumptions2020'!G6,'EoL Leakage assumptions2020'!$H$3*'EoL Leakage assumptions2020'!H6,'EoL Leakage assumptions2020'!$I$3*'EoL Leakage assumptions2020'!I6,'EoL Leakage assumptions2020'!$J$3*'EoL Leakage assumptions2020'!J6,'EoL Leakage assumptions2020'!$K$3*'EoL Leakage assumptions2020'!K6,'EoL Leakage assumptions2020'!$L$3*'EoL Leakage assumptions2020'!L6,'EoL Leakage assumptions2020'!$M$3*'EoL Leakage assumptions2020'!M6,'EoL Leakage assumptions2020'!$N$3*'EoL Leakage assumptions2020'!N6) -> 0 | AN6: 0 | AO6: 0 | AP6: 0 | AQ6: ='Direct Emissions Calcs'!AP6*SUM('Op. Leakage assumptions2020'!$G$3*'Op. Leakage assumptions2020'!G6,'Op. Leakage assumptions2020'!$H$3*'Op. Leakage assumptions2020'!H6,'Op. Leakage assumptions2020'!$I$3*'Op. Leakage assumptions2020'!I6,'Op. Leakage assumptions2020'!$J$3*'Op. Leakage assumptions2020'!J6,'Op. Leakage assumptions2020'!$K$3*'Op. Leakage assumptions2020'!K6,'Op. Leakage assumptions2020'!$L$3*'Op. Leakage assumptions2020'!L6,'Op. Leakage assumptions2020'!$M$3*'Op. Leakage assumptions2020'!M6,'Op. Leakage assumptions2020'!$N$3*'Op. Leakage assumptions2020'!N6,'Op. Leakage assumptions2020'!$O$3*'Op. Leakage assumptions2020'!O6,'Op. Leakage assumptions2020'!$P$3*'Op. Leakage assumptions2020'!P6,'Op. Leakage assumptions2020'!$Q$3*'Op. Leakage assumptions2020'!Q6,'Op. Leakage assumptions2020'!$R$3*'Op. Leakage assumptions2020'!R6,'Op. Leakage assumptions2020'!$S$3*'Op. Leakage assumptions2020'!S6) -> 0 | AR6: =E6*AP6*SUM('EoL Leakage assumptions2020'!$G$3*'EoL Leakage assumptions2020'!G6,'EoL Leakage assumptions2020'!$H$3*'EoL Leakage assumptions2020'!H6,'EoL Leakage assumptions2020'!$I$3*'EoL Leakage assumptions2020'!I6,'EoL Leakage assumptions2020'!$J$3*'EoL Leakage assumptions2020'!J6,'EoL Leakage assumptions2020'!$K$3*'EoL Leakage assumptions2020'!K6,'EoL Leakage assumptions2020'!$L$3*'EoL Leakage assumptions2020'!L6,'EoL Leakage assumptions2020'!$M$3*'EoL Leakage assumptions2020'!M6,'EoL Leakage assumptions2020'!$N$3*'EoL Leakage assumptions2020'!N6) -> 0 | AS6: 0.175 | AT6: 17899000 | AU6: 25595570000 | AV6: ='Direct Emissions Calcs'!AU6*SUM('Op. Leakage assumptions2020'!$G$3*'Op. Leakage assumptions2020'!G6,'Op. Leakage assumptions2020'!$H$3*'Op. Leakage assumptions2020'!H6,'Op. Leakage assumptions2020'!$I$3*'Op. Leakage assumptions2020'!I6,'Op. Leakage assumptions2020'!$J$3*'Op. Leakage assumptions2020'!J6,'Op. Leakage assumptions2020'!$K$3*'Op. Leakage assumptions2020'!K6,'Op. Leakage assumptions2020'!$L$3*'Op. Leakage assumptions2020'!L6,'Op. Leakage assumptions2020'!$M$3*'Op. Leakage assumptions2020'!M6,'Op. Leakage assumptions2020'!$N$3*'Op. Leakage assumptions2020'!N6,'Op. Leakage assumptions2020'!$O$3*'Op. Leakage assumptions2020'!O6,'Op. Leakage assumptions2020'!$P$3*'Op. Leakage assumptions2020'!P6,'Op. Leakage assumptions2020'!$Q$3*'Op. Leakage assumptions2020'!Q6,'Op. Leakage assumptions2020'!$R$3*'Op. Leakage assumptions2020'!R6,'Op. Leakage assumptions2020'!$S$3*'Op. Leakage assumptions2020'!S6) -> 76786710 | AW6: =E6*AU6*SUM('EoL Leakage assumptions2020'!$G$3*'EoL Leakage assumptions2020'!G6,'EoL Leakage assumptions2020'!$H$3*'EoL Leakage assumptions2020'!H6,'EoL Leakage assumptions2020'!$I$3*'EoL Leakage assumptions2020'!I6,'EoL Leakage assumptions2020'!$J$3*'EoL Leakage assumptions2020'!J6,'EoL Leakage assumptions2020'!$K$3*'EoL Leakage assumptions2020'!K6,'EoL Leakage assumptions2020'!$L$3*'EoL Leakage assumptions2020'!L6,'EoL Leakage assumptions2020'!$M$3*'EoL Leakage assumptions2020'!M6,'EoL Leakage assumptions2020'!$N$3*'EoL Leakage assumptions2020'!N6) -> 685961276 | AX6: 0.175 | AY6: 26848500 | AZ6: 80545500 | BA6: ='Direct Emissions Calcs'!AZ6*SUM('Op. Leakage assumptions2020'!$G$3*'Op. Leakage assumptions2020'!G6,'Op. Leakage assumptions2020'!$H$3*'Op. Leakage assumptions2020'!H6,'Op. Leakage assumptions2020'!$I$3*'Op. Leakage assumptions2020'!I6,'Op. Leakage assumptions2020'!$J$3*'Op. Leakage assumptions2020'!J6,'Op. Leakage assumptions2020'!$K$3*'Op. Leakage assumptions2020'!K6,'Op. Leakage assumptions2020'!$L$3*'Op. Leakage assumptions2020'!L6,'Op. Leakage assumptions2020'!$M$3*'Op. Leakage assumptions2020'!M6,'Op. Leakage assumptions2020'!$N$3*'Op. Leakage assumptions2020'!N6,'Op. Leakage assumptions2020'!$O$3*'Op. Leakage assumptions2020'!O6,'Op. Leakage assumptions2020'!$P$3*'Op. Leakage assumptions2020'!P6,'Op. Leakage assumptions2020'!$Q$3*'Op. Leakage assumptions2020'!Q6,'Op. Leakage assumptions2020'!$R$3*'Op. Leakage assumptions2020'!R6,'Op. Leakage assumptions2020'!$S$3*'Op. Leakage assumptions2020'!S6) -> 241636.5 | BB6: =E6*AZ6*SUM('EoL Leakage assumptions2020'!$G$3*'EoL Leakage assumptions2020'!G6,'EoL Leakage assumptions2020'!$H$3*'EoL Leakage assumptions2020'!H6,'EoL Leakage assumptions2020'!$I$3*'EoL Leakage assumptions2020'!I6,'EoL Leakage assumptions2020'!$J$3*'EoL Leakage assumptions2020'!J6,'EoL Leakage assumptions2020'!$K$3*'EoL Leakage assumptions2020'!K6,'EoL Leakage assumptions2020'!$L$3*'EoL Leakage assumptions2020'!L6,'EoL Leakage assumptions2020'!$M$3*'EoL Leakage assumptions2020'!M6,'EoL Leakage assumptions2020'!$N$3*'EoL Leakage assumptions2020'!N6) -> 2158619.4 | BC6: 0 | BD6: 0 | BE6: 0 | BF6: ='Direct Emissions Calcs'!BE6*SUM('Op. Leakage assumptions2020'!$G$3*'Op. Leakage assumptions2020'!G6,'Op. Leakage assumptions2020'!$H$3*'Op. Leakage assumptions2020'!H6,'Op. Leakage assumptions2020'!$I$3*'Op. Leakage assumptions2020'!I6,'Op. Leakage assumptions2020'!$J$3*'Op. Leakage assumptions2020'!J6,'Op. Leakage assumptions2020'!$K$3*'Op. Leakage assumptions2020'!K6,'Op. Leakage assumptions2020'!$L$3*'Op. Leakage assumptions2020'!L6,'Op. Leakage assumptions2020'!$M$3*'Op. Leakage assumptions2020'!M6,'Op. Leakage assumptions2020'!$N$3*'Op. Leakage assumptions2020'!N6,'Op. Leakage assumptions2020'!$O$3*'Op. Leakage assumptions2020'!O6,'Op. Leakage assumptions2020'!$P$3*'Op. Leakage assumptions2020'!P6,'Op. Leakage assumptions2020'!$Q$3*'Op. Leakage assumptions2020'!Q6,'Op. Leakage assumptions2020'!$R$3*'Op. Leakage assumptions2020'!R6,'Op. Leakage assumptions2020'!$S$3*'Op. Leakage assumptions2020'!S6) -> 0 | BG6: =E6*BE6*SUM('EoL Leakage assumptions2020'!$G$3*'EoL Leakage assumptions2020'!G6,'EoL Leakage assumptions2020'!$H$3*'EoL Leakage assumptions2020'!H6,'EoL Leakage assumptions2020'!$I$3*'EoL Leakage assumptions2020'!I6,'EoL Leakage assumptions2020'!$J$3*'EoL Leakage assumptions2020'!J6,'EoL Leakage assumptions2020'!$K$3*'EoL Leakage assumptions2020'!K6,'EoL Leakage assumptions2020'!$L$3*'EoL Leakage assumptions2020'!L6,'EoL Leakage assumptions2020'!$M$3*'EoL Leakage assumptions2020'!M6,'EoL Leakage assumptions2020'!$N$3*'EoL Leakage assumptions2020'!N6) -> 0 | BH6: 0 | BI6: 0 | BJ6: 0 | BK6: ='Direct Emissions Calcs'!BJ6*SUM('Op. Leakage assumptions2020'!$G$3*'Op. Leakage assumptions2020'!G6,'Op. Leakage assumptions2020'!$H$3*'Op. Leakage assumptions2020'!H6,'Op. Leakage assumptions2020'!$I$3*'Op. Leakage assumptions2020'!I6,'Op. Leakage assumptions2020'!$J$3*'Op. Leakage assumptions2020'!J6,'Op. Leakage assumptions2020'!$K$3*'Op. Leakage assumptions2020'!K6,'Op. Leakage assumptions2020'!$L$3*'Op. Leakage assumptions2020'!L6,'Op. Leakage assumptions2020'!$M$3*'Op. Leakage assumptions2020'!M6,'Op. Leakage assumptions2020'!$N$3*'Op. Leakage assumptions2020'!N6,'Op. Leakage assumptions2020'!$O$3*'Op. Leakage assumptions2020'!O6,'Op. Leakage assumptions2020'!$P$3*'Op. Leakage assumptions2020'!P6,'Op. Leakage assumptions2020'!$Q$3*'Op. Leakage assumptions2020'!Q6,'Op. Leakage assumptions2020'!$R$3*'Op. Leakage assumptions2020'!R6,'Op. Leakage assumptions2020'!$S$3*'Op. Leakage assumptions2020'!S6) -> 0 | BL6: =E6*BJ6*SUM('EoL Leakage assumptions2020'!$G$3*'EoL Leakage assumptions2020'!G6,'EoL Leakage assumptions2020'!$H$3*'EoL Leakage assumptions2020'!H6,'EoL Leakage assumptions2020'!$I$3*'EoL Leakage assumptions2020'!I6,'EoL Leakage assumptions2020'!$J$3*'EoL Leakage assumptions2020'!J6,'EoL Leakage assumptions2020'!$K$3*'EoL Leakage assumptions2020'!K6,'EoL Leakage assumptions2020'!$L$3*'EoL Leakage assumptions2020'!L6,'EoL Leakage assumptions2020'!$M$3*'EoL Leakage assumptions2020'!M6,'EoL Leakage assumptions2020'!$N$3*'EoL Leakage assumptions2020'!N6) -> 0 | BM6: 0 | BN6: 0 | BO6: 0 | BP6: ='Direct Emissions Calcs'!BO6*SUM('Op. Leakage assumptions2020'!$G$3*'Op. Leakage assumptions2020'!G6,'Op. Leakage assumptions2020'!$H$3*'Op. Leakage assumptions2020'!H6,'Op. Leakage assumptions2020'!$I$3*'Op. Leakage assumptions2020'!I6,'Op. Leakage assumptions2020'!$J$3*'Op. Leakage assumptions2020'!J6,'Op. Leakage assumptions2020'!$K$3*'Op. Leakage assumptions2020'!K6,'Op. Leakage assumptions2020'!$L$3*'Op. Leakage assumptions2020'!L6,'Op. Leakage assumptions2020'!$M$3*'Op. Leakage assumptions2020'!M6,'Op. Leakage assumptions2020'!$N$3*'Op. Leakage assumptions2020'!N6,'Op. Leakage assumptions2020'!$O$3*'Op. Leakage assumptions2020'!O6,'Op. Leakage assumptions2020'!$P$3*'Op. Leakage assumptions2020'!P6,'Op. Leakage assumptions2020'!$Q$3*'Op. Leakage assumptions2020'!Q6,'Op. Leakage assumptions2020'!$R$3*'Op. Leakage assumptions2020'!R6,'Op. Leakage assumptions2020'!$S$3*'Op. Leakage assumptions2020'!S6) -> 0 | BQ6: =E6*BO6*SUM('EoL Leakage assumptions2020'!$G$3*'EoL Leakage assumptions2020'!G6,'EoL Leakage assumptions2020'!$H$3*'EoL Leakage assumptions2020'!H6,'EoL Leakage assumptions2020'!$I$3*'EoL Leakage assumptions2020'!I6,'EoL Leakage assumptions2020'!$J$3*'EoL Leakage assumptions2020'!J6,'EoL Leakage assumptions2020'!$K$3*'EoL Leakage assumptions2020'!K6,'EoL Leakage assumptions2020'!$L$3*'EoL Leakage assumptions2020'!L6,'EoL Leakage assumptions2020'!$M$3*'EoL Leakage assumptions2020'!M6,'EoL Leakage assumptions2020'!$N$3*'EoL Leakage assumptions2020'!N6) -> 0 | BR6: 765148241.9 | BS6: 0.7651482419 | BT6: 573.8 | BW6: R22 | BX6: 1800
B7: domRef | C7: NA | D7: 2020 | E7: 0.067 | F7: ='Size Summary-Base'!H7 -> 243730000 | G7: 0 | H7: 0 | I7: 0 | J7: 0 | K7: 0 | L7: 0 | M7: 0 | N7: 0 | O7: 0.4 | P7: 97492000 | Q7: 0.6 | R7: 146238000 | S7: 0 | T7: 0 | U7: 0 | V7: 0 | W7: 0 | X7: 0 | Y7: 0 | Z7: 0 | AA7: 0 | AB7: ='Direct Emissions Calcs'!AA7*SUM('Op. Leakage assumptions2020'!$G$3*'Op. Leakage assumptions2020'!G7,'Op. Leakage assumptions2020'!$H$3*'Op. Leakage assumptions2020'!H7,'Op. Leakage assumptions2020'!$I$3*'Op. Leakage assumptions2020'!I7,'Op. Leakage assumptions2020'!$J$3*'Op. Leakage assumptions2020'!J7,'Op. Leakage assumptions2020'!$K$3*'Op. Leakage assumptions2020'!K7,'Op. Leakage assumptions2020'!$L$3*'Op. Leakage assumptions2020'!L7,'Op. Leakage assumptions2020'!$M$3*'Op. Leakage assumptions2020'!M7,'Op. Leakage assumptions2020'!$N$3*'Op. Leakage assumptions2020'!N7,'Op. Leakage assumptions2020'!$O$3*'Op. Leakage assumptions2020'!O7,'Op. Leakage assumptions2020'!$P$3*'Op. Leakage assumptions2020'!P7,'Op. Leakage assumptions2020'!$Q$3*'Op. Leakage assumptions2020'!Q7,'Op. Leakage assumptions2020'!$R$3*'Op. Leakage assumptions2020'!R7,'Op. Leakage assumptions2020'!$S$3*'Op. Leakage assumptions2020'!S7) -> 0 | AC7: =E7*AA7*SUM('EoL Leakage assumptions2020'!$G$3*'EoL Leakage assumptions2020'!G7,'EoL Leakage assumptions2020'!$H$3*'EoL Leakage assumptions2020'!H7,'EoL Leakage assumptions2020'!$I$3*'EoL Leakage assumptions2020'!I7,'EoL Leakage assumptions2020'!$J$3*'EoL Leakage assumptions2020'!J7,'EoL Leakage assumptions2020'!$K$3*'EoL Leakage assumptions2020'!K7,'EoL Leakage assumptions2020'!$L$3*'EoL Leakage assumptions2020'!L7,'EoL Leakage assumptions2020'!$M$3*'EoL Leakage assumptions2020'!M7,'EoL Leakage assumptions2020'!$N$3*'EoL Leakage assumptions2020'!N7) -> 0 | AD7: 0 | AE7: 0 | AF7: 0 | AG7: ='Direct Emissions Calcs'!AF7*SUM('Op. Leakage assumptions2020'!$G$3*'Op. Leakage assumptions2020'!G7,'Op. Leakage assumptions2020'!$H$3*'Op. Leakage assumptions2020'!H7,'Op. Leakage assumptions2020'!$I$3*'Op. Leakage assumptions2020'!I7,'Op. Leakage assumptions2020'!$J$3*'Op. Leakage assumptions2020'!J7,'Op. Leakage assumptions2020'!$K$3*'Op. Leakage assumptions2020'!K7,'Op. Leakage assumptions2020'!$L$3*'Op. Leakage assumptions2020'!L7,'Op. Leakage assumptions2020'!$M$3*'Op. Leakage assumptions2020'!M7,'Op. Leakage assumptions2020'!$N$3*'Op. Leakage assumptions2020'!N7,'Op. Leakage assumptions2020'!$O$3*'Op. Leakage assumptions2020'!O7,'Op. Leakage assumptions2020'!$P$3*'Op. Leakage assumptions2020'!P7,'Op. Leakage assumptions2020'!$Q$3*'Op. Leakage assumptions2020'!Q7,'Op. Leakage assumptions2020'!$R$3*'Op. Leakage assumptions2020'!R7,'Op. Leakage assumptions2020'!$S$3*'Op. Leakage assumptions2020'!S7) -> 0 | AH7: =E7*AF7*SUM('EoL Leakage assumptions2020'!$G$3*'EoL Leakage assumptions2020'!G7,'EoL Leakage assumptions2020'!$H$3*'EoL Leakage assumptions2020'!H7,'EoL Leakage assumptions2020'!$I$3*'EoL Leakage assumptions2020'!I7,'EoL Leakage assumptions2020'!$J$3*'EoL Leakage assumptions2020'!J7,'EoL Leakage assumptions2020'!$K$3*'EoL Leakage assumptions2020'!K7,'EoL Leakage assumptions2020'!$L$3*'EoL Leakage assumptions2020'!L7,'EoL Leakage assumptions2020'!$M$3*'EoL Leakage assumptions2020'!M7,'EoL Leakage assumptions2020'!$N$3*'EoL Leakage assumptions2020'!N7) -> 0 | AI7: 0 | AJ7: 0 | AK7: 0 | AL7: ='Direct Emissions Calcs'!AK7*SUM('Op. Leakage assumptions2020'!$G$3*'Op. Leakage assumptions2020'!G7,'Op. Leakage assumptions2020'!$H$3*'Op. Leakage assumptions2020'!H7,'Op. Leakage assumptions2020'!$I$3*'Op. Leakage assumptions2020'!I7,'Op. Leakage assumptions2020'!$J$3*'Op. Leakage assumptions2020'!J7,'Op. Leakage assumptions2020'!$K$3*'Op. Leakage assumptions2020'!K7,'Op. Leakage assumptions2020'!$L$3*'Op. Leakage assumptions2020'!L7,'Op. Leakage assumptions2020'!$M$3*'Op. Leakage assumptions2020'!M7,'Op. Leakage assumptions2020'!$N$3*'Op. Leakage assumptions2020'!N7,'Op. Leakage assumptions2020'!$O$3*'Op. Leakage assumptions2020'!O7,'Op. Leakage assumptions2020'!$P$3*'Op. Leakage assumptions2020'!P7,'Op. Leakage assumptions2020'!$Q$3*'Op. Leakage assumptions2020'!Q7,'Op. Leakage assumptions2020'!$R$3*'Op. Leakage assumptions2020'!R7,'Op. Leakage assumptions2020'!$S$3*'Op. Leakage assumptions2020'!S7) -> 0 | AM7: =E7*AK7*SUM('EoL Leakage assumptions2020'!$G$3*'EoL Leakage assumptions2020'!G7,'EoL Leakage assumptions2020'!$H$3*'EoL Leakage assumptions2020'!H7,'EoL Leakage assumptions2020'!$I$3*'EoL Leakage assumptions2020'!I7,'EoL Leakage assumptions2020'!$J$3*'EoL Leakage assumptions2020'!J7,'EoL Leakage assumptions2020'!$K$3*'EoL Leakage assumptions2020'!K7,'EoL Leakage assumptions2020'!$L$3*'EoL Leakage assumptions2020'!L7,'EoL Leakage assumptions2020'!$M$3*'EoL Leakage assumptions2020'!M7,'EoL Leakage assumptions2020'!$N$3*'EoL Leakage assumptions2020'!N7) -> 0 | AN7: 0 | AO7: 0 | AP7: 0 | AQ7: ='Direct Emissions Calcs'!AP7*SUM('Op. Leakage assumptions2020'!$G$3*'Op. Leakage assumptions2020'!G7,'Op. Leakage assumptions2020'!$H$3*'Op. Leakage assumptions2020'!H7,'Op. Leakage assumptions2020'!$I$3*'Op. Leakage assumptions2020'!I7,'Op. Leakage assumptions2020'!$J$3*'Op. Leakage assumptions2020'!J7,'Op. Leakage assumptions2020'!$K$3*'Op. Leakage assumptions2020'!K7,'Op. Leakage assumptions2020'!$L$3*'Op. Leakage assumptions2020'!L7,'Op. Leakage assumptions2020'!$M$3*'Op. Leakage assumptions2020'!M7,'Op. Leakage assumptions2020'!$N$3*'Op. Leakage assumptions2020'!N7,'Op. Leakage assumptions2020'!$O$3*'Op. Leakage assumptions2020'!O7,'Op. Leakage assumptions2020'!$P$3*'Op. Leakage assumptions2020'!P7,'Op. Leakage assumptions2020'!$Q$3*'Op. Leakage assumptions2020'!Q7,'Op. Leakage assumptions2020'!$R$3*'Op. Leakage assumptions2020'!R7,'Op. Leakage assumptions2020'!$S$3*'Op. Leakage assumptions2020'!S7) -> 0 | AR7: =E7*AP7*SUM('EoL Leakage assumptions2020'!$G$3*'EoL Leakage assumptions2020'!G7,'EoL Leakage assumptions2020'!$H$3*'EoL Leakage assumptions2020'!H7,'EoL Leakage assumptions2020'!$I$3*'EoL Leakage assumptions2020'!I7,'EoL Leakage assumptions2020'!$J$3*'EoL Leakage assumptions2020'!J7,'EoL Leakage assumptions2020'!$K$3*'EoL Leakage assumptions2020'!K7,'EoL Leakage assumptions2020'!$L$3*'EoL Leakage assumptions2020'!L7,'EoL Leakage assumptions2020'!$M$3*'EoL Leakage assumptions2020'!M7,'EoL Leakage assumptions2020'!$N$3*'EoL Leakage assumptions2020'!N7) -> 0 | AS7: 0.175 | AT7: 17061100 | AU7: 24397373000 | AV7: ='Direct Emissions Calcs'!AU7*SUM('Op. Leakage assumptions2020'!$G$3*'Op. Leakage assumptions2020'!G7,'Op. Leakage assumptions2020'!$H$3*'Op. Leakage assumptions2020'!H7,'Op. Leakage assumptions2020'!$I$3*'Op. Leakage assumptions2020'!I7,'Op. Leakage assumptions2020'!$J$3*'Op. Leakage assumptions2020'!J7,'Op. Leakage assumptions2020'!$K$3*'Op. Leakage assumptions2020'!K7,'Op. Leakage assumptions2020'!$L$3*'Op. Leakage assumptions2020'!L7,'Op. Leakage assumptions2020'!$M$3*'Op. Leakage assumptions2020'!M7,'Op. Leakage assumptions2020'!$N$3*'Op. Leakage assumptions2020'!N7,'Op. Leakage assumptions2020'!$O$3*'Op. Leakage assumptions2020'!O7,'Op. Leakage assumptions2020'!$P$3*'Op. Leakage assumptions2020'!P7,'Op. Leakage assumptions2020'!$Q$3*'Op. Leakage assumptions2020'!Q7,'Op. Leakage assumptions2020'!$R$3*'Op. Leakage assumptions2020'!R7,'Op. Leakage assumptions2020'!$S$3*'Op. Leakage assumptions2020'!S7) -> 73192119 | AW7: =E7*AU7*SUM('EoL Leakage assumptions2020'!$G$3*'EoL Leakage assumptions2020'!G7,'EoL Leakage assumptions2020'!$H$3*'EoL Leakage assumptions2020'!H7,'EoL Leakage assumptions2020'!$I$3*'EoL Leakage assumptions2020'!I7,'EoL Leakage assumptions2020'!$J$3*'EoL Leakage assumptions2020'!J7,'EoL Leakage assumptions2020'!$K$3*'EoL Leakage assumptions2020'!K7,'EoL Leakage assumptions2020'!$L$3*'EoL Leakage assumptions2020'!L7,'EoL Leakage assumptions2020'!$M$3*'EoL Leakage assumptions2020'!M7,'EoL Leakage assumptions2020'!$N$3*'EoL Leakage assumptions2020'!N7) -> 653849596.4 | AX7: 0.175 | AY7: 25591650 | AZ7: 76774950 | BA7: ='Direct Emissions Calcs'!AZ7*SUM('Op. Leakage assumptions2020'!$G$3*'Op. Leakage assumptions2020'!G7,'Op. Leakage assumptions2020'!$H$3*'Op. Leakage assumptions2020'!H7,'Op. Leakage assumptions2020'!$I$3*'Op. Leakage assumptions2020'!I7,'Op. Leakage assumptions2020'!$J$3*'Op. Leakage assumptions2020'!J7,'Op. Leakage assumptions2020'!$K$3*'Op. Leakage assumptions2020'!K7,'Op. Leakage assumptions2020'!$L$3*'Op. Leakage assumptions2020'!L7,'Op. Leakage assumptions2020'!$M$3*'Op. Leakage assumptions2020'!M7,'Op. Leakage assumptions2020'!$N$3*'Op. Leakage assumptions2020'!N7,'Op. Leakage assumptions2020'!$O$3*'Op. Leakage assumptions2020'!O7,'Op. Leakage assumptions2020'!$P$3*'Op. Leakage assumptions2020'!P7,'Op. Leakage assumptions2020'!$Q$3*'Op. Leakage assumptions2020'!Q7,'Op. Leakage assumptions2020'!$R$3*'Op. Leakage assumptions2020'!R7,'Op. Leakage assumptions2020'!$S$3*'Op. Leakage assumptions2020'!S7) -> 230324.85 | BB7: =E7*AZ7*SUM('EoL Leakage assumptions2020'!$G$3*'EoL Leakage assumptions2020'!G7,'EoL Leakage assumptions2020'!$H$3*'EoL Leakage assumptions2020'!H7,'EoL Leakage assumptions2020'!$I$3*'EoL Leakage assumptions2020'!I7,'EoL Leakage assumptions2020'!$J$3*'EoL Leakage assumptions2020'!J7,'EoL Leakage assumptions2020'!$K$3*'EoL Leakage assumptions2020'!K7,'EoL Leakage assumptions2020'!$L$3*'EoL Leakage assumptions2020'!L7,'EoL Leakage assumptions2020'!$M$3*'EoL Leakage assumptions2020'!M7,'EoL Leakage assumptions2020'!$N$3*'EoL Leakage assumptions2020'!N7) -> 2057568.66 | BC7: 0 | BD7: 0 | BE7: 0 | BF7: ='Direct Emissions Calcs'!BE7*SUM('Op. Leakage assumptions2020'!$G$3*'Op. Leakage assumptions2020'!G7,'Op. Leakage assumptions2020'!$H$3*'Op. Leakage assumptions2020'!H7,'Op. Leakage assumptions2020'!$I$3*'Op. Leakage assumptions2020'!I7,'Op. Leakage assumptions2020'!$J$3*'Op. Leakage assumptions2020'!J7,'Op. Leakage assumptions2020'!$K$3*'Op. Leakage assumptions2020'!K7,'Op. Leakage assumptions2020'!$L$3*'Op. Leakage assumptions2020'!L7,'Op. Leakage assumptions2020'!$M$3*'Op. Leakage assumptions2020'!M7,'Op. Leakage assumptions2020'!$N$3*'Op. Leakage assumptions2020'!N7,'Op. Leakage assumptions2020'!$O$3*'Op. Leakage assumptions2020'!O7,'Op. Leakage assumptions2020'!$P$3*'Op. Leakage assumptions2020'!P7,'Op. Leakage assumptions2020'!$Q$3*'Op. Leakage assumptions2020'!Q7,'Op. Leakage assumptions2020'!$R$3*'Op. Leakage assumptions2020'!R7,'Op. Leakage assumptions2020'!$S$3*'Op. Leakage assumptions2020'!S7) -> 0 | BG7: =E7*BE7*SUM('EoL Leakage assumptions2020'!$G$3*'EoL Leakage assumptions2020'!G7,'EoL Leakage assumptions2020'!$H$3*'EoL Leakage assumptions2020'!H7,'EoL Leakage assumptions2020'!$I$3*'EoL Leakage assumptions2020'!I7,'EoL Leakage assumptions2020'!$J$3*'EoL Leakage assumptions2020'!J7,'EoL Leakage assumptions2020'!$K$3*'EoL Leakage assumptions2020'!K7,'EoL Leakage assumptions2020'!$L$3*'EoL Leakage assumptions2020'!L7,'EoL Leakage assumptions2020'!$M$3*'EoL Leakage assumptions2020'!M7,'EoL Leakage assumptions2020'!$N$3*'EoL Leakage assumptions2020'!N7) -> 0 | BH7: 0 | BI7: 0 | BJ7: 0 | BK7: ='Direct Emissions Calcs'!BJ7*SUM('Op. Leakage assumptions2020'!$G$3*'Op. Leakage assumptions2020'!G7,'Op. Leakage assumptions2020'!$H$3*'Op. Leakage assumptions2020'!H7,'Op. Leakage assumptions2020'!$I$3*'Op. Leakage assumptions2020'!I7,'Op. Leakage assumptions2020'!$J$3*'Op. Leakage assumptions2020'!J7,'Op. Leakage assumptions2020'!$K$3*'Op. Leakage assumptions2020'!K7,'Op. Leakage assumptions2020'!$L$3*'Op. Leakage assumptions2020'!L7,'Op. Leakage assumptions2020'!$M$3*'Op. Leakage assumptions2020'!M7,'Op. Leakage assumptions2020'!$N$3*'Op. Leakage assumptions2020'!N7,'Op. Leakage assumptions2020'!$O$3*'Op. Leakage assumptions2020'!O7,'Op. Leakage assumptions2020'!$P$3*'Op. Leakage assumptions2020'!P7,'Op. Leakage assumptions2020'!$Q$3*'Op. Leakage assumptions2020'!Q7,'Op. Leakage assumptions2020'!$R$3*'Op. Leakage assumptions2020'!R7,'Op. Leakage assumptions2020'!$S$3*'Op. Leakage assumptions2020'!S7) -> 0 | BL7: =E7*BJ7*SUM('EoL Leakage assumptions2020'!$G$3*'EoL Leakage assumptions2020'!G7,'EoL Leakage assumptions2020'!$H$3*'EoL Leakage assumptions2020'!H7,'EoL Leakage assumptions2020'!$I$3*'EoL Leakage assumptions2020'!I7,'EoL Leakage assumptions2020'!$J$3*'EoL Leakage assumptions2020'!J7,'EoL Leakage assumptions2020'!$K$3*'EoL Leakage assumptions2020'!K7,'EoL Leakage assumptions2020'!$L$3*'EoL Leakage assumptions2020'!L7,'EoL Leakage assumptions2020'!$M$3*'EoL Leakage assumptions2020'!M7,'EoL Leakage assumptions2020'!$N$3*'EoL Leakage assumptions2020'!N7) -> 0 | BM7: 0 | BN7: 0 | BO7: 0 | BP7: ='Direct Emissions Calcs'!BO7*SUM('Op. Leakage assumptions2020'!$G$3*'Op. Leakage assumptions2020'!G7,'Op. Leakage assumptions2020'!$H$3*'Op. Leakage assumptions2020'!H7,'Op. Leakage assumptions2020'!$I$3*'Op. Leakage assumptions2020'!I7,'Op. Leakage assumptions2020'!$J$3*'Op. Leakage assumptions2020'!J7,'Op. Leakage assumptions2020'!$K$3*'Op. Leakage assumptions2020'!K7,'Op. Leakage assumptions2020'!$L$3*'Op. Leakage assumptions2020'!L7,'Op. Leakage assumptions2020'!$M$3*'Op. Leakage assumptions2020'!M7,'Op. Leakage assumptions2020'!$N$3*'Op. Leakage assumptions2020'!N7,'Op. Leakage assumptions2020'!$O$3*'Op. Leakage assumptions2020'!O7,'Op. Leakage assumptions2020'!$P$3*'Op. Leakage assumptions2020'!P7,'Op. Leakage assumptions2020'!$Q$3*'Op. Leakage assumptions2020'!Q7,'Op. Leakage assumptions2020'!$R$3*'Op. Leakage assumptions2020'!R7,'Op. Leakage assumptions2020'!$S$3*'Op. Leakage assumptions2020'!S7) -> 0 | BQ7: =E7*BO7*SUM('EoL Leakage assumptions2020'!$G$3*'EoL Leakage assumptions2020'!G7,'EoL Leakage assumptions2020'!$H$3*'EoL Leakage assumptions2020'!H7,'EoL Leakage assumptions2020'!$I$3*'EoL Leakage assumptions2020'!I7,'EoL Leakage assumptions2020'!$J$3*'EoL Leakage assumptions2020'!J7,'EoL Leakage assumptions2020'!$K$3*'EoL Leakage assumptions2020'!K7,'EoL Leakage assumptions2020'!$L$3*'EoL Leakage assumptions2020'!L7,'EoL Leakage assumptions2020'!$M$3*'EoL Leakage assumptions2020'!M7,'EoL Leakage assumptions2020'!$N$3*'EoL Leakage assumptions2020'!N7) -> 0 | BR7: 729329608.9 | BS7: 0.7293296089 | BT7: 573.8 | BW7: HFC32 | BX7: 670
